Workbook

Sheet Main
B10: 2019-07-19
B12: Sheet No. | C12: Template Name | D12: Summary
B13: 1 | C13: Future Intra | D13: For Intraday trading in F&O segment
B14: 2 | C14: Cash Intra | D14: For Intraday trading in cash market segment
B15: 3 | C15: Mid-cap Intra | D15: For Intraday trading in Mid-cap stocks
B16: 4 | C16: Bulk Deals | D16: Reveals Bulk Deals carried on NSE & BSE
B17: 5 | C17: Call Tracker
K27: `

Sheet Future Intra
M5: Back to Main Page
A6: FOR INTRA DAY TRADING | L6: =Main!B10 -> 2019-07-19
A9: Sr.no | B9: Sector | C9: Scrip | D9: CLOSE RATE | E9: Pivot Point | F9: Supports | I9: Resistances
B10: Sector | D10: Point | E10: Point | F10: S1 | G10: S2 | H10: S3 | I10: R1 | J10: R2 | K10: R3 | L10: HIGH | M10: LOW | N10: OI | O10: % Change in OI
A11: 1 | B11: Index | C11: BANKNIFTY | D11: 30448.65 | E11: 30534.73 | F11: 30324.47 | G11: 30200.28 | H11: 29990.02 | I11: 30658.92 | J11: 30869.18 | K11: 30993.37 | L11: 30745 | M11: 30410.55 | N11: 1989900 | O11: 4.41%
A12: 2 | B12: Index | C12: NIFTY | D12: 11604.35 | E12: 11619.92 | F12: 11574.53 | G12: 11544.72 | H12: 11499.33 | I12: 11649.73 | J12: 11695.12 | K12: 11724.93 | L12: 11665.3 | M12: 11590.1 | N12: 20328300 | O12: 1.69%
A13: 3 | B13: Index | C13: NIFTYIT | D13: 15538.00 | E13: 15569.67 | F13: 15469.33 | G13: 15400.67 | H13: 15300.33 | I13: 15638.33 | J13: 15738.67 | K13: 15807.33 | L13: 15670 | M13: 15501 | N13: 17300 | O13: -3.35%
A14: 4 | B14: Cement | C14: ACC | D14: 1572.45 | E14: 1583.25 | F14: 1554.25 | G14: 1536.05 | H14: 1507.05 | I14: 1601.45 | J14: 1630.45 | K14: 1648.65 | L14: 1612.25 | M14: 1565.05 | N14: 2400800 | O14: 12.14%
A15: 5 | B15: Others | C15: ADANIENT | D15: 134.50 | E15: 135.25 | F15: 132.45 | G15: 130.40 | H15: 127.60 | I15: 137.30 | J15: 140.10 | K15: 142.15 | L15: 138.05 | M15: 133.2 | N15: 29952000 | O15: 1.00%
A16: 6 | B16: Others | C16: ADANIPORTS | D16: 413.75 | E16: 415.25 | F16: 410.60 | G16: 407.45 | H16: 402.80 | I16: 418.40 | J16: 423.05 | K16: 426.20 | L16: 419.9 | M16: 412.1 | N16: 15832500 | O16: -0.89%
A17: 7 | B17: Power | C17: ADANIPOWER | D17: 62.45 | E17: 63.20 | F17: 60.50 | G17: 58.55 | H17: 55.85 | I17: 65.15 | J17: 67.85 | K17: 69.80 | L17: 65.9 | M17: 61.25 | N17: 125480000 | O17: -2.09%
A18: 8 | B18: Automobile | C18: AMARAJABAT | D18: 635.90 | E18: 639.98 | F18: 628.92 | G18: 621.93 | H18: 610.87 | I18: 646.97 | J18: 658.03 | K18: 665.02 | L18: 651.05 | M18: 633 | N18: 1468600 | O18: 0.67%
A19: 9 | B19: Cement | C19: AMBUJACEM | D19: 217.55 | E19: 218.38 | F19: 214.92 | G19: 212.28 | H19: 208.82 | I19: 221.02 | J19: 224.48 | K19: 227.12 | L19: 221.85 | M19: 215.75 | N19: 20015000 | O19: 7.68%
A20: 10 | B20: Others | C20: APOLLOHOSP | D20: 1390.60 | E20: 1386.65 | F20: 1373.35 | G20: 1356.10 | H20: 1342.80 | I20: 1403.90 | J20: 1417.20 | K20: 1434.45 | L20: 1399.95 | M20: 1369.4 | N20: 1514000 | O20: 0.60%
A21: 11 | B21: Automobile | C21: APOLLOTYRE | D21: 176.60 | E21: 178.65 | F21: 173.80 | G21: 171.00 | H21: 166.15 | I21: 181.45 | J21: 186.30 | K21: 189.10 | L21: 183.5 | M21: 175.85 | N21: 11502000 | O21: 3.73%
A22: 12 | B22: Textile | C22: ARVIND | D22: 59.80 | E22: 60.30 | F22: 59.00 | G22: 58.20 | H22: 56.90 | I22: 61.10 | J22: 62.40 | K22: 63.20 | L22: 61.6 | M22: 59.5 | N22: 9198000 | O22: 1.79%
A23: 13 | B23: Automobile | C23: ASHOKLEY | D23: 78.40 | E23: 79.45 | F23: 76.70 | G23: 75.00 | H23: 72.25 | I23: 81.15 | J23: 83.90 | K23: 85.60 | L23: 82.2 | M23: 77.75 | N23: 87870000 | O23: 11.22%
A24: 14 | B24: FMCG | C24: ASIANPAINT | D24: 1384.75 | E24: 1385.35 | F24: 1375.65 | G24: 1366.55 | H24: 1356.85 | I24: 1394.45 | J24: 1404.15 | K24: 1413.25 | L24: 1395.05 | M24: 1376.25 | N24: 6243600 | O24: 4.02%
A25: 15 | B25: Pharma | C25: AUROPHARMA | D25: 570.55 | E25: 570.75 | F25: 562.25 | G25: 553.95 | H25: 545.45 | I25: 579.05 | J25: 587.55 | K25: 595.85 | L25: 579.25 | M25: 562.45 | N25: 17925000 | O25: -0.34%
A26: 16 | B26: Banking | C26: AXISBANK | D26: 742.70 | E26: 745.18 | F26: 733.72 | G26: 724.73 | H26: 713.27 | I26: 754.17 | J26: 765.63 | K26: 774.62 | L26: 756.65 | M26: 736.2 | N26: 50571600 | O26: 5.88%
A27: 17 | B27: Automobile | C27: BAJAJ-AUTO | D27: 2640.05 | E27: 2663.13 | F27: 2609.92 | G27: 2579.78 | H27: 2526.57 | I27: 2693.27 | J27: 2746.48 | K27: 2776.62 | L27: 2716.35 | M27: 2633 | N27: 2552250 | O27: 5.91%
A28: 18 | B28: Finance | C28: BAJAJFINSV | D28: 7868.75 | E28: 7873.03 | F28: 7824.17 | G28: 7779.58 | H28: 7730.72 | I28: 7917.62 | J28: 7966.48 | K28: 8011.07 | L28: 7921.9 | M28: 7828.45 | N28: 833375 | O28: 1.58%
A29: 19 | B29: Finance | C29: BAJFINANCE | D29: 3474.70 | E29: 3483.23 | F29: 3439.47 | G29: 3404.23 | H29: 3360.47 | I29: 3518.47 | J29: 3562.23 | K29: 3597.47 | L29: 3527 | M29: 3448 | N29: 6090000 | O29: 1.09%
A30: 20 | B30: Automobile | C30: BALKRISIND | D30: 748.95 | E30: 752.88 | F30: 741.87 | G30: 734.78 | H30: 723.77 | I30: 759.97 | J30: 770.98 | K30: 778.07 | L30: 763.9 | M30: 745.8 | N30: 1984800 | O30: -1.00%
A31: 21 | B31: Banking | C31: BANKBARODA | D31: 121.60 | E31: 123.33 | F31: 119.37 | G31: 117.13 | H31: 113.17 | I31: 125.57 | J31: 129.53 | K31: 131.77 | L31: 127.3 | M31: 121.1 | N31: 55134000 | O31: 10.44%
A32: 22 | B32: Banking | C32: BANKINDIA | D32: 82.15 | E32: 83.12 | F32: 80.53 | G32: 78.92 | H32: 76.33 | I32: 84.73 | J32: 87.32 | K32: 88.93 | L32: 85.7 | M32: 81.5 | N32: 31926000 | O32: 7.26%
A33: 23 | B33: FMCG | C33: BATAINDIA | D33: 1337.65 | E33: 1341.77 | F33: 1326.03 | G33: 1314.42 | H33: 1298.68 | I33: 1353.38 | J33: 1369.12 | K33: 1380.73 | L33: 1357.5 | M33: 1330.15 | N33: 2265450 | O33: 6.82%
A34: 24 | B34: Capital_Goods | C34: BEL | D34: 96.50 | E34: 98.57 | F34: 93.68 | G34: 90.87 | H34: 85.98 | I34: 101.38 | J34: 106.27 | K34: 109.08 | L34: 103.45 | M34: 95.75 | N34: 32262000 | O34: 11.93%
A35: 25 | B35: FMCG | C35: BERGEPAINT | D35: 312.25 | E35: 313.00 | F35: 310.35 | G35: 308.45 | H35: 305.80 | I35: 314.90 | J35: 317.55 | K35: 319.45 | L35: 315.65 | M35: 311.1 | N35: 2116400 | O35: -4.94%
A36: 26 | B36: Automobile | C36: BHARATFORG | D36: 441.75 | E36: 447.18 | F36: 433.37 | G36: 424.98 | H36: 411.17 | I36: 455.57 | J36: 469.38 | K36: 477.77 | L36: 461 | M36: 438.8 | N36: 8307600 | O36: 8.66%
A37: 27 | B37: Telecom | C37: BHARTIARTL | D37: 343.65 | E37: 345.00 | F37: 338.15 | G37: 332.65 | H37: 325.80 | I37: 350.50 | J37: 357.35 | K37: 362.85 | L37: 351.85 | M37: 339.5 | N37: 33830727 | O37: -0.38%
A38: 28 | B38: Capital_Goods | C38: BHEL | D38: 63.90 | E38: 64.00 | F38: 63.50 | G38: 63.10 | H38: 62.60 | I38: 64.40 | J38: 64.90 | K38: 65.30 | L38: 64.5 | M38: 63.6 | N38: 47985000 | O38: -6.95%
A39: 29 | B39: Pharma | C39: BIOCON | D39: 262.70 | E39: 262.93 | F39: 260.62 | G39: 258.53 | H39: 256.22 | I39: 265.02 | J39: 267.33 | K39: 269.42 | L39: 265.25 | M39: 260.85 | N39: 11662200 | O39: -5.13%
A40: 30 | B40: Automobile | C40: BOSCHLTD | D40: 15559.30 | E40: 15695.10 | F40: 15365.20 | G40: 15171.10 | H40: 14841.20 | I40: 15889.20 | J40: 16219.10 | K40: 16413.20 | L40: 16025 | M40: 15501 | N40: 160440 | O40: 2.63%
A41: 31 | B41: Oil_Gas | C41: BPCL | D41: 350.00 | E41: 351.48 | F41: 347.57 | G41: 345.13 | H41: 341.22 | I41: 353.92 | J41: 357.83 | K41: 360.27 | L41: 355.4 | M41: 349.05 | N41: 13969800 | O41: 1.03%
A42: 32 | B42: FMCG | C42: BRITANNIA | D42: 2820.75 | E42: 2820.03 | F42: 2793.17 | G42: 2765.58 | H42: 2738.72 | I42: 2847.62 | J42: 2874.48 | K42: 2902.07 | L42: 2846.9 | M42: 2792.45 | N42: 2458200 | O42: 2.18%
A43: 33 | B43: Technology | C43: CADILAHC | D43: 228.00 | E43: 231.00 | F43: 223.05 | G43: 218.10 | H43: 210.15 | I43: 235.95 | J43: 243.90 | K43: 248.85 | L43: 238.95 | M43: 226.05 | N43: 16116800 | O43: 1.12%
A44: 34 | B44: Pharma | C44: CANBK | D44: 267.85 | E44: 271.92 | F44: 262.73 | G44: 257.62 | H44: 248.43 | I44: 277.03 | J44: 286.22 | K44: 291.33 | L44: 281.1 | M44: 266.8 | N44: 11090000 | O44: 11.28%
A45: 35 | B45: Banking | C45: CASTROLIND | D45: 130.15 | E45: 130.93 | F45: 128.82 | G45: 127.48 | H45: 125.37 | I45: 132.27 | J45: 134.38 | K45: 135.72 | L45: 133.05 | M45: 129.6 | N45: 9115400 | O45: 1.48%
A46: 36 | B46: Oil_Gas | C46: CENTURYTEX | D46: 928.65 | E46: 935.38 | F46: 916.77 | G46: 904.88 | H46: 886.27 | I46: 947.27 | J46: 965.88 | K46: 977.77 | L46: 954 | M46: 923.5 | N46: 4437000 | O46: -0.42%
A47: 37 | B47: Textile | C47: CESC | D47: 777.35 | E47: 780.08 | F47: 773.57 | G47: 769.78 | H47: 763.27 | I47: 783.87 | J47: 790.38 | K47: 794.17 | L47: 786.6 | M47: 776.3 | N47: 952000 | O47: -2.62%
A48: 38 | B48: Power | C48: CHOLAFIN | D48: 271.10 | E48: 272.18 | F48: 264.47 | G48: 257.83 | H48: 250.12 | I48: 278.82 | J48: 286.53 | K48: 293.17 | L48: 279.9 | M48: 265.55 | N48: 3392500 | O48: 3.91%
A49: 39 | B49: Finance | C49: CIPLA | D49: 548.00 | E49: 551.57 | F49: 543.23 | G49: 538.47 | H49: 530.13 | I49: 556.33 | J49: 564.67 | K49: 569.43 | L49: 559.9 | M49: 546.8 | N49: 11128000 | O49: 0.96%
A50: 40 | B50: Pharma | C50: COALINDIA | D50: 219.55 | E50: 222.75 | F50: 215.85 | G50: 212.15 | H50: 205.25 | I50: 226.45 | J50: 233.35 | K50: 237.05 | L50: 229.65 | M50: 219.05 | N50: 39910200 | O50: 9.52%
A51: 41 | B51: Others | C51: COLPAL | D51: 1203.25 | E51: 1193.33 | F51: 1164.47 | G51: 1125.68 | H51: 1096.82 | I51: 1232.12 | J51: 1260.98 | K51: 1299.77 | L51: 1222.2 | M51: 1154.55 | N51: 2228800 | O51: -11.38%
A52: 42 | B52: FMCG | C52: CONCOR | D52: 540.55 | E52: 543.98 | F52: 534.47 | G52: 528.38 | H52: 518.87 | I52: 550.07 | J52: 559.58 | K52: 565.67 | L52: 553.5 | M52: 537.9 | N52: 2777451 | O52: 8.42%
A53: 43 | B53: Others | C53: CUMMINSIND | D53: 738.15 | E53: 741.10 | F53: 733.45 | G53: 728.75 | H53: 721.10 | I53: 745.80 | J53: 753.45 | K53: 758.15 | L53: 748.75 | M53: 736.4 | N53: 2210600 | O53: 0.41%
A54: 44 | B54: Capital_Goods | C54: DABUR | D54: 430.25 | E54: 431.17 | F54: 426.83 | G54: 423.42 | H54: 419.08 | I54: 434.58 | J54: 438.92 | K54: 442.33 | L54: 435.5 | M54: 427.75 | N54: 14196250 | O54: 3.49%
A55: 45 | B55: FMCG | C55: DHFL | D55: 54.95 | E55: 54.92 | F55: 52.68 | G55: 50.42 | H55: 48.18 | I55: 57.18 | J55: 59.42 | K55: 61.68 | L55: 57.15 | M55: 52.65 | N55: 21072000 | O55: -4.58%
A56: 46 | B56: Finance | C56: DISHTV | D56: 34.25 | E56: 33.95 | F56: 33.05 | G56: 31.85 | H56: 30.95 | I56: 35.15 | J56: 36.05 | K56: 37.25 | L56: 34.85 | M56: 32.75 | N56: 108444000 | O56: -1.27%
A57: 47 | B57: Media | C57: DIVISLAB | D57: 1639.50 | E57: 1645.23 | F57: 1629.22 | G57: 1618.93 | H57: 1602.92 | I57: 1655.52 | J57: 1671.53 | K57: 1681.82 | L57: 1661.25 | M57: 1634.95 | N57: 2808400 | O57: 0.50%
A58: 48 | B58: Pharma | C58: DLF | D58: 181.65 | E58: 183.95 | F58: 178.35 | G58: 175.05 | H58: 169.45 | I58: 187.25 | J58: 192.85 | K58: 196.15 | L58: 189.55 | M58: 180.65 | N58: 38838800 | O58: -1.60%
A59: 49 | B59: Realty | C59: DRREDDY | D59: 2661.00 | E59: 2658.28 | F59: 2635.82 | G59: 2610.63 | H59: 2588.17 | I59: 2683.47 | J59: 2705.93 | K59: 2731.12 | L59: 2680.75 | M59: 2633.1 | N59: 3475750 | O59: 0.18%
A60: 50 | B60: Pharma | C60: EICHERMOT | D60: 18328.90 | E60: 18332.47 | F60: 18166.78 | G60: 18004.67 | H60: 17838.98 | I60: 18494.58 | J60: 18660.27 | K60: 18822.38 | L60: 18498.15 | M60: 18170.35 | N60: 429725 | O60: 1.27%
A61: 51 | B61: Automobile | C61: ENGINERSIN | D61: 105.60 | E61: 106.52 | F61: 104.18 | G61: 102.77 | H61: 100.43 | I61: 107.93 | J61: 110.27 | K61: 111.68 | L61: 108.85 | M61: 105.1 | N61: 10359200 | O61: 5.83%
A62: 52 | B62: Infrastructure | C62: EQUITAS | D62: 123.25 | E62: 125.13 | F62: 120.87 | G62: 118.48 | H62: 114.22 | I62: 127.52 | J62: 131.78 | K62: 134.17 | L62: 129.4 | M62: 122.75 | N62: 11916000 | O62: 1.40%
A63: 53 | B63: Finance | C63: ESCORTS | D63: 528.20 | E63: 532.68 | F63: 521.72 | G63: 515.23 | H63: 504.27 | I63: 539.17 | J63: 550.13 | K63: 556.62 | L63: 543.65 | M63: 526.2 | N63: 5957600 | O63: -0.06%
A64: 54 | B64: Automobile | C64: EXIDEIND | D64: 201.40 | E64: 201.97 | F64: 198.23 | G64: 195.07 | H64: 191.33 | I64: 205.13 | J64: 208.87 | K64: 212.03 | L64: 205.7 | M64: 198.8 | N64: 8023200 | O64: 6.94%
A65: 55 | B65: Automobile | C65: FEDERALBNK | D65: 99.20 | E65: 100.42 | F65: 97.53 | G65: 95.87 | H65: 92.98 | I65: 102.08 | J65: 104.97 | K65: 106.63 | L65: 103.3 | M65: 98.75 | N65: 48405000 | O65: 3.60%
A66: 56 | B66: Banking | C66: GAIL | D66: 142.35 | E66: 142.87 | F66: 141.13 | G66: 139.92 | H66: 138.18 | I66: 144.08 | J66: 145.82 | K66: 147.03 | L66: 144.6 | M66: 141.65 | N66: 34233612 | O66: -1.29%
A67: 57 | B67: Oil_Gas | C67: GLENMARK | D67: 440.55 | E67: 442.83 | F67: 436.22 | G67: 431.88 | H67: 425.27 | I67: 447.17 | J67: 453.78 | K67: 458.12 | L67: 449.45 | M67: 438.5 | N67: 6680000 | O67: 0.92%
A68: 58 | B68: Pharma | C68: GMRINFRA | D68: 14.70 | E68: 14.82 | F68: 14.48 | G68: 14.27 | H68: 13.93 | I68: 15.03 | J68: 15.37 | K68: 15.58 | L68: 15.15 | M68: 14.6 | N68: 181665000 | O68: 1.94%
A69: 59 | B69: Infrastructure | C69: GODREJCP | D69: 645.85 | E69: 646.50 | F69: 639.45 | G69: 633.05 | H69: 626.00 | I69: 652.90 | J69: 659.95 | K69: 666.35 | L69: 653.55 | M69: 640.1 | N69: 6149600 | O69: -1.41%
A70: 60 | B70: FMCG | C70: GRASIM | D70: 911.10 | E70: 916.18 | F70: 903.77 | G70: 896.43 | H70: 884.02 | I70: 923.52 | J70: 935.93 | K70: 943.27 | L70: 928.6 | M70: 908.85 | N70: 12905250 | O70: 1.14%
A71: 61 | B71: Cement | C71: HAVELLS | D71: 716.80 | E71: 721.48 | F71: 709.52 | G71: 702.23 | H71: 690.27 | I71: 728.77 | J71: 740.73 | K71: 748.02 | L71: 733.45 | M71: 714.2 | N71: 6129000 | O71: 1.14%
A72: 62 | B72: Others | C72: HCLTECH | D72: 1021.55 | E72: 1025.15 | F72: 1015.65 | G72: 1009.75 | H72: 1000.25 | I72: 1031.05 | J72: 1040.55 | K72: 1046.45 | L72: 1034.65 | M72: 1019.25 | N72: 10659600 | O72: 2.84%
A73: 63 | B73: Technology | C73: HDFC | D73: 2326.85 | E73: 2310.93 | F73: 2283.87 | G73: 2240.88 | H73: 2213.82 | I73: 2353.92 | J73: 2380.98 | K73: 2423.97 | L73: 2338 | M73: 2267.95 | N73: 28360000 | O73: 4.61%
A74: 64 | B74: Finance | C74: HDFCBANK | D74: 2412.95 | E74: 2413.98 | F74: 2399.97 | G74: 2386.98 | H74: 2372.97 | I74: 2426.97 | J74: 2440.98 | K74: 2453.97 | L74: 2428 | M74: 2401 | N74: 17205000 | O74: 2.50%
A75: 65 | B75: Banking | C75: HEROMOTOCO | D75: 2486.30 | E75: 2506.77 | F75: 2454.53 | G75: 2422.77 | H75: 2370.53 | I75: 2538.53 | J75: 2590.77 | K75: 2622.53 | L75: 2559 | M75: 2475 | N75: 2508200 | O75: 7.19%
A76: 66 | B76: Automobile | C76: HEXAWARE | D76: 360.45 | E76: 358.32 | F76: 352.13 | G76: 343.82 | H76: 337.63 | I76: 366.63 | J76: 372.82 | K76: 381.13 | L76: 364.5 | M76: 350 | N76: 2067000 | O76: -2.82%
A77: 67 | B77: Technology | C77: HINDALCO | D77: 200.25 | E77: 200.78 | F77: 198.92 | G77: 197.58 | H77: 195.72 | I77: 202.12 | J77: 203.98 | K77: 205.32 | L77: 202.65 | M77: 199.45 | N77: 34895000 | O77: -1.73%
A78: 68 | B78: Metals | C78: HINDPETRO | D78: 292.10 | E78: 293.77 | F78: 289.68 | G78: 287.27 | H78: 283.18 | I78: 296.18 | J78: 300.27 | K78: 302.68 | L78: 297.85 | M78: 291.35 | N78: 15955800 | O78: -0.04%
A79: 69 | B79: Oil_Gas | C79: HINDUNILVR | D79: 1743.20 | E79: 1743.22 | F79: 1722.43 | G79: 1701.67 | H79: 1680.88 | I79: 1763.98 | J79: 1784.77 | K79: 1805.53 | L79: 1764 | M79: 1722.45 | N79: 11288700 | O79: 2.16%
A80: 70 | B80: FMCG | C80: HINDZINC | D80: 225.70 | E80: 227.05 | F80: 223.80 | G80: 221.90 | H80: 218.65 | I80: 228.95 | J80: 232.20 | K80: 234.10 | L80: 230.3 | M80: 225.15 | N80: 7321600 | O80: 0.97%
A81: 71 | B81: Metals | C81: IBULHSGFIN | D81: 660.00 | E81: 663.47 | F81: 648.33 | G81: 636.67 | H81: 621.53 | I81: 675.13 | J81: 690.27 | K81: 701.93 | L81: 678.6 | M81: 651.8 | N81: 18908800 | O81: -1.19%
A82: 72 | B82: Finance | C82: ICICIBANK | D82: 418.75 | E82: 420.62 | F82: 415.88 | G82: 413.02 | H82: 408.28 | I82: 423.48 | J82: 428.22 | K82: 431.08 | L82: 425.35 | M82: 417.75 | N82: 90151875 | O82: 1.07%
A83: 73 | B83: Banking | C83: ICICIPRULI | D83: 384.45 | E83: 386.58 | F83: 381.17 | G83: 377.88 | H83: 372.47 | I83: 389.87 | J83: 395.28 | K83: 398.57 | L83: 392 | M83: 383.3 | N83: 4542000 | O83: -2.73%
A84: 74 | B84: Finance | C84: IDBI | D84: 34.25 | E84: 34.38 | F84: 33.97 | G84: 33.68 | H84: 33.27 | I84: 34.67 | J84: 35.08 | K84: 35.37 | L84: 34.8 | M84: 34.1 | N84: 29508000 | O84: 0.04%
A85: 75 | B85: Banking | C85: IDEA | D85: 11.30 | E85: 11.50 | F85: 11.00 | G85: 10.70 | H85: 10.20 | I85: 11.80 | J85: 12.30 | K85: 12.60 | L85: 12 | M85: 11.2 | N85: 406336000 | O85: 3.33%
A86: 76 | B86: Telecom | C86: IDFCFIRSTB | D86: 41.40 | E86: 41.87 | F86: 40.78 | G86: 40.17 | H86: 39.08 | I86: 42.48 | J86: 43.57 | K86: 44.18 | L86: 42.95 | M86: 41.25 | N86: 158676000 | O86: 8.86%
A87: 77 | B87: Banking | C87: IGL | D87: 317.35 | E87: 317.32 | F87: 314.63 | G87: 311.92 | H87: 309.23 | I87: 320.03 | J87: 322.72 | K87: 325.43 | L87: 320 | M87: 314.6 | N87: 4290000 | O87: -0.26%
A88: 78 | B88: Oil_Gas | C88: INDIGO | D88: 1462.55 | E88: 1460.60 | F88: 1446.20 | G88: 1429.85 | H88: 1415.45 | I88: 1476.95 | J88: 1491.35 | K88: 1507.70 | L88: 1475 | M88: 1444.25 | N88: 4590600 | O88: 2.52%
A89: 79 | B89: Others | C89: INDUSINDBK | D89: 1474.95 | E89: 1483.78 | F89: 1463.17 | G89: 1451.38 | H89: 1430.77 | I89: 1495.57 | J89: 1516.18 | K89: 1527.97 | L89: 1504.4 | M89: 1472 | N89: 12310800 | O89: -0.28%
A90: 80 | B90: Banking | C90: INFRATEL | D90: 263.80 | E90: 263.55 | F90: 262.15 | G90: 260.50 | H90: 259.10 | I90: 265.20 | J90: 266.60 | K90: 268.25 | L90: 264.95 | M90: 261.9 | N90: 6786000 | O90: 2.85%
A91: 81 | B91: Telecom | C91: INFY | D91: 794.00 | E91: 793.15 | F91: 787.95 | G91: 781.90 | H91: 776.70 | I91: 799.20 | J91: 804.40 | K91: 810.45 | L91: 798.35 | M91: 787.1 | N91: 61587600 | O91: 0.13%
A92: 82 | B92: Technology | C92: IOC | D92: 147.55 | E92: 147.10 | F92: 145.35 | G92: 143.15 | H92: 141.40 | I92: 149.30 | J92: 151.05 | K92: 153.25 | L92: 148.85 | M92: 144.9 | N92: 53672500 | O92: 6.51%
A93: 83 | B93: Oil_Gas | C93: ITC | D93: 273.65 | E93: 273.55 | F93: 272.25 | G93: 270.85 | H93: 269.55 | I93: 274.95 | J93: 276.25 | K93: 277.65 | L93: 274.85 | M93: 272.15 | N93: 89421600 | O93: -1.80%
A94: 84 | B94: FMCG | C94: JINDALSTEL | D94: 143.05 | E94: 143.10 | F94: 140.65 | G94: 138.25 | H94: 135.80 | I94: 145.50 | J94: 147.95 | K94: 150.35 | L94: 145.55 | M94: 140.7 | N94: 36713600 | O94: 3.33%
A95: 85 | B95: Metals | C95: JSWSTEEL | D95: 266.80 | E95: 267.75 | F95: 264.15 | G95: 261.50 | H95: 257.90 | I95: 270.40 | J95: 274.00 | K95: 276.65 | L95: 271.35 | M95: 265.1 | N95: 51882000 | O95: 0.56%
A96: 86 | B96: Metals | C96: JUBLFOOD | D96: 1239.95 | E96: 1244.33 | F96: 1224.07 | G96: 1208.18 | H96: 1187.92 | I96: 1260.22 | J96: 1280.48 | K96: 1296.37 | L96: 1264.6 | M96: 1228.45 | N96: 2736000 | O96: 5.33%
A97: 87 | B97: Others | C97: JUSTDIAL | D97: 730.30 | E97: 731.70 | F97: 723.60 | G97: 716.90 | H97: 708.80 | I97: 738.40 | J97: 746.50 | K97: 753.20 | L97: 739.8 | M97: 725 | N97: 3137400 | O97: -1.84%
A98: 88 | B98: Others | C98: KAJARIACER | D98: 536.90 | E98: 539.92 | F98: 525.48 | G98: 514.07 | H98: 499.63 | I98: 551.33 | J98: 565.77 | K98: 577.18 | L98: 554.35 | M98: 528.5 | N98: 2757300 | O98: 12.88%
A99: 89 | B99: Others | C99: KOTAKBANK | D99: 1534.20 | E99: 1532.25 | F99: 1524.95 | G99: 1515.70 | H99: 1508.40 | I99: 1541.50 | J99: 1548.80 | K99: 1558.05 | L99: 1539.55 | M99: 1523 | N99: 10449200 | O99: 2.81%
A100: 90 | B100: Banking | C100: BSOFT | D100: 75.50 | E100: 75.67 | F100: 73.93 | G100: 72.37 | H100: 70.63 | I100: 77.23 | J100: 78.97 | K100: 80.53 | L100: 77.4 | M100: 74.1 | N100: 3085500 | O100: -0.66%
A101: 91 | B101: Finance | C101: L&TFH | D101: 115.90 | E101: 117.57 | F101: 113.53 | G101: 111.17 | H101: 107.13 | I101: 119.93 | J101: 123.97 | K101: 126.33 | L101: 121.6 | M101: 115.2 | N101: 37651500 | O101: 6.03%
A102: 92 | B102: Finance | C102: LICHSGFIN | D102: 535.35 | E102: 539.32 | F102: 529.53 | G102: 523.72 | H102: 513.93 | I102: 545.13 | J102: 554.92 | K102: 560.73 | L102: 549.1 | M102: 533.5 | N102: 9655800 | O102: 0.88%
A103: 93 | B103: Capital_Goods | C103: LT | D103: 1420.55 | E103: 1425.93 | F103: 1412.27 | G103: 1403.98 | H103: 1390.32 | I103: 1434.22 | J103: 1447.88 | K103: 1456.17 | L103: 1439.6 | M103: 1417.65 | N103: 14387250 | O103: 3.57%
A104: 94 | B104: Pharma | C104: LUPIN | D104: 757.90 | E104: 762.37 | F104: 749.88 | G104: 741.87 | H104: 729.38 | I104: 770.38 | J104: 782.87 | K104: 790.88 | L104: 774.85 | M104: 754.35 | N104: 8915200 | O104: 0.82%
A105: 95 | B105: Automobile | C105: M&M | D105: 599.05 | E105: 603.45 | F105: 591.90 | G105: 584.75 | H105: 573.20 | I105: 610.60 | J105: 622.15 | K105: 629.30 | L105: 615 | M105: 596.3 | N105: 21790000 | O105: 3.53%
A106: 96 | B106: Finance | C106: M&MFIN | D106: 378.30 | E106: 380.13 | F106: 374.27 | G106: 370.23 | H106: 364.37 | I106: 384.17 | J106: 390.03 | K106: 394.07 | L106: 386 | M106: 376.1 | N106: 13492500 | O106: 1.43%
A107: 97 | B107: Finance | C107: MANAPPURAM | D107: 129.80 | E107: 130.85 | F107: 127.75 | G107: 125.70 | H107: 122.60 | I107: 132.90 | J107: 136.00 | K107: 138.05 | L107: 133.95 | M107: 128.8 | N107: 12774000 | O107: -1.11%
A108: 98 | B108: FMCG | C108: MARICO | D108: 371.80 | E108: 372.02 | F108: 370.03 | G108: 368.27 | H108: 366.28 | I108: 373.78 | J108: 375.77 | K108: 377.53 | L108: 374 | M108: 370.25 | N108: 8567000 | O108: 6.05%
A109: 99 | B109: Automobile | C109: MARUTI | D109: 5872.70 | E109: 5930.22 | F109: 5792.48 | G109: 5712.27 | H109: 5574.53 | I109: 6010.43 | J109: 6148.17 | K109: 6228.38 | L109: 6067.95 | M109: 5850 | N109: 3306750 | O109: 0.55%
A110: 100 | B110: FMCG | C110: MCDOWELL-N | D110: 603.75 | E110: 603.52 | F110: 596.23 | G110: 588.72 | H110: 581.43 | I110: 611.03 | J110: 618.32 | K110: 625.83 | L110: 610.8 | M110: 596 | N110: 11255000 | O110: 6.51%
A111: 101 | B111: Others | C111: MCX | D111: 874.40 | E111: 865.90 | F111: 852.00 | G111: 829.60 | H111: 815.70 | I111: 888.30 | J111: 902.20 | K111: 924.60 | L111: 879.8 | M111: 843.5 | N111: 2082500 | O111: 7.87%
A112: 102 | B112: Finance | C112: MFSL | D112: 424.15 | E112: 425.30 | F112: 417.90 | G112: 411.65 | H112: 404.25 | I112: 431.55 | J112: 438.95 | K112: 445.20 | L112: 432.7 | M112: 419.05 | N112: 2965200 | O112: 1.56%
A113: 103 | B113: Oil_Gas | C113: MGL | D113: 794.05 | E113: 796.73 | F113: 789.52 | G113: 784.98 | H113: 777.77 | I113: 801.27 | J113: 808.48 | K113: 813.02 | L113: 803.95 | M113: 792.2 | N113: 1131000 | O113: -1.31%
A114: 104 | B114: Technology | C114: MINDTREE | D114: 691.95 | E114: 696.93 | F114: 668.12 | G114: 644.28 | H114: 615.47 | I114: 720.77 | J114: 749.58 | K114: 773.42 | L114: 725.75 | M114: 673.1 | N114: 1948800 | O114: 27.77%
A115: 105 | B115: Automobile | C115: MOTHERSUMI | D115: 116.40 | E115: 116.72 | F115: 114.83 | G115: 113.27 | H115: 111.38 | I115: 118.28 | J115: 120.17 | K115: 121.73 | L115: 118.6 | M115: 115.15 | N115: 27459300 | O115: -0.35%
A116: 106 | B116: Automobile | C116: MRF | D116: 55253.30 | E116: 55494.13 | F116: 54789.27 | G116: 54325.23 | H116: 53620.37 | I116: 55958.17 | J116: 56663.03 | K116: 57127.07 | L116: 56199 | M116: 55030.1 | N116: 29440 | O116: 5.37%
A117: 107 | B117: Finance | C117: MUTHOOTFIN | D117: 627.15 | E117: 629.22 | F117: 622.78 | G117: 618.42 | H117: 611.98 | I117: 633.58 | J117: 640.02 | K117: 644.38 | L117: 635.65 | M117: 624.85 | N117: 3240000 | O117: -2.48%
A118: 108 | B118: Metals | C118: NATIONALUM | D118: 46.45 | E118: 46.73 | F118: 46.07 | G118: 45.68 | H118: 45.02 | I118: 47.12 | J118: 47.78 | K118: 48.17 | L118: 47.4 | M118: 46.35 | N118: 44500000 | O118: 6.66%
A119: 109 | B119: Infrastructure | C119: NBCC | D119: 51.95 | E119: 52.62 | F119: 50.93 | G119: 49.92 | H119: 48.23 | I119: 53.63 | J119: 55.32 | K119: 56.33 | L119: 54.3 | M119: 51.6 | N119: 37833500 | O119: 4.17%
A120: 110 | B120: Infrastructure | C120: NCC | D120: 80.90 | E120: 81.65 | F120: 79.95 | G120: 79.00 | H120: 77.30 | I120: 82.60 | J120: 84.30 | K120: 85.25 | L120: 83.35 | M120: 80.7 | N120: 42768000 | O120: 5.42%
A121: 111 | B121: FMCG | C121: NESTLEIND | D121: 11608.65 | E121: 11640.18 | F121: 11518.52 | G121: 11428.38 | H121: 11306.72 | I121: 11730.32 | J121: 11851.98 | K121: 11942.12 | L121: 11761.85 | M121: 11550.05 | N121: 367900 | O121: -2.13%
A122: 112 | B122: Technology | C122: NIITTECH | D122: 1324.80 | E122: 1322.82 | F122: 1314.13 | G122: 1303.47 | H122: 1294.78 | I122: 1333.48 | J122: 1342.17 | K122: 1352.83 | L122: 1331.5 | M122: 1312.15 | N122: 1506750 | O122: -2.05%
A123: 113 | B123: Metals | C123: NMDC | D123: 114.55 | E123: 114.75 | F123: 113.15 | G123: 111.75 | H123: 110.15 | I123: 116.15 | J123: 117.75 | K123: 119.15 | L123: 116.35 | M123: 113.35 | N123: 29784000 | O123: 2.12%
A124: 114 | B124: Power | C124: NTPC | D124: 127.05 | E124: 128.25 | F124: 125.05 | G124: 123.05 | H124: 119.85 | I124: 130.25 | J124: 133.45 | K124: 135.45 | L124: 131.45 | M124: 126.25 | N124: 92476800 | O124: 13.24%
A125: 115 | B125: Technology | C125: OFSS | D125: 3362.00 | E125: 3354.88 | F125: 3324.62 | G125: 3287.23 | H125: 3256.97 | I125: 3392.27 | J125: 3422.53 | K125: 3459.92 | L125: 3385.15 | M125: 3317.5 | N125: 276600 | O125: 1.26%
A126: 116 | B126: Oil_Gas | C126: OIL | D126: 163.20 | E126: 165.82 | F126: 159.93 | G126: 156.67 | H126: 150.78 | I126: 169.08 | J126: 174.97 | K126: 178.23 | L126: 171.7 | M126: 162.55 | N126: 10744239 | O126: 19.24%
A127: 117 | B127: Oil_Gas | C127: ONGC | D127: 143.50 | E127: 145.63 | F127: 140.97 | G127: 138.43 | H127: 133.77 | I127: 148.17 | J127: 152.83 | K127: 155.37 | L127: 150.3 | M127: 143.1 | N127: 65981250 | O127: 13.19%
A128: 118 | B128: Textile | C128: PAGEIND | D128: 19999.10 | E128: 19975.83 | F128: 19823.42 | G128: 19647.73 | H128: 19495.32 | I128: 20151.52 | J128: 20303.93 | K128: 20479.62 | L128: 20128.25 | M128: 19800.15 | N128: 194350 | O128: 2.49%
A129: 119 | B129: Pharma | C129: PEL | D129: 1981.65 | E129: 1995.80 | F129: 1958.60 | G129: 1935.55 | H129: 1898.35 | I129: 2018.85 | J129: 2056.05 | K129: 2079.10 | L129: 2033 | M129: 1972.75 | N129: 3482362 | O129: 2.88%
A130: 120 | B130: Oil_Gas | C130: PETRONET | D130: 244.90 | E130: 246.80 | F130: 241.65 | G130: 238.40 | H130: 233.25 | I130: 250.05 | J130: 255.20 | K130: 258.45 | L130: 251.95 | M130: 243.55 | N130: 17922000 | O130: 0.62%
A131: 121 | B131: Finance | C131: PFC | D131: 121.10 | E131: 121.85 | F131: 118.35 | G131: 115.60 | H131: 112.10 | I131: 124.60 | J131: 128.10 | K131: 130.85 | L131: 125.35 | M131: 119.1 | N131: 43356600 | O131: 4.78%
A132: 122 | B132: FMCG | C132: PIDILITIND | D132: 1227.25 | E132: 1226.12 | F132: 1217.43 | G132: 1207.62 | H132: 1198.93 | I132: 1235.93 | J132: 1244.62 | K132: 1254.43 | L132: 1234.8 | M132: 1216.3 | N132: 2703000 | O132: 1.22%
A133: 123 | B133: Banking | C133: PNB | D133: 73.15 | E133: 73.78 | F133: 71.72 | G133: 70.28 | H133: 68.22 | I133: 75.22 | J133: 77.28 | K133: 78.72 | L133: 75.85 | M133: 72.35 | N133: 108864000 | O133: 2.03%
A134: 124 | B134: Power | C134: POWERGRID | D134: 205.95 | E134: 206.75 | F134: 204.80 | G134: 203.65 | H134: 201.70 | I134: 207.90 | J134: 209.85 | K134: 211.00 | L134: 208.7 | M134: 205.6 | N134: 33512000 | O134: 3.44%
A135: 125 | B135: Media | C135: PVR | D135: 1732.95 | E135: 1741.37 | F135: 1721.58 | G135: 1710.22 | H135: 1690.43 | I135: 1752.73 | J135: 1772.52 | K135: 1783.88 | L135: 1761.15 | M135: 1730 | N135: 872800 | O135: 3.07%
A136: 126 | B136: Cement | C136: RAMCOCEM | D136: 770.80 | E136: 774.07 | F136: 766.73 | G136: 762.67 | H136: 755.33 | I136: 778.13 | J136: 785.47 | K136: 789.53 | L136: 781.4 | M136: 770 | N136: 1005600 | O136: -3.60%
A137: 127 | B137: Textile | C137: RAYMOND | D137: 696.65 | E137: 699.35 | F137: 690.60 | G137: 684.55 | H137: 675.80 | I137: 705.40 | J137: 714.15 | K137: 720.20 | L137: 708.1 | M137: 693.3 | N137: 2742400 | O137: 1.57%
A138: 128 | B138: Banking | C138: RBLBANK | D138: 581.95 | E138: 585.98 | F138: 573.42 | G138: 564.88 | H138: 552.32 | I138: 594.52 | J138: 607.08 | K138: 615.62 | L138: 598.55 | M138: 577.45 | N138: 9158400 | O138: 1.99%
A139: 129 | B139: Power | C139: RECLTD | D139: 148.20 | E139: 148.97 | F139: 144.03 | G139: 139.87 | H139: 134.93 | I139: 153.13 | J139: 158.07 | K139: 162.23 | L139: 153.9 | M139: 144.8 | N139: 54486000 | O139: -5.86%
A140: 130 | B140: Finance | C140: RELCAPITAL | D140: 51.65 | E140: 52.10 | F140: 50.55 | G140: 49.45 | H140: 47.90 | I140: 53.20 | J140: 54.75 | K140: 55.85 | L140: 53.65 | M140: 51 | N140: 13791000 | O140: -0.86%
A141: 131 | B141: Oil_Gas | C141: RELIANCE | D141: 1265.30 | E141: 1271.20 | F141: 1255.75 | G141: 1246.20 | H141: 1230.75 | I141: 1280.75 | J141: 1296.20 | K141: 1305.75 | L141: 1286.65 | M141: 1261.65 | N141: 43314000 | O141: 1.60%
A142: 132 | B142: Power | C142: RELINFRA | D142: 47.65 | E142: 48.13 | F142: 46.72 | G142: 45.78 | H142: 44.37 | I142: 49.07 | J142: 50.48 | K142: 51.42 | L142: 49.55 | M142: 47.2 | N142: 16360000 | O142: -0.17%
A143: 133 | B143: Metals | C143: SAIL | D143: 45.70 | E143: 46.15 | F143: 45.05 | G143: 44.40 | H143: 43.30 | I143: 46.80 | J143: 47.90 | K143: 48.55 | L143: 47.25 | M143: 45.5 | N143: 110016000 | O143: 9.27%
A144: 134 | B144: Banking | C144: SBIN | D144: 364.65 | E144: 367.20 | F144: 361.10 | G144: 357.55 | H144: 351.45 | I144: 370.75 | J144: 376.85 | K144: 380.40 | L144: 373.3 | M144: 363.65 | N144: 70599000 | O144: -5.29%
A145: 135 | B145: Cement | C145: SHREECEM | D145: 21417.10 | E145: 21479.72 | F145: 21283.53 | G145: 21149.97 | H145: 20953.78 | I145: 21613.28 | J145: 21809.47 | K145: 21943.03 | L145: 21675.9 | M145: 21346.15 | N145: 132000 | O145: -0.19%
A146: 136 | B146: Capital_Goods | C146: SIEMENS | D146: 1206.65 | E146: 1213.18 | F146: 1196.47 | G146: 1186.28 | H146: 1169.57 | I146: 1223.37 | J146: 1240.08 | K146: 1250.27 | L146: 1229.9 | M146: 1203 | N146: 1302400 | O146: -1.46%
A147: 137 | B147: Textile | C147: SRF | D147: 2654.05 | E147: 2684.75 | F147: 2615.50 | G147: 2576.95 | H147: 2507.70 | I147: 2723.30 | J147: 2792.55 | K147: 2831.10 | L147: 2754 | M147: 2646.2 | N147: 1053500 | O147: 2.13%
A148: 138 | B148: Finance | C148: SRTRANSFIN | D148: 1050.75 | E148: 1058.77 | F148: 1039.48 | G148: 1028.22 | H148: 1008.93 | I148: 1070.03 | J148: 1089.32 | K148: 1100.58 | L148: 1078.05 | M148: 1047.5 | N148: 4519800 | O148: 0.52%
A149: 139 | B149: Pharma | C149: STAR | D149: 360.75 | E149: 362.60 | F149: 357.65 | G149: 354.55 | H149: 349.60 | I149: 365.70 | J149: 370.65 | K149: 373.75 | L149: 367.55 | M149: 359.5 | N149: 3775200 | O149: -4.11%
A150: 140 | B150: Pharma | C150: SUNPHARMA | D150: 426.35 | E150: 428.48 | F150: 423.22 | G150: 420.08 | H150: 414.82 | I150: 431.62 | J150: 436.88 | K150: 440.02 | L150: 433.75 | M150: 425.35 | N150: 55756800 | O150: -0.09%
A151: 141 | B151: Media | C151: SUNTV | D151: 466.75 | E151: 471.68 | F151: 460.37 | G151: 453.98 | H151: 442.67 | I151: 478.07 | J151: 489.38 | K151: 495.77 | L151: 483 | M151: 465.3 | N151: 6848000 | O151: 3.21%
A152: 142 | B152: Fertilisers | C152: TATACHEM | D152: 604.05 | E152: 607.00 | F152: 598.55 | G152: 593.05 | H152: 584.60 | I152: 612.50 | J152: 620.95 | K152: 626.45 | L152: 615.45 | M152: 601.5 | N152: 2558700 | O152: 1.03%
A153: 143 | B153: Technology | C153: TATAELXSI | D153: 734.00 | E153: 735.92 | F153: 720.83 | G153: 707.67 | H153: 692.58 | I153: 749.08 | J153: 764.17 | K153: 777.33 | L153: 751 | M153: 722.75 | N153: 2727600 | O153: -11.97%
A154: 144 | B154: FMCG | C154: TATAGLOBAL | D154: 255.55 | E154: 256.47 | F154: 254.03 | G154: 252.52 | H154: 250.08 | I154: 257.98 | J154: 260.42 | K154: 261.93 | L154: 258.9 | M154: 254.95 | N154: 7014600 | O154: -3.78%
A155: 145 | B155: Automobile | C155: TATAMOTORS | D155: 161.10 | E155: 162.87 | F155: 158.68 | G155: 156.27 | H155: 152.08 | I155: 165.28 | J155: 169.47 | K155: 171.88 | L155: 167.05 | M155: 160.45 | N155: 68244000 | O155: 6.41%
A156: 146 | B156: Automobile | C156: TATAMTRDVR | D156: 76.75 | E156: 77.67 | F156: 75.48 | G156: 74.22 | H156: 72.03 | I156: 78.93 | J156: 81.12 | K156: 82.38 | L156: 79.85 | M156: 76.4 | N156: 33294000 | O156: 0.18%
A157: 147 | B157: Power | C157: TATAPOWER | D157: 66.50 | E157: 67.53 | F157: 65.22 | G157: 63.93 | H157: 61.62 | I157: 68.82 | J157: 71.13 | K157: 72.42 | L157: 69.85 | M157: 66.25 | N157: 54675000 | O157: 3.35%
A158: 148 | B158: Metals | C158: TATASTEEL | D158: 467.55 | E158: 469.20 | F158: 462.45 | G158: 457.35 | H158: 450.60 | I158: 474.30 | J158: 481.05 | K158: 486.15 | L158: 475.95 | M158: 464.1 | N158: 32359439 | O158: 2.69%
A159: 149 | B159: Technology | C159: TCS | D159: 2071.85 | E159: 2083.97 | F159: 2053.93 | G159: 2036.02 | H159: 2005.98 | I159: 2101.88 | J159: 2131.92 | K159: 2149.83 | L159: 2114 | M159: 2066.05 | N159: 16781000 | O159: 4.87%
A160: 150 | B160: Technology | C160: TECHM | D160: 672.55 | E160: 673.18 | F160: 666.87 | G160: 661.18 | H160: 654.87 | I160: 678.87 | J160: 685.18 | K160: 690.87 | L160: 679.5 | M160: 667.5 | N160: 16834800 | O160: -0.69%
A161: 151 | B161: FMCG | C161: TITAN | D161: 1082.65 | E161: 1082.65 | F161: 1058.40 | G161: 1034.15 | H161: 1009.90 | I161: 1106.90 | J161: 1131.15 | K161: 1155.40 | L161: 1106.9 | M161: 1058.4 | N161: 10188000 | O161: 1.31%
A162: 152 | B162: Pharma | C162: TORNTPHARM | D162: 1538.75 | E162: 1524.20 | F162: 1494.65 | G162: 1450.55 | H162: 1421.00 | I162: 1568.30 | J162: 1597.85 | K162: 1641.95 | L162: 1553.75 | M162: 1480.1 | N162: 815000 | O162: 1.81%
A163: 153 | B163: Power | C163: TORNTPOWER | D163: 305.55 | E163: 307.73 | F163: 302.47 | G163: 299.38 | H163: 294.12 | I163: 310.82 | J163: 316.08 | K163: 319.17 | L163: 313 | M163: 304.65 | N163: 4107000 | O163: 1.63%
A164: 154 | B164: Automobile | C164: TVSMOTOR | D164: 411.30 | E164: 414.90 | F164: 406.40 | G164: 401.50 | H164: 393.00 | I164: 419.80 | J164: 428.30 | K164: 433.20 | L164: 423.4 | M164: 410 | N164: 8668000 | O164: 3.45%
A165: 155 | B165: FMCG | C165: UBL | D165: 1400.15 | E165: 1396.43 | F165: 1388.37 | G165: 1376.58 | H165: 1368.52 | I165: 1408.22 | J165: 1416.28 | K165: 1428.07 | L165: 1404.5 | M165: 1384.65 | N165: 1240400 | O165: -0.23%
A166: 156 | B166: Finance | C166: UJJIVAN | D166: 284.15 | E166: 286.58 | F166: 279.07 | G166: 273.98 | H166: 266.47 | I166: 291.67 | J166: 299.18 | K166: 304.27 | L166: 294.1 | M166: 281.5 | N166: 6635200 | O166: 7.77%
A167: 157 | B167: Cement | C167: ULTRACEMCO | D167: 4598.45 | E167: 4599.15 | F167: 4575.30 | G167: 4552.15 | H167: 4528.30 | I167: 4622.30 | J167: 4646.15 | K167: 4669.30 | L167: 4623 | M167: 4576 | N167: 2236200 | O167: 1.76%
A168: 158 | B168: Banking | C168: UNIONBANK | D168: 75.00 | E168: 75.87 | F168: 73.53 | G168: 72.07 | H168: 69.73 | I168: 77.33 | J168: 79.67 | K168: 81.13 | L168: 78.2 | M168: 74.4 | N168: 33579000 | O168: 3.74%
A169: 159 | B169: Fertilisers | C169: UPL | D169: 655.75 | E169: 657.30 | F169: 644.95 | G169: 634.15 | H169: 621.80 | I169: 668.10 | J169: 680.45 | K169: 691.25 | L169: 669.65 | M169: 646.5 | N169: 15391800 | O169: -1.74%
A170: 160 | B170: Metals | C170: VEDL | D170: 163.55 | E170: 164.73 | F170: 161.32 | G170: 159.08 | H170: 155.67 | I170: 166.97 | J170: 170.38 | K170: 172.62 | L170: 168.15 | M170: 162.5 | N170: 62379000 | O170: 4.35%
A171: 161 | B171: Capital_Goods | C171: VOLTAS | D171: 578.05 | E171: 581.05 | F171: 572.50 | G171: 566.95 | H171: 558.40 | I171: 586.60 | J171: 595.15 | K171: 600.70 | L171: 589.6 | M171: 575.5 | N171: 4190000 | O171: 4.23%
A172: 162 | B172: Technology | C172: WIPRO | D172: 269.85 | E172: 268.13 | F172: 261.52 | G172: 253.18 | H172: 246.57 | I172: 276.47 | J172: 283.08 | K172: 291.42 | L172: 274.75 | M172: 259.8 | N172: 36873600 | O172: 1.18%
A173: 163 | B173: Banking | C173: YESBANK | D173: 85.90 | E173: 85.70 | F173: 81.15 | G173: 76.40 | H173: 71.85 | I173: 90.45 | J173: 95.00 | K173: 99.75 | L173: 90.25 | M173: 80.95 | N173: 149243600 | O173: 14.85%
A174: 164 | B174: Media | C174: ZEEL | D174: 360.20 | E174: 358.72 | F174: 351.58 | G174: 342.97 | H174: 335.83 | I174: 367.33 | J174: 374.47 | K174: 383.08 | L174: 365.85 | M174: 350.1 | N174: 25429300 | O174: 1.27%
A221: Pivot Point: This is trigger point for intra day buy/sell based on the price range of the previous day
A222: As per the tool,the trader should take BUY position just above Pivot and keep the stop loss of pivot point and the first target would be Resistance 1(R1)
A223: If R1 is crossed then R2 becomes the next target with stop loss of at R1
A224: Similarly if price goes below pivot point then the trader should sell and keep a stop loss of pivot point and the first target would be S1
A225: If S1 is crossed then S2 becomes the next target with stop loss of at S1
A227: Disclaimer:
A228: This document has been prepared by the Retail Research Desk of Asit C Mehta
A229: Investment Intermediates Ltd. and is meant for use of the recipient only
A230: and is not for circulation. This document is not to be reported or
A231: copied or made available to others. It should not be considered to be
A232: taken as an offer to sell or a solicitation to buy any security. The
A233: information contained herein is from sources believed reliable. We do
A234: not represent that it is accurate or complete and it should not be
A235: relied upon as such. We may from time to time have positions in and buy
A236: and sell securities referred to herein

Sheet Cash Intra
M5: Back to Main Page
A6: FOR INTRA DAY TRADING | K6: =Main!B10 -> 2019-07-19
A8: Sr.no | B8: Scrip | C8: CLOSE RATE | D8: Pivot Point | E8: Supports | H8: Resistances
C9: Point | E9: S1 | F9: S2 | G9: S3 | H9: R1 | I9: R2 | J9: R3 | K9: HIGH | L9: LOW | M9: Total Trade Quanity in Lakhs
A10: 1 | B10: Nifty 50 | C10: 11596.9 | D10: 11618.82 | E10: 11560.48 | F10: 11524.07 | G10: 11465.73 | H10: 11655.23 | I10: 11713.57 | J10: 11749.98 | K10: 11677.15 | L10: 11582.4
A11: 2 | B11: Nifty Bank | C11: 30430.6 | D11: 30526.18 | E11: 30283.02 | F11: 30135.43 | G11: 29892.27 | H11: 30673.77 | I11: 30916.93 | J11: 31064.52 | K11: 30769.35 | L11: 30378.6
A12: 3 | B12: Nifty CPSE | C12: 2103.8 | D12: 2126.45 | E12: 2078.45 | F12: 2053.10 | G12: 2005.10 | H12: 2151.80 | I12: 2199.80 | J12: 2225.15 | K12: 2174.45 | L12: 2101.1
A13: 4 | B13: Nifty Infra | C13: 3194.2 | D13: 3209.85 | E13: 3175.10 | F13: 3156.00 | G13: 3121.25 | H13: 3228.95 | I13: 3263.70 | J13: 3282.80 | K13: 3244.6 | L13: 3190.75
A14: 5 | B14: Nifty IT | C14: 15498.45 | D14: 15530.12 | E14: 15423.38 | F14: 15348.32 | G14: 15241.58 | H14: 15605.18 | I14: 15711.92 | J14: 15786.98 | K14: 15636.85 | L14: 15455.05
A15: 6 | B15: Nifty PSE | C15: 3349.1 | D15: 3376.90 | E15: 3318.20 | F15: 3287.30 | G15: 3228.60 | H15: 3407.80 | I15: 3466.50 | J15: 3497.40 | K15: 3435.6 | L15: 3346
A16: 7 | B16: Nifty Midcap 50 | C16: 4620.15 | D16: 4652.27 | E16: 4582.53 | F16: 4544.92 | G16: 4475.18 | H16: 4689.88 | I16: 4759.62 | J16: 4797.23 | K16: 4722 | L16: 4614.65
A17: 8 | B17: ABB | C17: 1454.1 | D17: 1466.37 | E17: 1432.73 | F17: 1411.37 | G17: 1377.73 | H17: 1487.73 | I17: 1521.37 | J17: 1542.73 | K17: 1500 | L17: 1445 | M17: 0.63333
A18: 9 | B18: ACC | C18: 1567.1 | D18: 1578.82 | E18: 1548.43 | F18: 1529.77 | G18: 1499.38 | H18: 1597.48 | I18: 1627.87 | J18: 1646.53 | K18: 1609.2 | L18: 1560.15 | M18: 14.75891
A19: 10 | B19: AUBANK | C19: 669.35 | D19: 670.48 | E19: 666.02 | F19: 662.68 | G19: 658.22 | H19: 673.82 | I19: 678.28 | J19: 681.62 | K19: 674.95 | L19: 667.15 | M19: 0.81812
A20: 11 | B20: ADANIPORTS | C20: 412.4 | D20: 414.15 | E20: 409.00 | F20: 405.60 | G20: 400.45 | H20: 417.55 | I20: 422.70 | J20: 426.10 | K20: 419.3 | L20: 410.75 | M20: 13.00071
A21: 12 | B21: ADANIPOWER | C21: 62.7 | D21: 63.35 | E21: 60.80 | F21: 58.90 | G21: 56.35 | H21: 65.25 | I21: 67.80 | J21: 69.70 | K21: 65.9 | L21: 61.45 | M21: 274.0317
A22: 13 | B22: ABCAPITAL | C22: 89.05 | D22: 89.45 | E22: 88.60 | F22: 88.15 | G22: 87.30 | H22: 89.90 | I22: 90.75 | J22: 91.20 | K22: 90.3 | L22: 89 | M22: 8.70912
A23: 14 | B23: ABFRL | C23: 203.05 | D23: 203.48 | E23: 202.37 | F23: 201.68 | G23: 200.57 | H23: 204.17 | I23: 205.28 | J23: 205.97 | K23: 204.6 | L23: 202.8 | M23: 2.88176
A24: 15 | B24: AJANTPHARM | C24: 922.95 | D24: 923.18 | E24: 914.37 | F24: 905.78 | G24: 896.97 | H24: 931.77 | I24: 940.58 | J24: 949.17 | K24: 932 | L24: 914.6 | M24: 0.99602
A25: 16 | B25: ALKEM | C25: 1758.05 | D25: 1754.83 | E25: 1735.67 | F25: 1713.28 | G25: 1694.12 | H25: 1777.22 | I25: 1796.38 | J25: 1818.77 | K25: 1774 | L25: 1732.45 | M25: 0.14113
A26: 17 | B26: AMARAJABAT | C26: 640.6 | D26: 643.25 | E26: 633.50 | F26: 626.40 | G26: 616.65 | H26: 650.35 | I26: 660.10 | J26: 667.20 | K26: 653 | L26: 636.15 | M26: 2.51173
A27: 18 | B27: AMBUJACEM | C27: 216.95 | D27: 217.75 | E27: 214.30 | F27: 211.65 | G27: 208.20 | H27: 220.40 | I27: 223.85 | J27: 226.50 | K27: 221.2 | L27: 215.1 | M27: 36.14814
A28: 19 | B28: APOLLOHOSP | C28: 1388.05 | D28: 1384.38 | E28: 1368.77 | F28: 1349.48 | G28: 1333.87 | H28: 1403.67 | I28: 1419.28 | J28: 1438.57 | K28: 1400 | L28: 1365.1 | M28: 4.64854
A29: 20 | B29: APOLLOTYRE | C29: 179.25 | D29: 181.33 | E29: 176.32 | F29: 173.38 | G29: 168.37 | H29: 184.27 | I29: 189.28 | J29: 192.22 | K29: 186.35 | L29: 178.4 | M29: 20.57799
A30: 21 | B30: ASHOKLEY | C30: 81.45 | D30: 82.65 | E30: 79.85 | F30: 78.25 | G30: 75.45 | H30: 84.25 | I30: 87.05 | J30: 88.65 | K30: 85.45 | L30: 81.05 | M30: 244.05105
A31: 22 | B31: ASIANPAINT | C31: 1384.95 | D31: 1385.83 | E31: 1376.32 | F31: 1367.68 | G31: 1358.17 | H31: 1394.47 | I31: 1403.98 | J31: 1412.62 | K31: 1395.35 | L31: 1377.2 | M31: 8.02222
A32: 23 | B32: AUROPHARMA | C32: 569.9 | D32: 569.98 | E32: 562.02 | F32: 554.13 | G32: 546.17 | H32: 577.87 | I32: 585.83 | J32: 593.72 | K32: 577.95 | L32: 562.1 | M32: 24.24281
A33: 24 | B33: DMART | C33: 1439.4 | D33: 1445.80 | E33: 1427.60 | F33: 1415.80 | G33: 1397.60 | H33: 1457.60 | I33: 1475.80 | J33: 1487.60 | K33: 1464 | L33: 1434 | M33: 3.06435
A34: 25 | B34: AXISBANK | C34: 740.4 | D34: 743.33 | E34: 731.67 | F34: 722.93 | G34: 711.27 | H34: 752.07 | I34: 763.73 | J34: 772.47 | K34: 755 | L34: 734.6 | M34: 112.83488
A35: 26 | B35: BAJAJ-AUTO | C35: 2630.8 | D35: 2654.58 | E35: 2597.32 | F35: 2563.83 | G35: 2506.57 | H35: 2688.07 | I35: 2745.33 | J35: 2778.82 | K35: 2711.85 | L35: 2621.1 | M35: 3.65949
A36: 27 | B36: BAJFINANCE | C36: 3467.65 | D36: 3477.22 | E36: 3434.43 | F36: 3401.22 | G36: 3358.43 | H36: 3510.43 | I36: 3553.22 | J36: 3586.43 | K36: 3520 | L36: 3444 | M36: 13.20464
A37: 28 | B37: BAJAJFINSV | C37: 7847.65 | D37: 7855.18 | E37: 7802.47 | F37: 7757.28 | G37: 7704.57 | H37: 7900.37 | I37: 7953.08 | J37: 7998.27 | K37: 7907.9 | L37: 7810 | M37: 1.34466
A38: 29 | B38: BAJAJHLDNG | C38: 3523.4 | D38: 3536.05 | E38: 3507.45 | F38: 3491.50 | G38: 3462.90 | H38: 3552.00 | I38: 3580.60 | J38: 3596.55 | K38: 3564.65 | L38: 3520.1 | M38: 0.13972
A39: 30 | B39: BALKRISIND | C39: 751 | D39: 754.32 | E39: 742.68 | F39: 734.37 | G39: 722.73 | H39: 762.63 | I39: 774.27 | J39: 782.58 | K39: 765.95 | L39: 746 | M39: 5.76464
A40: 31 | B40: BANDHANBNK | C40: 528.8 | D40: 533.15 | E40: 522.20 | F40: 515.60 | G40: 504.65 | H40: 539.75 | I40: 550.70 | J40: 557.30 | K40: 544.1 | L40: 526.55 | M40: 3.84789
A41: 32 | B41: BANKBARODA | C41: 121.35 | D41: 123.25 | E41: 119.15 | F41: 116.95 | G41: 112.85 | H41: 125.45 | I41: 129.55 | J41: 131.75 | K41: 127.35 | L41: 121.05 | M41: 212.15697
A42: 33 | B42: BANKINDIA | C42: 82.15 | D42: 83.08 | E42: 80.67 | F42: 79.18 | G42: 76.77 | H42: 84.57 | I42: 86.98 | J42: 88.47 | K42: 85.5 | L42: 81.6 | M42: 93.21591
A43: 34 | B43: BATAINDIA | C43: 1341.65 | D43: 1344.23 | E43: 1329.47 | F43: 1317.28 | G43: 1302.52 | H43: 1356.42 | I43: 1371.18 | J43: 1383.37 | K43: 1359 | L43: 1332.05 | M43: 6.64401
A44: 35 | B44: BERGEPAINT | C44: 313.3 | D44: 314.00 | E44: 311.30 | F44: 309.30 | G44: 306.60 | H44: 316.00 | I44: 318.70 | J44: 320.70 | K44: 316.7 | L44: 312 | M44: 3.83233
A45: 36 | B45: BEL | C45: 96.55 | D45: 98.78 | E45: 93.67 | F45: 90.78 | G45: 85.67 | H45: 101.67 | I45: 106.78 | J45: 109.67 | K45: 103.9 | L45: 95.9 | M45: 144.19051
A46: 37 | B46: BHARATFORG | C46: 440.85 | D46: 447.35 | E46: 431.90 | F46: 422.95 | G46: 407.50 | H46: 456.30 | I46: 471.75 | J46: 480.70 | K46: 462.8 | L46: 438.4 | M46: 24.81984
A47: 38 | B47: BHEL | C47: 64 | D47: 64.00 | E47: 63.50 | F47: 63.00 | G47: 62.50 | H47: 64.50 | I47: 65.00 | J47: 65.50 | K47: 64.5 | L47: 63.5 | M47: 104.55841
A48: 39 | B48: BPCL | C48: 349.25 | D48: 350.82 | E48: 346.28 | F48: 343.32 | G48: 338.78 | H48: 353.78 | I48: 358.32 | J48: 361.28 | K48: 355.35 | L48: 347.85 | M48: 45.1645
A49: 40 | B49: BHARTIARTL | C49: 342.5 | D49: 344.10 | E49: 337.00 | F49: 331.50 | G49: 324.40 | H49: 349.60 | I49: 356.70 | J49: 362.20 | K49: 351.2 | L49: 338.6 | M49: 36.42763
A50: 41 | B50: INFRATEL | C50: 263.15 | D50: 263.13 | E50: 261.52 | F50: 259.88 | G50: 258.27 | H50: 264.77 | I50: 266.38 | J50: 268.02 | K50: 264.75 | L50: 261.5 | M50: 14.11051
A51: 42 | B51: BIOCON | C51: 263.05 | D51: 263.02 | E51: 260.53 | F51: 258.02 | G51: 255.53 | H51: 265.53 | I51: 268.02 | J51: 270.53 | K51: 265.5 | L51: 260.5 | M51: 27.02868
A52: 43 | B52: BBTC | C52: 912.75 | D52: 918.92 | E52: 903.83 | F52: 894.92 | G52: 879.83 | H52: 927.83 | I52: 942.92 | J52: 951.83 | K52: 934 | L52: 910 | M52: 1.0468
A53: 44 | B53: BOSCHLTD | C53: 15570.35 | D53: 15694.78 | E53: 15387.57 | F53: 15204.78 | G53: 14897.57 | H53: 15877.57 | I53: 16184.78 | J53: 16367.57 | K53: 16002 | L53: 15512 | M53: 0.09671
A54: 45 | B54: BRITANNIA | C54: 2820.85 | D54: 2817.47 | E54: 2790.93 | F54: 2761.02 | G54: 2734.48 | H54: 2847.38 | I54: 2873.92 | J54: 2903.83 | K54: 2844 | L54: 2787.55 | M54: 4.77907
A55: 46 | B55: CADILAHC | C55: 231.15 | D55: 234.30 | E55: 225.85 | F55: 220.55 | G55: 212.10 | H55: 239.60 | I55: 248.05 | J55: 253.35 | K55: 242.75 | L55: 229 | M55: 12.39743
A56: 47 | B56: CANBK | C56: 268.5 | D56: 272.13 | E56: 263.62 | F56: 258.73 | G56: 250.22 | H56: 277.02 | I56: 285.53 | J56: 290.42 | K56: 280.65 | L56: 267.25 | M56: 53.46987
A57: 48 | B57: CASTROLIND | C57: 130.05 | D57: 130.95 | E57: 128.80 | F57: 127.55 | G57: 125.40 | H57: 132.20 | I57: 134.35 | J57: 135.60 | K57: 133.1 | L57: 129.7 | M57: 14.02837
A58: 49 | B58: CHOLAFIN | C58: 270.8 | D58: 271.03 | E58: 264.72 | F58: 258.63 | G58: 252.32 | H58: 277.12 | I58: 283.43 | J58: 289.52 | K58: 277.35 | L58: 264.95 | M58: 9.53968
A59: 50 | B59: CIPLA | C59: 547 | D59: 550.50 | E59: 542.00 | F59: 537.00 | G59: 528.50 | H59: 555.50 | I59: 564.00 | J59: 569.00 | K59: 559 | L59: 545.5 | M59: 13.55289
A60: 51 | B60: COALINDIA | C60: 220.3 | D60: 223.57 | E60: 216.23 | F60: 212.17 | G60: 204.83 | H60: 227.63 | I60: 234.97 | J60: 239.03 | K60: 230.9 | L60: 219.5 | M60: 87.29774
A61: 52 | B61: COLPAL | C61: 1203.65 | D61: 1192.83 | E61: 1163.97 | F61: 1124.28 | G61: 1095.42 | H61: 1232.52 | I61: 1261.38 | J61: 1301.07 | K61: 1221.7 | L61: 1153.15 | M61: 25.17903
A62: 53 | B62: CONCOR | C62: 538.95 | D62: 542.63 | E62: 532.32 | F62: 525.68 | G62: 515.37 | H62: 549.27 | I62: 559.58 | J62: 566.22 | K62: 552.95 | L62: 536 | M62: 7.23958
A63: 54 | B63: COROMANDEL | C63: 376.15 | D63: 375.65 | E63: 366.35 | F63: 356.55 | G63: 347.25 | H63: 385.45 | I63: 394.75 | J63: 404.55 | K63: 384.95 | L63: 365.85 | M63: 3.01724
A64: 55 | B64: CROMPTON | C64: 233.1 | D64: 232.65 | E64: 228.65 | F64: 224.20 | G64: 220.20 | H64: 237.10 | I64: 241.10 | J64: 245.55 | K64: 236.65 | L64: 228.2 | M64: 11.90667
A65: 56 | B65: CUMMINSIND | C65: 739.5 | D65: 743.98 | E65: 732.07 | F65: 724.63 | G65: 712.72 | H65: 751.42 | I65: 763.33 | J65: 770.77 | K65: 755.9 | L65: 736.55 | M65: 1.14109
A66: 57 | B66: DLF | C66: 183.2 | D66: 185.70 | E66: 180.05 | F66: 176.90 | G66: 171.25 | H66: 188.85 | I66: 194.50 | J66: 197.65 | K66: 191.35 | L66: 182.55 | M66: 63.1589
A67: 58 | B67: DABUR | C67: 428.9 | D67: 430.27 | E67: 425.28 | F67: 421.67 | G67: 416.68 | H67: 433.88 | I67: 438.87 | J67: 442.48 | K67: 435.25 | L67: 426.65 | M67: 34.32159
A68: 59 | B68: DHFL | C68: 56.25 | D68: 56.13 | E68: 53.67 | F68: 51.08 | G68: 48.62 | H68: 58.72 | I68: 61.18 | J68: 63.77 | K68: 58.6 | L68: 53.55 | M68: 463.89916
A69: 60 | B69: DBL | C69: 412.15 | D69: 415.70 | E69: 407.60 | F69: 403.05 | G69: 394.95 | H69: 420.25 | I69: 428.35 | J69: 432.90 | K69: 423.8 | L69: 411.15 | M69: 1.30933
A70: 61 | B70: DISHTV | C70: 34.15 | D70: 33.85 | E70: 32.90 | F70: 31.65 | G70: 30.70 | H70: 35.10 | I70: 36.05 | J70: 37.30 | K70: 34.8 | L70: 32.6 | M70: 456.20901
A71: 62 | B71: DIVISLAB | C71: 1641.9 | D71: 1646.32 | E71: 1631.13 | F71: 1620.37 | G71: 1605.18 | H71: 1657.08 | I71: 1672.27 | J71: 1683.03 | K71: 1661.5 | L71: 1635.55 | M71: 7.69446
A72: 63 | B72: DRREDDY | C72: 2655.55 | D72: 2655.13 | E72: 2630.42 | F72: 2605.28 | G72: 2580.57 | H72: 2680.27 | I72: 2704.98 | J72: 2730.12 | K72: 2679.85 | L72: 2630 | M72: 4.34455
A73: 64 | B73: EDELWEISS | C73: 158.8 | D73: 159.27 | E73: 156.33 | F73: 153.87 | G73: 150.93 | H73: 161.73 | I73: 164.67 | J73: 167.13 | K73: 162.2 | L73: 156.8 | M73: 17.98498
A74: 65 | B74: EICHERMOT | C74: 18406 | D74: 18445.73 | E74: 18310.27 | F74: 18214.53 | G74: 18079.07 | H74: 18541.47 | I74: 18676.93 | J74: 18772.67 | K74: 18581.2 | L74: 18350 | M74: 0.68383
A75: 66 | B75: ENDURANCE | C75: 996.85 | D75: 984.83 | E75: 965.27 | F75: 933.68 | G75: 914.12 | H75: 1016.42 | I75: 1035.98 | J75: 1067.57 | K75: 1004.4 | L75: 953.25 | M75: 0.35878
A76: 67 | B76: ENGINERSIN | C76: 105.2 | D76: 106.40 | E76: 103.60 | F76: 102.00 | G76: 99.20 | H76: 108.00 | I76: 110.80 | J76: 112.40 | K76: 109.2 | L76: 104.8 | M76: 14.47617
A77: 68 | B77: ESCORTS | C77: 529.15 | D77: 533.30 | E77: 522.85 | F77: 516.55 | G77: 506.10 | H77: 539.60 | I77: 550.05 | J77: 556.35 | K77: 543.75 | L77: 527 | M77: 15.44366
A78: 69 | B78: EXIDEIND | C78: 201.45 | D78: 202.22 | E78: 198.28 | F78: 195.12 | G78: 191.18 | H78: 205.38 | I78: 209.32 | J78: 212.48 | K78: 206.15 | L78: 199.05 | M78: 13.5867
A79: 70 | B79: FEDERALBNK | C79: 99.15 | D79: 100.43 | E79: 97.52 | F79: 95.88 | G79: 92.97 | H79: 102.07 | I79: 104.98 | J79: 106.62 | K79: 103.35 | L79: 98.8 | M79: 158.69467
A80: 71 | B80: FCONSUMER | C80: 36.1 | D80: 36.43 | E80: 35.67 | F80: 35.23 | G80: 34.47 | H80: 36.87 | I80: 37.63 | J80: 38.07 | K80: 37.2 | L80: 36 | M80: 6.44941
A81: 72 | B81: FRETAIL | C81: 424.05 | D81: 426.00 | E81: 418.55 | F81: 413.05 | G81: 405.60 | H81: 431.50 | I81: 438.95 | J81: 444.45 | K81: 433.45 | L81: 420.5 | M81: 0.69675
A82: 73 | B82: GAIL | C82: 141.95 | D82: 142.38 | E82: 140.57 | F82: 139.18 | G82: 137.37 | H82: 143.77 | I82: 145.58 | J82: 146.97 | K82: 144.2 | L82: 141 | M82: 63.15213
A83: 74 | B83: GMRINFRA | C83: 14.85 | D83: 14.90 | E83: 14.65 | F83: 14.45 | G83: 14.20 | H83: 15.10 | I83: 15.35 | J83: 15.55 | K83: 15.15 | L83: 14.7 | M83: 92.67276
A84: 75 | B84: GICRE | C84: 225.5 | D84: 226.17 | E84: 223.83 | F84: 222.17 | G84: 219.83 | H84: 227.83 | I84: 230.17 | J84: 231.83 | K84: 228.5 | L84: 224.5 | M84: 0.79953
A85: 76 | B85: GSKCONS | C85: 7474.05 | D85: 7474.10 | E85: 7408.20 | F85: 7342.35 | G85: 7276.45 | H85: 7539.95 | I85: 7605.85 | J85: 7671.70 | K85: 7540 | L85: 7408.25 | M85: 0.13274
A86: 77 | B86: GLENMARK | C86: 440.85 | D86: 442.53 | E86: 436.57 | F86: 432.28 | G86: 426.32 | H86: 446.82 | I86: 452.78 | J86: 457.07 | K86: 448.5 | L86: 438.25 | M86: 7.83574
A87: 78 | B87: GODREJAGRO | C87: 487.9 | D87: 489.77 | E87: 484.63 | F87: 481.37 | G87: 476.23 | H87: 493.03 | I87: 498.17 | J87: 501.43 | K87: 494.9 | L87: 486.5 | M87: 1.28053
A88: 79 | B88: GODREJCP | C88: 644.1 | D88: 645.00 | E88: 638.10 | F88: 632.10 | G88: 625.20 | H88: 651.00 | I88: 657.90 | J88: 663.90 | K88: 651.9 | L88: 639 | M88: 6.53799
A89: 80 | B89: GODREJIND | C89: 483.7 | D89: 481.20 | E89: 475.50 | F89: 467.30 | G89: 461.60 | H89: 489.40 | I89: 495.10 | J89: 503.30 | K89: 486.9 | L89: 473 | M89: 1.47075
A90: 81 | B90: GRAPHITE | C90: 285.75 | D90: 290.07 | E90: 276.68 | F90: 267.62 | G90: 254.23 | H90: 299.13 | I90: 312.52 | J90: 321.58 | K90: 303.45 | L90: 281 | M90: 11.86003
A91: 82 | B91: GRASIM | C91: 907.7 | D91: 913.20 | E91: 899.95 | F91: 892.20 | G91: 878.95 | H91: 920.95 | I91: 934.20 | J91: 941.95 | K91: 926.45 | L91: 905.45 | M91: 6.92689
A92: 83 | B92: GRUH | C92: 282.3 | D92: 282.98 | E92: 280.42 | F92: 278.53 | G92: 275.97 | H92: 284.87 | I92: 287.43 | J92: 289.32 | K92: 285.55 | L92: 281.1 | M92: 5.41557
A93: 84 | B93: GSPL | C93: 208.65 | D93: 209.05 | E93: 203.70 | F93: 198.75 | G93: 193.40 | H93: 214.00 | I93: 219.35 | J93: 224.30 | K93: 214.4 | L93: 204.1 | M93: 2.54078
A94: 85 | B94: HEG | C94: 1113.75 | D94: 1139.25 | E94: 1084.50 | F94: 1055.25 | G94: 1000.50 | H94: 1168.50 | I94: 1223.25 | J94: 1252.50 | K94: 1194 | L94: 1110 | M94: 4.21309
A95: 86 | B95: HCLTECH | C95: 1018.55 | D95: 1023.85 | E95: 1010.70 | F95: 1002.85 | G95: 989.70 | H95: 1031.70 | I95: 1044.85 | J95: 1052.70 | K95: 1037 | L95: 1016 | M95: 13.0415
A96: 87 | B96: HDFCAMC | C96: 2170 | D96: 2142.43 | E96: 2092.87 | F96: 2015.73 | G96: 1966.17 | H96: 2219.57 | I96: 2269.13 | J96: 2346.27 | K96: 2192 | L96: 2065.3 | M96: 11.32963
A97: 88 | B97: HDFCBANK | C97: 2411.9 | D97: 2414.27 | E97: 2399.53 | F97: 2387.17 | G97: 2372.43 | H97: 2426.63 | I97: 2441.37 | J97: 2453.73 | K97: 2429 | L97: 2401.9 | M97: 27.00646
A98: 89 | B98: HDFCLIFE | C98: 503.55 | D98: 503.85 | E98: 497.20 | F98: 490.85 | G98: 484.20 | H98: 510.20 | I98: 516.85 | J98: 523.20 | K98: 510.5 | L98: 497.5 | M98: 31.15748
A99: 90 | B99: HAVELLS | C99: 717.55 | D99: 721.60 | E99: 708.90 | F99: 700.25 | G99: 687.55 | H99: 730.25 | I99: 742.95 | J99: 751.60 | K99: 734.3 | L99: 712.95 | M99: 11.2003
A100: 91 | B100: HEROMOTOCO | C100: 2479.45 | D100: 2500.37 | E100: 2445.73 | F100: 2412.02 | G100: 2357.38 | H100: 2534.08 | I100: 2588.72 | J100: 2622.43 | K100: 2555 | L100: 2466.65 | M100: 9.77841
A101: 92 | B101: HEXAWARE | C101: 360.9 | D101: 359.27 | E101: 352.13 | F101: 343.37 | G101: 336.23 | H101: 368.03 | I101: 375.17 | J101: 383.93 | K101: 366.4 | L101: 350.5 | M101: 9.94239
A102: 93 | B102: HINDALCO | C102: 200.55 | D102: 200.93 | E102: 198.97 | F102: 197.38 | G102: 195.42 | H102: 202.52 | I102: 204.48 | J102: 206.07 | K102: 202.9 | L102: 199.35 | M102: 51.74253
A103: 94 | B103: HINDPETRO | C103: 291.2 | D103: 293.38 | E103: 288.47 | F103: 285.73 | G103: 280.82 | H103: 296.12 | I103: 301.03 | J103: 303.77 | K103: 298.3 | L103: 290.65 | M103: 27.42176
A104: 95 | B104: HINDUNILVR | C104: 1739.15 | D104: 1738.05 | E104: 1710.10 | F104: 1681.05 | G104: 1653.10 | H104: 1767.10 | I104: 1795.05 | J104: 1824.10 | K104: 1766 | L104: 1709 | M104: 10.06299
A105: 96 | B105: HINDZINC | C105: 225.1 | D105: 226.68 | E105: 222.82 | F105: 220.53 | G105: 216.67 | H105: 228.97 | I105: 232.83 | J105: 235.12 | K105: 230.55 | L105: 224.4 | M105: 4.9084
A106: 97 | B106: HUDCO | C106: 37.8 | D106: 38.03 | E106: 37.47 | F106: 37.13 | G106: 36.57 | H106: 38.37 | I106: 38.93 | J106: 39.27 | K106: 38.6 | L106: 37.7 | M106: 5.99932
A107: 98 | B107: HDFC | C107: 2345.15 | D107: 2329.52 | E107: 2301.18 | F107: 2257.22 | G107: 2228.88 | H107: 2373.48 | I107: 2401.82 | J107: 2445.78 | K107: 2357.85 | L107: 2285.55 | M107: 40.47413
A108: 99 | B108: ICICIBANK | C108: 418.65 | D108: 420.55 | E108: 415.60 | F108: 412.55 | G108: 407.60 | H108: 423.60 | I108: 428.55 | J108: 431.60 | K108: 425.5 | L108: 417.5 | M108: 106.51654
A109: 100 | B109: ICICIGI | C109: 1090.2 | D109: 1072.08 | E109: 1045.17 | F109: 1000.13 | G109: 973.22 | H109: 1117.12 | I109: 1144.03 | J109: 1189.07 | K109: 1099 | L109: 1027.05 | M109: 5.02484
A110: 101 | B110: ICICIPRULI | C110: 383.7 | D110: 386.20 | E110: 380.00 | F110: 376.30 | G110: 370.10 | H110: 389.90 | I110: 396.10 | J110: 399.80 | K110: 392.4 | L110: 382.5 | M110: 12.55005
A111: 102 | B111: IDBI | C111: 34.45 | D111: 34.60 | E111: 34.15 | F111: 33.85 | G111: 33.40 | H111: 34.90 | I111: 35.35 | J111: 35.65 | K111: 35.05 | L111: 34.3 | M111: 20.88363
A112: 103 | B112: IDFCFIRSTB | C112: 41.8 | D112: 42.13 | E112: 41.27 | F112: 40.73 | G112: 39.87 | H112: 42.67 | I112: 43.53 | J112: 44.07 | K112: 43 | L112: 41.6 | M112: 110.22699
A113: 104 | B113: ITC | C113: 273 | D113: 273.47 | E113: 271.83 | F113: 270.67 | G113: 269.03 | H113: 274.63 | I113: 276.27 | J113: 277.43 | K113: 275.1 | L113: 272.3 | M113: 90.96757
A114: 105 | B114: IBULHSGFIN | C114: 659.1 | D114: 662.77 | E114: 647.33 | F114: 635.57 | G114: 620.13 | H114: 674.53 | I114: 689.97 | J114: 701.73 | K114: 678.2 | L114: 651 | M114: 95.12911
A115: 106 | B115: IBVENTURES | C115: 290.5 | D115: 290.37 | E115: 285.88 | F115: 281.27 | G115: 276.78 | H115: 294.98 | I115: 299.47 | J115: 304.08 | K115: 294.85 | L115: 285.75 | M115: 5.8152
A116: 107 | B116: INDIANB | C116: 226.3 | D116: 228.23 | E116: 223.07 | F116: 219.83 | G116: 214.67 | H116: 231.47 | I116: 236.63 | J116: 239.87 | K116: 233.4 | L116: 225 | M116: 5.17966
A117: 108 | B117: INDHOTEL | C117: 147.9 | D117: 147.87 | E117: 146.33 | F117: 144.77 | G117: 143.23 | H117: 149.43 | I117: 150.97 | J117: 152.53 | K117: 149.4 | L117: 146.3 | M117: 3.42317
A118: 109 | B118: IOC | C118: 147.6 | D118: 147.22 | E118: 145.58 | F118: 143.57 | G118: 141.93 | H118: 149.23 | I118: 150.87 | J118: 152.88 | K118: 148.85 | L118: 145.2 | M118: 89.34708
A119: 110 | B119: IGL | C119: 319.6 | D119: 319.50 | E119: 317.10 | F119: 314.60 | G119: 312.20 | H119: 322.00 | I119: 324.40 | J119: 326.90 | K119: 321.9 | L119: 317 | M119: 11.85578
A120: 111 | B120: INDUSINDBK | C120: 1471.45 | D120: 1480.93 | E120: 1458.87 | F120: 1446.28 | G120: 1424.22 | H120: 1493.52 | I120: 1515.58 | J120: 1528.17 | K120: 1503 | L120: 1468.35 | M120: 24.04071
A121: 112 | B121: NAUKRI | C121: 2215.75 | D121: 2228.28 | E121: 2197.57 | F121: 2179.38 | G121: 2148.67 | H121: 2246.47 | I121: 2277.18 | J121: 2295.37 | K121: 2259 | L121: 2210.1 | M121: 0.41448
A122: 113 | B122: INFY | C122: 792.7 | D122: 792.47 | E122: 786.43 | F122: 780.17 | G122: 774.13 | H122: 798.73 | I122: 804.77 | J122: 811.03 | K122: 798.5 | L122: 786.2 | M122: 65.34471
A123: 114 | B123: INDIGO | C123: 1458.9 | D123: 1462.27 | E123: 1442.23 | F123: 1425.57 | G123: 1405.53 | H123: 1478.93 | I123: 1498.97 | J123: 1515.63 | K123: 1482.3 | L123: 1445.6 | M123: 27.25626
A124: 115 | B124: JSWENERGY | C124: 71.75 | D124: 71.67 | E124: 70.93 | F124: 70.12 | G124: 69.38 | H124: 72.48 | I124: 73.22 | J124: 74.03 | K124: 72.4 | L124: 70.85 | M124: 5.38744
A125: 116 | B125: JSWSTEEL | C125: 266.1 | D125: 267.25 | E125: 263.75 | F125: 261.40 | G125: 257.90 | H125: 269.60 | I125: 273.10 | J125: 275.45 | K125: 270.75 | L125: 264.9 | M125: 36.27824
A126: 117 | B126: JINDALSTEL | C126: 142.8 | D126: 142.85 | E126: 140.50 | F126: 138.20 | G126: 135.85 | H126: 145.15 | I126: 147.50 | J126: 149.80 | K126: 145.2 | L126: 140.55 | M126: 72.43163
A127: 118 | B127: JUBLFOOD | C127: 1245.85 | D127: 1248.95 | E127: 1226.90 | F127: 1207.95 | G127: 1185.90 | H127: 1267.90 | I127: 1289.95 | J127: 1308.90 | K127: 1271 | L127: 1230 | M127: 9.02043
A128: 119 | B128: JUBILANT | C128: 453.7 | D128: 457.77 | E128: 447.38 | F128: 441.07 | G128: 430.68 | H128: 464.08 | I128: 474.47 | J128: 480.78 | K128: 468.15 | L128: 451.45 | M128: 2.07799
A129: 120 | B129: KOTAKBANK | C129: 1538.25 | D129: 1535.90 | E129: 1528.55 | F129: 1518.85 | G129: 1511.50 | H129: 1545.60 | I129: 1552.95 | J129: 1562.65 | K129: 1543.25 | L129: 1526.2 | M129: 22.6682
A130: 121 | B130: L&TFH | C130: 117.2 | D130: 118.75 | E130: 115.25 | F130: 113.30 | G130: 109.80 | H130: 120.70 | I130: 124.20 | J130: 126.15 | K130: 122.25 | L130: 116.8 | M130: 85.98183
A131: 122 | B131: LTTS | C131: 1660.45 | D131: 1656.82 | E131: 1643.63 | F131: 1626.82 | G131: 1613.63 | H131: 1673.63 | I131: 1686.82 | J131: 1703.63 | K131: 1670 | L131: 1640 | M131: 0.39459
A132: 123 | B132: LICHSGFIN | C132: 533.95 | D132: 538.65 | E132: 527.30 | F132: 520.65 | G132: 509.30 | H132: 545.30 | I132: 556.65 | J132: 563.30 | K132: 550 | L132: 532 | M132: 14.12175
A133: 124 | B133: LTI | C133: 1576.25 | D133: 1596.00 | E133: 1553.50 | F133: 1530.75 | G133: 1488.25 | H133: 1618.75 | I133: 1661.25 | J133: 1684.00 | K133: 1638.5 | L133: 1573.25 | M133: 1.38663
A134: 125 | B134: LT | C134: 1435.2 | D134: 1440.72 | E134: 1426.48 | F134: 1417.77 | G134: 1403.53 | H134: 1449.43 | I134: 1463.67 | J134: 1472.38 | K134: 1454.95 | L134: 1432 | M134: 23.42881
A135: 126 | B135: LUPIN | C135: 756.15 | D135: 761.28 | E135: 747.57 | F135: 738.98 | G135: 725.27 | H135: 769.87 | I135: 783.58 | J135: 792.17 | K135: 775 | L135: 752.7 | M135: 6.87673
A136: 127 | B136: MRF | C136: 55538.4 | D136: 55732.40 | E136: 55212.05 | F136: 54885.70 | G136: 54365.35 | H136: 56058.75 | I136: 56579.10 | J136: 56905.45 | K136: 56252.75 | L136: 55406.05 | M136: 0.03075
A137: 128 | B137: MGL | C137: 792.3 | D137: 794.52 | E137: 787.03 | F137: 781.77 | G137: 774.28 | H137: 799.78 | I137: 807.27 | J137: 812.53 | K137: 802 | L137: 789.25 | M137: 1.51314
A138: 129 | B138: M&MFIN | C138: 377.4 | D138: 379.28 | E138: 373.72 | F138: 370.03 | G138: 364.47 | H138: 382.97 | I138: 388.53 | J138: 392.22 | K138: 384.85 | L138: 375.6 | M138: 7.36939
A139: 130 | B139: M&M | C139: 597.4 | D139: 602.95 | E139: 589.45 | F139: 581.50 | G139: 568.00 | H139: 610.90 | I139: 624.40 | J139: 632.35 | K139: 616.45 | L139: 595 | M139: 49.15489
A140: 131 | B140: MANAPPURAM | C140: 129.25 | D140: 130.50 | E140: 127.35 | F140: 125.45 | G140: 122.30 | H140: 132.40 | I140: 135.55 | J140: 137.45 | K140: 133.65 | L140: 128.6 | M140: 41.35402
A141: 132 | B141: MRPL | C141: 58 | D141: 58.45 | E141: 57.30 | F141: 56.60 | G141: 55.45 | H141: 59.15 | I141: 60.30 | J141: 61.00 | K141: 59.6 | L141: 57.75 | M141: 2.79212
A142: 133 | B142: MARICO | C142: 370.35 | D142: 370.88 | E142: 368.62 | F142: 366.88 | G142: 364.62 | H142: 372.62 | I142: 374.88 | J142: 376.62 | K142: 373.15 | L142: 369.15 | M142: 10.67632
A143: 134 | B143: MARUTI | C143: 5882.35 | D143: 5931.85 | E143: 5808.00 | F143: 5733.65 | G143: 5609.80 | H143: 6006.20 | I143: 6130.05 | J143: 6204.40 | K143: 6055.7 | L143: 5857.5 | M143: 10.97857
A144: 135 | B144: MFSL | C144: 422.35 | D144: 424.50 | E144: 416.70 | F144: 411.05 | G144: 403.25 | H144: 430.15 | I144: 437.95 | J144: 443.60 | K144: 432.3 | L144: 418.85 | M144: 4.06018
A145: 136 | B145: MINDTREE | C145: 690.65 | D145: 695.95 | E145: 665.65 | F145: 640.65 | G145: 610.35 | H145: 720.95 | I145: 751.25 | J145: 776.25 | K145: 726.25 | L145: 670.95 | M145: 126.37247
A146: 137 | B146: MOTHERSUMI | C146: 116.5 | D146: 116.65 | E146: 115.00 | F146: 113.50 | G146: 111.85 | H146: 118.15 | I146: 119.80 | J146: 121.30 | K146: 118.3 | L146: 115.15 | M146: 47.90366
A147: 138 | B147: MPHASIS | C147: 933.95 | D147: 930.03 | E147: 919.17 | F147: 904.38 | G147: 893.52 | H147: 944.82 | I147: 955.68 | J147: 970.47 | K147: 940.9 | L147: 915.25 | M147: 1.86943
A148: 139 | B148: MUTHOOTFIN | C148: 625.95 | D148: 628.08 | E148: 621.12 | F148: 616.28 | G148: 609.32 | H148: 632.92 | I148: 639.88 | J148: 644.72 | K148: 635.05 | L148: 623.25 | M148: 4.39237
A149: 140 | B149: NATCOPHARM | C149: 511.85 | D149: 513.20 | E149: 507.00 | F149: 502.15 | G149: 495.95 | H149: 518.05 | I149: 524.25 | J149: 529.10 | K149: 519.4 | L149: 508.35 | M149: 0.76328
A150: 141 | B150: NBCC | C150: 52.1 | D150: 52.73 | E150: 51.22 | F150: 50.33 | G150: 48.82 | H150: 53.62 | I150: 55.13 | J150: 56.02 | K150: 54.25 | L150: 51.85 | M150: 82.25962
A151: 142 | B151: NHPC | C151: 23.4 | D151: 23.53 | E151: 23.22 | F151: 23.03 | G151: 22.72 | H151: 23.72 | I151: 24.03 | J151: 24.22 | K151: 23.85 | L151: 23.35 | M151: 12.02199
A152: 143 | B152: NMDC | C152: 114.65 | D152: 114.75 | E152: 113.30 | F152: 111.95 | G152: 110.50 | H152: 116.10 | I152: 117.55 | J152: 118.90 | K152: 116.2 | L152: 113.4 | M152: 73.06141
A153: 144 | B153: NTPC | C153: 127.05 | D153: 128.13 | E153: 125.32 | F153: 123.58 | G153: 120.77 | H153: 129.87 | I153: 132.68 | J153: 134.42 | K153: 130.95 | L153: 126.4 | M153: 180.49102
A154: 145 | B154: NATIONALUM | C154: 46.45 | D154: 46.75 | E154: 46.05 | F154: 45.65 | G154: 44.95 | H154: 47.15 | I154: 47.85 | J154: 48.25 | K154: 47.45 | L154: 46.35 | M154: 54.67934
A155: 146 | B155: OBEROIRLTY | C155: 569.6 | D155: 569.58 | E155: 559.22 | F155: 548.83 | G155: 538.47 | H155: 579.97 | I155: 590.33 | J155: 600.72 | K155: 579.95 | L155: 559.2 | M155: 5.50036
A156: 147 | B156: ONGC | C156: 143.4 | D156: 145.75 | E156: 140.70 | F156: 138.00 | G156: 132.95 | H156: 148.45 | I156: 153.50 | J156: 156.20 | K156: 150.8 | L156: 143.05 | M156: 159.71004
A157: 148 | B157: OIL | C157: 163.25 | D157: 166.08 | E157: 159.92 | F157: 156.58 | G157: 150.42 | H157: 169.42 | I157: 175.58 | J157: 178.92 | K157: 172.25 | L157: 162.75 | M157: 30.11905
A158: 149 | B158: OFSS | C158: 3350.15 | D158: 3347.53 | E158: 3307.82 | F158: 3265.48 | G158: 3225.77 | H158: 3389.87 | I158: 3429.58 | J158: 3471.92 | K158: 3387.25 | L158: 3305.2 | M158: 0.14982
A159: 150 | B159: PIIND | C159: 1124.6 | D159: 1129.78 | E159: 1109.87 | F159: 1095.13 | G159: 1075.22 | H159: 1144.52 | I159: 1164.43 | J159: 1179.17 | K159: 1149.7 | L159: 1115.05 | M159: 0.97705
A160: 151 | B160: PNBHOUSING | C160: 753.3 | D160: 753.45 | E160: 747.50 | F160: 741.70 | G160: 735.75 | H160: 759.25 | I160: 765.20 | J160: 771.00 | K160: 759.4 | L160: 747.65 | M160: 3.53768
A161: 152 | B161: PAGEIND | C161: 20633.15 | D161: 20541.05 | E161: 20332.10 | F161: 20031.05 | G161: 19822.10 | H161: 20842.10 | I161: 21051.05 | J161: 21352.10 | K161: 20750 | L161: 20240 | M161: 0.13656
A162: 153 | B162: PETRONET | C162: 244.05 | D162: 245.95 | E162: 240.85 | F162: 237.65 | G162: 232.55 | H162: 249.15 | I162: 254.25 | J162: 257.45 | K162: 251.05 | L162: 242.75 | M162: 39.56635
A163: 154 | B163: PFIZER | C163: 3193.9 | D163: 3196.28 | E163: 3152.62 | F163: 3111.33 | G163: 3067.67 | H163: 3237.57 | I163: 3281.23 | J163: 3322.52 | K163: 3239.95 | L163: 3155 | M163: 0.10629
A164: 155 | B164: PIDILITIND | C164: 1227.85 | D164: 1226.52 | E164: 1217.53 | F164: 1207.22 | G164: 1198.23 | H164: 1236.83 | I164: 1245.82 | J164: 1256.13 | K164: 1235.5 | L164: 1216.2 | M164: 5.31894
A165: 156 | B165: PEL | C165: 1990.85 | D165: 2003.67 | E165: 1968.53 | F165: 1946.22 | G165: 1911.08 | H165: 2025.98 | I165: 2061.12 | J165: 2083.43 | K165: 2038.8 | L165: 1981.35 | M165: 9.65673
A166: 157 | B166: PFC | C166: 121 | D166: 121.93 | E166: 118.37 | F166: 115.73 | G166: 112.17 | H166: 124.57 | I166: 128.13 | J166: 130.77 | K166: 125.5 | L166: 119.3 | M166: 67.1483
A167: 158 | B167: POWERGRID | C167: 205.35 | D167: 206.42 | E167: 203.93 | F167: 202.52 | G167: 200.03 | H167: 207.83 | I167: 210.32 | J167: 211.73 | K167: 208.9 | L167: 205 | M167: 47.36048
A168: 159 | B168: PRESTIGE | C168: 276.1 | D168: 276.37 | E168: 272.73 | F168: 269.37 | G168: 265.73 | H168: 279.73 | I168: 283.37 | J168: 286.73 | K168: 280 | L168: 273 | M168: 0.67493
A169: 160 | B169: PGHH | C169: 10767.95 | D169: 10807.35 | E169: 10645.75 | F169: 10523.55 | G169: 10361.95 | H169: 10929.55 | I169: 11091.15 | J169: 11213.35 | K169: 10968.95 | L169: 10685.15 | M169: 0.02768
A170: 161 | B170: PNB | C170: 73.2 | D170: 73.80 | E170: 71.85 | F170: 70.50 | G170: 68.55 | H170: 75.15 | I170: 77.10 | J170: 78.45 | K170: 75.75 | L170: 72.45 | M170: 199.57328
A171: 162 | B171: QUESS | C171: 476.55 | D171: 476.20 | E171: 465.40 | F171: 454.25 | G171: 443.45 | H171: 487.35 | I171: 498.15 | J171: 509.30 | K171: 487 | L171: 465.05 | M171: 3.71383
A172: 163 | B172: RBLBANK | C172: 579.75 | D172: 584.13 | E172: 571.02 | F172: 562.28 | G172: 549.17 | H172: 592.87 | I172: 605.98 | J172: 614.72 | K172: 597.25 | L172: 575.4 | M172: 37.08761
A173: 164 | B173: RECLTD | C173: 147.6 | D173: 148.50 | E173: 143.40 | F173: 139.20 | G173: 134.10 | H173: 152.70 | I173: 157.80 | J173: 162.00 | K173: 153.6 | L173: 144.3 | M173: 115.29
A174: 165 | B174: RAJESHEXPO | C174: 685.8 | D174: 686.20 | E174: 683.90 | F174: 682.00 | G174: 679.70 | H174: 688.10 | I174: 690.40 | J174: 692.30 | K174: 688.5 | L174: 684.3 | M174: 3.43494
A175: 166 | B175: RELCAPITAL | C175: 52.55 | D175: 53.12 | E175: 51.53 | F175: 50.52 | G175: 48.93 | H175: 54.13 | I175: 55.72 | J175: 56.73 | K175: 54.7 | L175: 52.1 | M175: 141.8262
A176: 167 | B176: RELIANCE | C176: 1261.85 | D176: 1268.75 | E176: 1251.10 | F176: 1240.35 | G176: 1222.70 | H176: 1279.50 | I176: 1297.15 | J176: 1307.90 | K176: 1286.4 | L176: 1258 | M176: 54.59896
A177: 168 | B177: RELINFRA | C177: 48.1 | D177: 48.73 | E177: 46.67 | F177: 45.23 | G177: 43.17 | H177: 50.17 | I177: 52.23 | J177: 53.67 | K177: 50.8 | L177: 47.3 | M177: 167.32028
A178: 169 | B178: RPOWER | C178: 3.8 | D178: 3.85 | E178: 3.75 | F178: 3.70 | G178: 3.60 | H178: 3.90 | I178: 4.00 | J178: 4.05 | K178: 3.95 | L178: 3.8 | M178: 105.83673
A179: 170 | B179: SBILIFE | C179: 740.85 | D179: 750.95 | E179: 726.90 | F179: 712.95 | G179: 688.90 | H179: 764.90 | I179: 788.95 | J179: 802.90 | K179: 775 | L179: 737 | M179: 4.24234
A180: 171 | B180: SRF | C180: 2643.9 | D180: 2678.15 | E180: 2601.35 | F180: 2558.80 | G180: 2482.00 | H180: 2720.70 | I180: 2797.50 | J180: 2840.05 | K180: 2754.95 | L180: 2635.6 | M180: 3.758
A181: 172 | B181: SHREECEM | C181: 21421 | D181: 21490.23 | E181: 21280.47 | F181: 21139.93 | G181: 20930.17 | H181: 21630.77 | I181: 21840.53 | J181: 21981.07 | K181: 21700 | L181: 21349.7 | M181: 0.11027
A182: 173 | B182: SRTRANSFIN | C182: 1051 | D182: 1059.53 | E182: 1037.07 | F182: 1023.13 | G182: 1000.67 | H182: 1073.47 | I182: 1095.93 | J182: 1109.87 | K182: 1082 | L182: 1045.6 | M182: 14.89414
A183: 174 | B183: SIEMENS | C183: 1205.15 | D183: 1212.08 | E183: 1194.17 | F183: 1183.18 | G183: 1165.27 | H183: 1223.07 | I183: 1240.98 | J183: 1251.97 | K183: 1230 | L183: 1201.1 | M183: 2.78254
A184: 175 | B184: SBIN | C184: 363.65 | D184: 366.67 | E184: 359.53 | F184: 355.42 | G184: 348.28 | H184: 370.78 | I184: 377.92 | J184: 382.03 | K184: 373.8 | L184: 362.55 | M184: 216.91056
A185: 176 | B185: SAIL | C185: 45.55 | D185: 46.05 | E185: 44.95 | F185: 44.35 | G185: 43.25 | H185: 46.65 | I185: 47.75 | J185: 48.35 | K185: 47.15 | L185: 45.45 | M185: 178.22698
A186: 177 | B186: STRTECH | C186: 163.6 | D186: 165.17 | E186: 160.43 | F186: 157.27 | G186: 152.53 | H186: 168.33 | I186: 173.07 | J186: 176.23 | K186: 169.9 | L186: 162 | M186: 13.10145
A187: 178 | B187: SPARC | C187: 154.85 | D187: 151.53 | E187: 143.82 | F187: 132.78 | G187: 125.07 | H187: 162.57 | I187: 170.28 | J187: 181.32 | K187: 159.25 | L187: 140.5 | M187: 53.66572
A188: 179 | B188: SUNPHARMA | C188: 426.2 | D188: 427.92 | E188: 422.93 | F188: 419.67 | G188: 414.68 | H188: 431.18 | I188: 436.17 | J188: 439.43 | K188: 432.9 | L188: 424.65 | M188: 47.11395
A189: 180 | B189: SUNTV | C189: 465.7 | D189: 471.00 | E189: 459.30 | F189: 452.90 | G189: 441.20 | H189: 477.40 | I189: 489.10 | J189: 495.50 | K189: 482.7 | L189: 464.6 | M189: 18.58951
A190: 181 | B190: SYNGENE | C190: 322.1 | D190: 322.95 | E190: 319.15 | F190: 316.20 | G190: 312.40 | H190: 325.90 | I190: 329.70 | J190: 332.65 | K190: 326.75 | L190: 320 | M190: 1.07184
A191: 182 | B191: TVSMOTOR | C191: 414.25 | D191: 416.95 | E191: 409.95 | F191: 405.65 | G191: 398.65 | H191: 421.25 | I191: 428.25 | J191: 432.55 | K191: 423.95 | L191: 412.65 | M191: 8.50228
A192: 183 | B192: TATACHEM | C192: 602.7 | D192: 606.02 | E192: 596.03 | F192: 589.37 | G192: 579.38 | H192: 612.68 | I192: 622.67 | J192: 629.33 | K192: 616 | L192: 599.35 | M192: 3.09556
A193: 184 | B193: TCS | C193: 2065.95 | D193: 2080.72 | E193: 2045.23 | F193: 2024.52 | G193: 1989.03 | H193: 2101.43 | I193: 2136.92 | J193: 2157.63 | K193: 2116.2 | L193: 2060 | M193: 30.72096
A194: 185 | B194: TATAGLOBAL | C194: 255.1 | D194: 256.03 | E194: 253.32 | F194: 251.53 | G194: 248.82 | H194: 257.82 | I194: 260.53 | J194: 262.32 | K194: 258.75 | L194: 254.25 | M194: 10.82809
A195: 186 | B195: TATAMTRDVR | C195: 76.9 | D195: 77.88 | E195: 75.52 | F195: 74.13 | G195: 71.77 | H195: 79.27 | I195: 81.63 | J195: 83.02 | K195: 80.25 | L195: 76.5 | M195: 26.68472
A196: 187 | B196: TATAMOTORS | C196: 160.75 | D196: 162.67 | E196: 158.08 | F196: 155.42 | G196: 150.83 | H196: 165.33 | I196: 169.92 | J196: 172.58 | K196: 167.25 | L196: 160 | M196: 190.55022
A197: 188 | B197: TATAPOWER | C197: 66.35 | D197: 67.48 | E197: 64.97 | F197: 63.58 | G197: 61.07 | H197: 68.87 | I197: 71.38 | J197: 72.77 | K197: 70 | L197: 66.1 | M197: 68.41872
A198: 189 | B198: TATASTEEL | C198: 466.6 | D198: 468.60 | E198: 461.85 | F198: 457.10 | G198: 450.35 | H198: 473.35 | I198: 480.10 | J198: 484.85 | K198: 475.35 | L198: 463.85 | M198: 52.33173
A199: 190 | B199: TECHM | C199: 687.2 | D199: 687.18 | E199: 680.12 | F199: 673.03 | G199: 665.97 | H199: 694.27 | I199: 701.33 | J199: 708.42 | K199: 694.25 | L199: 680.1 | M199: 29.84256
A200: 191 | B200: NIACL | C200: 132 | D200: 132.67 | E200: 130.88 | F200: 129.77 | G200: 127.98 | H200: 133.78 | I200: 135.57 | J200: 136.68 | K200: 134.45 | L200: 131.55 | M200: 0.46063
A201: 192 | B201: RAMCOCEM | C201: 770.15 | D201: 774.35 | E201: 764.75 | F201: 759.35 | G201: 749.75 | H201: 779.75 | I201: 789.35 | J201: 794.75 | K201: 783.95 | L201: 768.95 | M201: 1.24212
A202: 193 | B202: TITAN | C202: 1080 | D202: 1080.90 | E202: 1055.30 | F202: 1030.60 | G202: 1005.00 | H202: 1105.60 | I202: 1131.20 | J202: 1155.90 | K202: 1106.5 | L202: 1056.2 | M202: 34.82208
A203: 194 | B203: TORNTPHARM | C203: 1545.2 | D203: 1530.17 | E203: 1500.43 | F203: 1455.67 | G203: 1425.93 | H203: 1574.93 | I203: 1604.67 | J203: 1649.43 | K203: 1559.9 | L203: 1485.4 | M203: 13.2762
A204: 195 | B204: TORNTPOWER | C204: 304.3 | D204: 306.80 | E204: 301.10 | F204: 297.90 | G204: 292.20 | H204: 310.00 | I204: 315.70 | J204: 318.90 | K204: 312.5 | L204: 303.6 | M204: 12.06963
A205: 196 | B205: UPL | C205: 654.75 | D205: 657.70 | E205: 644.45 | F205: 634.15 | G205: 620.90 | H205: 668.00 | I205: 681.25 | J205: 691.55 | K205: 670.95 | L205: 647.4 | M205: 49.68435
... 30 more rows

Sheet MidCap Intra
L5: Back To Main Page
A6: FOR INTRA DAY TRADING | K6: =Main!B10 -> 2019-07-19
A9: Sr.no | B9: Scrip | C9: CLOSE RATE | D9: Pivot Point | E9: Supports | H9: Resistances
C10: Point | E10: S1 | F10: S2 | G10: S3 | H10: R1 | I10: R2 | J10: R3 | K10: HIGH | L10: LOW | M10: Total Trade Quanity in Lakhs
A11: 1 | B11: 3MINDIA | C11: 21915.85 | D11: 22052.53 | E11: 21768.87 | F11: 21621.88 | G11: 21338.22 | H11: 22199.52 | I11: 22483.18 | J11: 22630.17 | K11: 22336.2 | L11: 21905.55 | M11: 0.00651
A12: 2 | B12: ABB | C12: 1454.1 | D12: 1466.37 | E12: 1432.73 | F12: 1411.37 | G12: 1377.73 | H12: 1487.73 | I12: 1521.37 | J12: 1542.73 | K12: 1500 | L12: 1445 | M12: 0.63333
A13: 3 | B13: ACC | C13: 1567.1 | D13: 1578.82 | E13: 1548.43 | F13: 1529.77 | G13: 1499.38 | H13: 1597.48 | I13: 1627.87 | J13: 1646.53 | K13: 1609.2 | L13: 1560.15 | M13: 14.75891
A14: 4 | B14: AIAENG | C14: 1758.2 | D14: 1760.02 | E14: 1748.23 | F14: 1738.27 | G14: 1726.48 | H14: 1769.98 | I14: 1781.77 | J14: 1791.73 | K14: 1771.8 | L14: 1750.05 | M14: 0.61724
A15: 5 | B15: APLAPOLLO | C15: 1521.95 | D15: 1531.02 | E15: 1503.03 | F15: 1484.12 | G15: 1456.13 | H15: 1549.93 | I15: 1577.92 | J15: 1596.83 | K15: 1559 | L15: 1512.1 | M15: 0.06167
A16: 6 | B16: AUBANK | C16: 669.35 | D16: 670.48 | E16: 666.02 | F16: 662.68 | G16: 658.22 | H16: 673.82 | I16: 678.28 | J16: 681.62 | K16: 674.95 | L16: 667.15 | M16: 0.81812
A17: 7 | B17: AAVAS | C17: 1491.6 | D17: 1499.87 | E17: 1476.73 | F17: 1461.87 | G17: 1438.73 | H17: 1514.73 | I17: 1537.87 | J17: 1552.73 | K17: 1523 | L17: 1485 | M17: 0.20866
A18: 8 | B18: ADANIGREEN | C18: 47.5 | D18: 48.07 | E18: 46.38 | F18: 45.27 | G18: 43.58 | H18: 49.18 | I18: 50.87 | J18: 51.98 | K18: 49.75 | L18: 46.95 | M18: 9.38262
A19: 9 | B19: ADANIPORTS | C19: 412.4 | D19: 414.15 | E19: 409.00 | F19: 405.60 | G19: 400.45 | H19: 417.55 | I19: 422.70 | J19: 426.10 | K19: 419.3 | L19: 410.75 | M19: 13.00071
A20: 10 | B20: ADANIPOWER | C20: 62.7 | D20: 63.35 | E20: 60.80 | F20: 58.90 | G20: 56.35 | H20: 65.25 | I20: 67.80 | J20: 69.70 | K20: 65.9 | L20: 61.45 | M20: 274.0317
A21: 11 | B21: ADANITRANS | C21: 214 | D21: 216.10 | E21: 208.90 | F21: 203.80 | G21: 196.60 | H21: 221.20 | I21: 228.40 | J21: 233.50 | K21: 223.3 | L21: 211 | M21: 0.98049
A22: 12 | B22: ABCAPITAL | C22: 89.05 | D22: 89.45 | E22: 88.60 | F22: 88.15 | G22: 87.30 | H22: 89.90 | I22: 90.75 | J22: 91.20 | K22: 90.3 | L22: 89 | M22: 8.70912
A23: 13 | B23: ABFRL | C23: 203.05 | D23: 203.48 | E23: 202.37 | F23: 201.68 | G23: 200.57 | H23: 204.17 | I23: 205.28 | J23: 205.97 | K23: 204.6 | L23: 202.8 | M23: 2.88176
A24: 14 | B24: ADVENZYMES | C24: 160.95 | D24: 161.00 | E24: 159.05 | F24: 157.15 | G24: 155.20 | H24: 162.90 | I24: 164.85 | J24: 166.75 | K24: 162.95 | L24: 159.1 | M24: 0.44485
A25: 15 | B25: AEGISCHEM | C25: 205 | D25: 206.65 | E25: 202.35 | F25: 199.70 | G25: 195.40 | H25: 209.30 | I25: 213.60 | J25: 216.25 | K25: 210.95 | L25: 204 | M25: 0.72338
A26: 16 | B26: AJANTPHARM | C26: 922.95 | D26: 923.18 | E26: 914.37 | F26: 905.78 | G26: 896.97 | H26: 931.77 | I26: 940.58 | J26: 949.17 | K26: 932 | L26: 914.6 | M26: 0.99602
A27: 17 | B27: AKZOINDIA | C27: 1724.75 | D27: 1731.25 | E27: 1714.50 | F27: 1704.25 | G27: 1687.50 | H27: 1741.50 | I27: 1758.25 | J27: 1768.50 | K27: 1748 | L27: 1721 | M27: 0.01587
A28: 18 | B28: APLLTD | C28: 524.4 | D28: 524.13 | E28: 520.32 | F28: 516.23 | G28: 512.42 | H28: 528.22 | I28: 532.03 | J28: 536.12 | K28: 527.95 | L28: 520.05 | M28: 0.16047
A29: 19 | B29: ALKEM | C29: 1758.05 | D29: 1754.83 | E29: 1735.67 | F29: 1713.28 | G29: 1694.12 | H29: 1777.22 | I29: 1796.38 | J29: 1818.77 | K29: 1774 | L29: 1732.45 | M29: 0.14113
A30: 20 | B30: ALBK | C30: 41.85 | D30: 42.15 | E30: 41.20 | F30: 40.55 | G30: 39.60 | H30: 42.80 | I30: 43.75 | J30: 44.40 | K30: 43.1 | L30: 41.5 | M30: 30.9551
A31: 21 | B31: ALLCARGO | C31: 100.25 | D31: 99.97 | E31: 99.28 | F31: 98.32 | G31: 97.63 | H31: 100.93 | I31: 101.62 | J31: 102.58 | K31: 100.65 | L31: 99 | M31: 1.13982
A32: 22 | B32: AMARAJABAT | C32: 640.6 | D32: 643.25 | E32: 633.50 | F32: 626.40 | G32: 616.65 | H32: 650.35 | I32: 660.10 | J32: 667.20 | K32: 653 | L32: 636.15 | M32: 2.51173
A33: 23 | B33: AMBUJACEM | C33: 216.95 | D33: 217.75 | E33: 214.30 | F33: 211.65 | G33: 208.20 | H33: 220.40 | I33: 223.85 | J33: 226.50 | K33: 221.2 | L33: 215.1 | M33: 36.14814
A34: 24 | B34: ANDHRABANK | C34: 22.3 | D34: 22.38 | E34: 22.17 | F34: 22.03 | G34: 21.82 | H34: 22.52 | I34: 22.73 | J34: 22.87 | K34: 22.6 | L34: 22.25 | M34: 4.91055
A35: 25 | B35: APOLLOHOSP | C35: 1388.05 | D35: 1384.38 | E35: 1368.77 | F35: 1349.48 | G35: 1333.87 | H35: 1403.67 | I35: 1419.28 | J35: 1438.57 | K35: 1400 | L35: 1365.1 | M35: 4.64854
A36: 26 | B36: APOLLOTYRE | C36: 179.25 | D36: 181.33 | E36: 176.32 | F36: 173.38 | G36: 168.37 | H36: 184.27 | I36: 189.28 | J36: 192.22 | K36: 186.35 | L36: 178.4 | M36: 20.57799
A37: 27 | B37: ASHOKLEY | C37: 81.45 | D37: 82.65 | E37: 79.85 | F37: 78.25 | G37: 75.45 | H37: 84.25 | I37: 87.05 | J37: 88.65 | K37: 85.45 | L37: 81.05 | M37: 244.05105
A38: 28 | B38: ASHOKA | C38: 126.9 | D38: 126.32 | E38: 123.63 | F38: 120.37 | G38: 117.68 | H38: 129.58 | I38: 132.27 | J38: 135.53 | K38: 129 | L38: 123.05 | M38: 3.79947
A39: 29 | B39: ASIANPAINT | C39: 1384.95 | D39: 1385.83 | E39: 1376.32 | F39: 1367.68 | G39: 1358.17 | H39: 1394.47 | I39: 1403.98 | J39: 1412.62 | K39: 1395.35 | L39: 1377.2 | M39: 8.02222
A40: 30 | B40: ASTERDM | C40: 126.15 | D40: 126.37 | E40: 124.98 | F40: 123.82 | G40: 122.43 | H40: 127.53 | I40: 128.92 | J40: 130.08 | K40: 127.75 | L40: 125.2 | M40: 1.3033
A41: 31 | B41: ASTRAZEN | C41: 1950.5 | D41: 1969.98 | E41: 1920.52 | F41: 1890.53 | G41: 1841.07 | H41: 1999.97 | I41: 2049.43 | J41: 2079.42 | K41: 2019.45 | L41: 1940 | M41: 0.07017
A42: 32 | B42: ASTRAL | C42: 1298.7 | D42: 1298.23 | E42: 1287.47 | F42: 1276.23 | G42: 1265.47 | H42: 1309.47 | I42: 1320.23 | J42: 1331.47 | K42: 1309 | L42: 1287 | M42: 0.19474
A43: 33 | B43: ATUL | C43: 3798.15 | D43: 3808.12 | E43: 3778.28 | F43: 3758.42 | G43: 3728.58 | H43: 3827.98 | I43: 3857.82 | J43: 3877.68 | K43: 3837.95 | L43: 3788.25 | M43: 0.20132
A44: 34 | B44: AUROPHARMA | C44: 569.9 | D44: 569.98 | E44: 562.02 | F44: 554.13 | G44: 546.17 | H44: 577.87 | I44: 585.83 | J44: 593.72 | K44: 577.95 | L44: 562.1 | M44: 24.24281
A45: 35 | B45: AVANTIFEED | C45: 330.2 | D45: 332.65 | E45: 326.55 | F45: 322.90 | G45: 316.80 | H45: 336.30 | I45: 342.40 | J45: 346.05 | K45: 338.75 | L45: 329 | M45: 1.34318
A46: 36 | B46: DMART | C46: 1439.4 | D46: 1445.80 | E46: 1427.60 | F46: 1415.80 | G46: 1397.60 | H46: 1457.60 | I46: 1475.80 | J46: 1487.60 | K46: 1464 | L46: 1434 | M46: 3.06435
A47: 37 | B47: AXISBANK | C47: 740.4 | D47: 743.33 | E47: 731.67 | F47: 722.93 | G47: 711.27 | H47: 752.07 | I47: 763.73 | J47: 772.47 | K47: 755 | L47: 734.6 | M47: 112.83488
A48: 38 | B48: BASF | C48: 1127.4 | D48: 1140.38 | E48: 1112.02 | F48: 1096.63 | G48: 1068.27 | H48: 1155.77 | I48: 1184.13 | J48: 1199.52 | K48: 1168.75 | L48: 1125 | M48: 0.041
A49: 39 | B49: BEML | C49: 913.9 | D49: 916.37 | E49: 904.83 | F49: 895.77 | G49: 884.23 | H49: 925.43 | I49: 936.97 | J49: 946.03 | K49: 927.9 | L49: 907.3 | M49: 9.63713
A50: 40 | B50: BSE | C50: 575.8 | D50: 578.15 | E50: 572.75 | F50: 569.70 | G50: 564.30 | H50: 581.20 | I50: 586.60 | J50: 589.65 | K50: 583.55 | L50: 575.1 | M50: 0.86144
A51: 41 | B51: BAJAJ-AUTO | C51: 2630.8 | D51: 2654.58 | E51: 2597.32 | F51: 2563.83 | G51: 2506.57 | H51: 2688.07 | I51: 2745.33 | J51: 2778.82 | K51: 2711.85 | L51: 2621.1 | M51: 3.65949
A52: 42 | B52: BAJAJCON | C52: 309.95 | D52: 310.98 | E52: 307.97 | F52: 305.98 | G52: 302.97 | H52: 312.97 | I52: 315.98 | J52: 317.97 | K52: 314 | L52: 309 | M52: 0.46771
A53: 43 | B53: BAJAJELEC | C53: 458.7 | D53: 461.72 | E53: 452.98 | F53: 447.27 | G53: 438.53 | H53: 467.43 | I53: 476.17 | J53: 481.88 | K53: 470.45 | L53: 456 | M53: 0.6475
A54: 44 | B54: BAJFINANCE | C54: 3467.65 | D54: 3477.22 | E54: 3434.43 | F54: 3401.22 | G54: 3358.43 | H54: 3510.43 | I54: 3553.22 | J54: 3586.43 | K54: 3520 | L54: 3444 | M54: 13.20464
A55: 45 | B55: BAJAJFINSV | C55: 7847.65 | D55: 7855.18 | E55: 7802.47 | F55: 7757.28 | G55: 7704.57 | H55: 7900.37 | I55: 7953.08 | J55: 7998.27 | K55: 7907.9 | L55: 7810 | M55: 1.34466
A56: 46 | B56: BAJAJHLDNG | C56: 3523.4 | D56: 3536.05 | E56: 3507.45 | F56: 3491.50 | G56: 3462.90 | H56: 3552.00 | I56: 3580.60 | J56: 3596.55 | K56: 3564.65 | L56: 3520.1 | M56: 0.13972
A57: 47 | B57: BALKRISIND | C57: 751 | D57: 754.32 | E57: 742.68 | F57: 734.37 | G57: 722.73 | H57: 762.63 | I57: 774.27 | J57: 782.58 | K57: 765.95 | L57: 746 | M57: 5.76464
A58: 48 | B58: BALMLAWRIE | C58: 176.85 | D58: 177.47 | E58: 175.88 | F58: 174.92 | G58: 173.33 | H58: 178.43 | I58: 180.02 | J58: 180.98 | K58: 179.05 | L58: 176.5 | M58: 0.33637
A59: 49 | B59: BALRAMCHIN | C59: 149.8 | D59: 151.52 | E59: 145.63 | F59: 141.47 | G59: 135.58 | H59: 155.68 | I59: 161.57 | J59: 165.73 | K59: 157.4 | L59: 147.35 | M59: 14.69651
A60: 50 | B60: BANDHANBNK | C60: 528.8 | D60: 533.15 | E60: 522.20 | F60: 515.60 | G60: 504.65 | H60: 539.75 | I60: 550.70 | J60: 557.30 | K60: 544.1 | L60: 526.55 | M60: 3.84789
A61: 51 | B61: BANKBARODA | C61: 121.35 | D61: 123.25 | E61: 119.15 | F61: 116.95 | G61: 112.85 | H61: 125.45 | I61: 129.55 | J61: 131.75 | K61: 127.35 | L61: 121.05 | M61: 212.15697
A62: 52 | B62: BANKINDIA | C62: 82.15 | D62: 83.08 | E62: 80.67 | F62: 79.18 | G62: 76.77 | H62: 84.57 | I62: 86.98 | J62: 88.47 | K62: 85.5 | L62: 81.6 | M62: 93.21591
A63: 53 | B63: MAHABANK | C63: 15.5 | D63: 15.62 | E63: 15.38 | F63: 15.27 | G63: 15.03 | H63: 15.73 | I63: 15.97 | J63: 16.08 | K63: 15.85 | L63: 15.5 | M63: 1.76335
A64: 54 | B64: BATAINDIA | C64: 1341.65 | D64: 1344.23 | E64: 1329.47 | F64: 1317.28 | G64: 1302.52 | H64: 1356.42 | I64: 1371.18 | J64: 1383.37 | K64: 1359 | L64: 1332.05 | M64: 6.64401
A65: 55 | B65: BERGEPAINT | C65: 313.3 | D65: 314.00 | E65: 311.30 | F65: 309.30 | G65: 306.60 | H65: 316.00 | I65: 318.70 | J65: 320.70 | K65: 316.7 | L65: 312 | M65: 3.83233
A66: 56 | B66: BDL | C66: 301.55 | D66: 303.18 | E66: 298.37 | F66: 295.18 | G66: 290.37 | H66: 306.37 | I66: 311.18 | J66: 314.37 | K66: 308 | L66: 300 | M66: 0.21652
A67: 57 | B67: BEL | C67: 96.55 | D67: 98.78 | E67: 93.67 | F67: 90.78 | G67: 85.67 | H67: 101.67 | I67: 106.78 | J67: 109.67 | K67: 103.9 | L67: 95.9 | M67: 144.19051
A68: 58 | B68: BHARATFORG | C68: 440.85 | D68: 447.35 | E68: 431.90 | F68: 422.95 | G68: 407.50 | H68: 456.30 | I68: 471.75 | J68: 480.70 | K68: 462.8 | L68: 438.4 | M68: 24.81984
A69: 59 | B69: BHEL | C69: 64 | D69: 64.00 | E69: 63.50 | F69: 63.00 | G69: 62.50 | H69: 64.50 | I69: 65.00 | J69: 65.50 | K69: 64.5 | L69: 63.5 | M69: 104.55841
A70: 60 | B70: BPCL | C70: 349.25 | D70: 350.82 | E70: 346.28 | F70: 343.32 | G70: 338.78 | H70: 353.78 | I70: 358.32 | J70: 361.28 | K70: 355.35 | L70: 347.85 | M70: 45.1645
A71: 61 | B71: BHARTIARTL | C71: 342.5 | D71: 344.10 | E71: 337.00 | F71: 331.50 | G71: 324.40 | H71: 349.60 | I71: 356.70 | J71: 362.20 | K71: 351.2 | L71: 338.6 | M71: 36.42763
A72: 62 | B72: INFRATEL | C72: 263.15 | D72: 263.13 | E72: 261.52 | F72: 259.88 | G72: 258.27 | H72: 264.77 | I72: 266.38 | J72: 268.02 | K72: 264.75 | L72: 261.5 | M72: 14.11051
A73: 63 | B73: BIOCON | C73: 263.05 | D73: 263.02 | E73: 260.53 | F73: 258.02 | G73: 255.53 | H73: 265.53 | I73: 268.02 | J73: 270.53 | K73: 265.5 | L73: 260.5 | M73: 27.02868
A74: 64 | B74: BIRLACORPN | C74: 596.5 | D74: 602.73 | E74: 587.62 | F74: 578.73 | G74: 563.62 | H74: 611.62 | I74: 626.73 | J74: 635.62 | K74: 617.85 | L74: 593.85 | M74: 0.30229
A75: 65 | B75: BLISSGVS | C75: 157.7 | D75: 157.58 | E75: 155.67 | F75: 153.63 | G75: 151.72 | H75: 159.62 | I75: 161.53 | J75: 163.57 | K75: 159.5 | L75: 155.55 | M75: 13.42489
A76: 66 | B76: BLUEDART | C76: 2400.45 | D76: 2408.48 | E76: 2386.97 | F76: 2373.48 | G76: 2351.97 | H76: 2421.97 | I76: 2443.48 | J76: 2456.97 | K76: 2430 | L76: 2395 | M76: 0.02948
A77: 67 | B77: BLUESTARCO | C77: 734.35 | D77: 736.68 | E77: 730.67 | F77: 726.98 | G77: 720.97 | H77: 740.37 | I77: 746.38 | J77: 750.07 | K77: 742.7 | L77: 733 | M77: 0.36354
A78: 68 | B78: BBTC | C78: 912.75 | D78: 918.92 | E78: 903.83 | F78: 894.92 | G78: 879.83 | H78: 927.83 | I78: 942.92 | J78: 951.83 | K78: 934 | L78: 910 | M78: 1.0468
A79: 69 | B79: BOMDYEING | C79: 96.3 | D79: 96.97 | E79: 94.53 | F79: 92.77 | G79: 90.33 | H79: 98.73 | I79: 101.17 | J79: 102.93 | K79: 99.4 | L79: 95.2 | M79: 5.80075
A80: 70 | B80: BOSCHLTD | C80: 15570.35 | D80: 15694.78 | E80: 15387.57 | F80: 15204.78 | G80: 14897.57 | H80: 15877.57 | I80: 16184.78 | J80: 16367.57 | K80: 16002 | L80: 15512 | M80: 0.09671
A81: 71 | B81: BRIGADE | C81: 276.2 | D81: 276.57 | E81: 273.23 | F81: 270.27 | G81: 266.93 | H81: 279.53 | I81: 282.87 | J81: 285.83 | K81: 279.9 | L81: 273.6 | M81: 0.65721
A82: 72 | B82: BRITANNIA | C82: 2820.85 | D82: 2817.47 | E82: 2790.93 | F82: 2761.02 | G82: 2734.48 | H82: 2847.38 | I82: 2873.92 | J82: 2903.83 | K82: 2844 | L82: 2787.55 | M82: 4.77907
A83: 73 | B83: CARERATING | C83: 874.05 | D83: 874.07 | E83: 859.98 | F83: 845.92 | G83: 831.83 | H83: 888.13 | I83: 902.22 | J83: 916.28 | K83: 888.15 | L83: 860 | M83: 0.5543
A84: 74 | B84: CCL | C84: 246.35 | D84: 245.07 | E84: 243.63 | F84: 240.92 | G84: 239.48 | H84: 247.78 | I84: 249.22 | J84: 251.93 | K84: 246.5 | L84: 242.35 | M84: 0.09696
A85: 75 | B85: CESC | C85: 777.3 | D85: 779.63 | E85: 773.07 | F85: 768.83 | G85: 762.27 | H85: 783.87 | I85: 790.43 | J85: 794.67 | K85: 786.2 | L85: 775.4 | M85: 1.7624
A86: 76 | B86: CGPOWER | C86: 21.5 | D86: 21.00 | E86: 20.50 | F86: 19.50 | G86: 19.00 | H86: 22.00 | I86: 22.50 | J86: 23.50 | K86: 21.5 | L86: 20 | M86: 79.06893
A87: 77 | B87: CRISIL | C87: 1395.5 | D87: 1403.93 | E87: 1377.97 | F87: 1360.43 | G87: 1334.47 | H87: 1421.47 | I87: 1447.43 | J87: 1464.97 | K87: 1429.9 | L87: 1386.4 | M87: 0.08423
A88: 78 | B88: CADILAHC | C88: 231.15 | D88: 234.30 | E88: 225.85 | F88: 220.55 | G88: 212.10 | H88: 239.60 | I88: 248.05 | J88: 253.35 | K88: 242.75 | L88: 229 | M88: 12.39743
A89: 79 | B89: CANFINHOME | C89: 390.25 | D89: 387.25 | E89: 382.10 | F89: 373.95 | G89: 368.80 | H89: 395.40 | I89: 400.55 | J89: 408.70 | K89: 392.4 | L89: 379.1 | M89: 5.25388
A90: 80 | B90: CANBK | C90: 268.5 | D90: 272.13 | E90: 263.62 | F90: 258.73 | G90: 250.22 | H90: 277.02 | I90: 285.53 | J90: 290.42 | K90: 280.65 | L90: 267.25 | M90: 53.46987
A91: 81 | B91: CAPLIPOINT | C91: 420.55 | D91: 420.53 | E91: 411.07 | F91: 401.58 | G91: 392.12 | H91: 430.02 | I91: 439.48 | J91: 448.97 | K91: 430 | L91: 411.05 | M91: 0.73496
A92: 82 | B92: CARBORUNIV | C92: 331 | D92: 332.53 | E92: 328.52 | F92: 326.03 | G92: 322.02 | H92: 335.02 | I92: 339.03 | J92: 341.52 | K92: 336.55 | L92: 330.05 | M92: 0.13122
A93: 83 | B93: CASTROLIND | C93: 130.05 | D93: 130.95 | E93: 128.80 | F93: 127.55 | G93: 125.40 | H93: 132.20 | I93: 134.35 | J93: 135.60 | K93: 133.1 | L93: 129.7 | M93: 14.02837
A94: 84 | B94: CEATLTD | C94: 883.4 | D94: 887.00 | E94: 876.45 | F94: 869.50 | G94: 858.95 | H94: 893.95 | I94: 904.50 | J94: 911.45 | K94: 897.55 | L94: 880.05 | M94: 1.33233
A95: 85 | B95: CENTRALBK | C95: 19.45 | D95: 19.50 | E95: 19.35 | F95: 19.25 | G95: 19.10 | H95: 19.60 | I95: 19.75 | J95: 19.85 | K95: 19.65 | L95: 19.4 | M95: 3.63083
A96: 86 | B96: CDSL | C96: 204.05 | D96: 204.58 | E96: 202.17 | F96: 200.28 | G96: 197.87 | H96: 206.47 | I96: 208.88 | J96: 210.77 | K96: 207 | L96: 202.7 | M96: 3.47468
A97: 87 | B97: CENTURYPLY | C97: 137.2 | D97: 139.27 | E97: 134.43 | F97: 131.67 | G97: 126.83 | H97: 142.03 | I97: 146.87 | J97: 149.63 | K97: 144.1 | L97: 136.5 | M97: 2.42586
A98: 88 | B98: CERA | C98: 2719.85 | D98: 2725.95 | E98: 2703.90 | F98: 2687.95 | G98: 2665.90 | H98: 2741.90 | I98: 2763.95 | J98: 2779.90 | K98: 2748 | L98: 2710 | M98: 0.03611
A99: 89 | B99: CHAMBLFERT | C99: 162.05 | D99: 162.33 | E99: 160.57 | F99: 159.08 | G99: 157.32 | H99: 163.82 | I99: 165.58 | J99: 167.07 | K99: 164.1 | L99: 160.85 | M99: 0.97886
A100: 90 | B100: CHENNPETRO | C100: 194.55 | D100: 194.52 | E100: 191.73 | F100: 188.92 | G100: 186.13 | H100: 197.33 | I100: 200.12 | J100: 202.93 | K100: 197.3 | L100: 191.7 | M100: 2.45702
A101: 91 | B101: CHOLAHLDNG | C101: 493.65 | D101: 491.63 | E101: 484.27 | F101: 474.88 | G101: 467.52 | H101: 501.02 | I101: 508.38 | J101: 517.77 | K101: 499 | L101: 482.25 | M101: 0.20007
A102: 92 | B102: CHOLAFIN | C102: 270.8 | D102: 271.03 | E102: 264.72 | F102: 258.63 | G102: 252.32 | H102: 277.12 | I102: 283.43 | J102: 289.52 | K102: 277.35 | L102: 264.95 | M102: 9.53968
A103: 93 | B103: CIPLA | C103: 547 | D103: 550.50 | E103: 542.00 | F103: 537.00 | G103: 528.50 | H103: 555.50 | I103: 564.00 | J103: 569.00 | K103: 559 | L103: 545.5 | M103: 13.55289
A104: 94 | B104: CUB | C104: 205.05 | D104: 205.45 | E104: 201.60 | F104: 198.15 | G104: 194.30 | H104: 208.90 | I104: 212.75 | J104: 216.20 | K104: 209.3 | L104: 202 | M104: 5.59527
A105: 95 | B105: COALINDIA | C105: 220.3 | D105: 223.57 | E105: 216.23 | F105: 212.17 | G105: 204.83 | H105: 227.63 | I105: 234.97 | J105: 239.03 | K105: 230.9 | L105: 219.5 | M105: 87.29774
A106: 96 | B106: COCHINSHIP | C106: 363.65 | D106: 365.95 | E106: 360.75 | F106: 357.85 | G106: 352.65 | H106: 368.85 | I106: 374.05 | J106: 376.95 | K106: 371.15 | L106: 363.05 | M106: 0.35062
A107: 97 | B107: COFFEEDAY | C107: 212.95 | D107: 214.35 | E107: 211.15 | F107: 209.35 | G107: 206.15 | H107: 216.15 | I107: 219.35 | J107: 221.15 | K107: 217.55 | L107: 212.55 | M107: 0.3289
A108: 98 | B108: COLPAL | C108: 1203.65 | D108: 1192.83 | E108: 1163.97 | F108: 1124.28 | G108: 1095.42 | H108: 1232.52 | I108: 1261.38 | J108: 1301.07 | K108: 1221.7 | L108: 1153.15 | M108: 25.17903
A109: 99 | B109: CONCOR | C109: 538.95 | D109: 542.63 | E109: 532.32 | F109: 525.68 | G109: 515.37 | H109: 549.27 | I109: 559.58 | J109: 566.22 | K109: 552.95 | L109: 536 | M109: 7.23958
A110: 100 | B110: COROMANDEL | C110: 376.15 | D110: 375.65 | E110: 366.35 | F110: 356.55 | G110: 347.25 | H110: 385.45 | I110: 394.75 | J110: 404.55 | K110: 384.95 | L110: 365.85 | M110: 3.01724
A111: 101 | B111: CORPBANK | C111: 26 | D111: 26.17 | E111: 25.58 | F111: 25.17 | G111: 24.58 | H111: 26.58 | I111: 27.17 | J111: 27.58 | K111: 26.75 | L111: 25.75 | M111: 0.94074
A112: 102 | B112: COX&KINGS | C112: 18.1 | D112: 18.10 | E112: 18.10 | F112: 18.10 | G112: 18.10 | H112: 18.10 | I112: 18.10 | J112: 18.10 | K112: 18.1 | L112: 18.1 | M112: 0.37278
A113: 103 | B113: CREDITACC | C113: 527.45 | D113: 526.88 | E113: 521.77 | F113: 516.08 | G113: 510.97 | H113: 532.57 | I113: 537.68 | J113: 543.37 | K113: 532 | L113: 521.2 | M113: 3.06243
A114: 104 | B114: CROMPTON | C114: 233.1 | D114: 232.65 | E114: 228.65 | F114: 224.20 | G114: 220.20 | H114: 237.10 | I114: 241.10 | J114: 245.55 | K114: 236.65 | L114: 228.2 | M114: 11.90667
A115: 105 | B115: CUMMINSIND | C115: 739.5 | D115: 743.98 | E115: 732.07 | F115: 724.63 | G115: 712.72 | H115: 751.42 | I115: 763.33 | J115: 770.77 | K115: 755.9 | L115: 736.55 | M115: 1.14109
A116: 106 | B116: CYIENT | C116: 543.5 | D116: 543.43 | E116: 535.87 | F116: 528.23 | G116: 520.67 | H116: 551.07 | I116: 558.63 | J116: 566.27 | K116: 551 | L116: 535.8 | M116: 1.32517
A117: 107 | B117: DBCORP | C117: 176.3 | D117: 175.35 | E117: 166.00 | F117: 155.70 | G117: 146.35 | H117: 185.65 | I117: 195.00 | J117: 205.30 | K117: 184.7 | L117: 165.05 | M117: 2.98569
A118: 108 | B118: DCBBANK | C118: 201.5 | D118: 198.67 | E118: 191.93 | F118: 182.37 | G118: 175.63 | H118: 208.23 | I118: 214.97 | J118: 224.53 | K118: 205.4 | L118: 189.1 | M118: 108.55655
A119: 109 | B119: DCMSHRIRAM | C119: 504.1 | D119: 502.90 | E119: 491.20 | F119: 478.30 | G119: 466.60 | H119: 515.80 | I119: 527.50 | J119: 540.40 | K119: 514.6 | L119: 490 | M119: 0.80104
A120: 110 | B120: DLF | C120: 183.2 | D120: 185.70 | E120: 180.05 | F120: 176.90 | G120: 171.25 | H120: 188.85 | I120: 194.50 | J120: 197.65 | K120: 191.35 | L120: 182.55 | M120: 63.1589
A121: 111 | B121: DABUR | C121: 428.9 | D121: 430.27 | E121: 425.28 | F121: 421.67 | G121: 416.68 | H121: 433.88 | I121: 438.87 | J121: 442.48 | K121: 435.25 | L121: 426.65 | M121: 34.32159
A122: 112 | B122: DEEPAKFERT | C122: 91.6 | D122: 91.63 | E122: 90.22 | F122: 88.83 | G122: 87.42 | H122: 93.02 | I122: 94.43 | J122: 95.82 | K122: 93.05 | L122: 90.25 | M122: 1.83576
A123: 113 | B123: DEEPAKNTR | C123: 309.05 | D123: 311.20 | E123: 304.95 | F123: 300.85 | G123: 294.60 | H123: 315.30 | I123: 321.55 | J123: 325.65 | K123: 317.45 | L123: 307.1 | M123: 1.99099
A124: 114 | B124: DELTACORP | C124: 159.3 | D124: 159.93 | E124: 158.37 | F124: 157.43 | G124: 155.87 | H124: 160.87 | I124: 162.43 | J124: 163.37 | K124: 161.5 | L124: 159 | M124: 3.77692
A125: 115 | B125: DHFL | C125: 56.25 | D125: 56.13 | E125: 53.67 | F125: 51.08 | G125: 48.62 | H125: 58.72 | I125: 61.18 | J125: 63.77 | K125: 58.6 | L125: 53.55 | M125: 463.89916
A126: 116 | B126: DBL | C126: 412.15 | D126: 415.70 | E126: 407.60 | F126: 403.05 | G126: 394.95 | H126: 420.25 | I126: 428.35 | J126: 432.90 | K126: 423.8 | L126: 411.15 | M126: 1.30933
A127: 117 | B127: DISHTV | C127: 34.15 | D127: 33.85 | E127: 32.90 | F127: 31.65 | G127: 30.70 | H127: 35.10 | I127: 36.05 | J127: 37.30 | K127: 34.8 | L127: 32.6 | M127: 456.20901
A128: 118 | B128: DCAL | C128: 214.85 | D128: 215.43 | E128: 211.87 | F128: 208.88 | G128: 205.32 | H128: 218.42 | I128: 221.98 | J128: 224.97 | K128: 219 | L128: 212.45 | M128: 7.16834
A129: 119 | B129: DIVISLAB | C129: 1641.9 | D129: 1646.32 | E129: 1631.13 | F129: 1620.37 | G129: 1605.18 | H129: 1657.08 | I129: 1672.27 | J129: 1683.03 | K129: 1661.5 | L129: 1635.55 | M129: 7.69446
A130: 120 | B130: DIXON | C130: 2201.2 | D130: 2200.40 | E130: 2186.90 | F130: 2172.60 | G130: 2159.10 | H130: 2214.70 | I130: 2228.20 | J130: 2242.50 | K130: 2213.9 | L130: 2186.1 | M130: 0.01061
A131: 121 | B131: LALPATHLAB | C131: 1117.2 | D131: 1106.95 | E131: 1082.90 | F131: 1048.60 | G131: 1024.55 | H131: 1141.25 | I131: 1165.30 | J131: 1199.60 | K131: 1131 | L131: 1072.65 | M131: 0.37913
A132: 122 | B132: DRREDDY | C132: 2655.55 | D132: 2655.13 | E132: 2630.42 | F132: 2605.28 | G132: 2580.57 | H132: 2680.27 | I132: 2704.98 | J132: 2730.12 | K132: 2679.85 | L132: 2630 | M132: 4.34455
A133: 123 | B133: EIDPARRY | C133: 161.95 | D133: 162.65 | E133: 160.00 | F133: 158.05 | G133: 155.40 | H133: 164.60 | I133: 167.25 | J133: 169.20 | K133: 165.3 | L133: 160.7 | M133: 0.86161
A134: 124 | B134: EIHOTEL | C134: 167.8 | D134: 168.22 | E134: 167.08 | F134: 166.37 | G134: 165.23 | H134: 168.93 | I134: 170.07 | J134: 170.78 | K134: 169.35 | L134: 167.5 | M134: 0.34192
A135: 125 | B135: EDELWEISS | C135: 158.8 | D135: 159.27 | E135: 156.33 | F135: 153.87 | G135: 150.93 | H135: 161.73 | I135: 164.67 | J135: 167.13 | K135: 162.2 | L135: 156.8 | M135: 17.98498
A136: 126 | B136: EICHERMOT | C136: 18406 | D136: 18445.73 | E136: 18310.27 | F136: 18214.53 | G136: 18079.07 | H136: 18541.47 | I136: 18676.93 | J136: 18772.67 | K136: 18581.2 | L136: 18350 | M136: 0.68383
A137: 127 | B137: ELGIEQUIP | C137: 261.6 | D137: 263.07 | E137: 258.78 | F137: 255.97 | G137: 251.68 | H137: 265.88 | I137: 270.17 | J137: 272.98 | K137: 267.35 | L137: 260.25 | M137: 0.05262
A138: 128 | B138: EMAMILTD | C138: 321.4 | D138: 321.97 | E138: 318.43 | F138: 315.47 | G138: 311.93 | H138: 324.93 | I138: 328.47 | J138: 331.43 | K138: 325.5 | L138: 319 | M138: 1.62074
A139: 129 | B139: ENDURANCE | C139: 996.85 | D139: 984.83 | E139: 965.27 | F139: 933.68 | G139: 914.12 | H139: 1016.42 | I139: 1035.98 | J139: 1067.57 | K139: 1004.4 | L139: 953.25 | M139: 0.35878
A140: 130 | B140: ENGINERSIN | C140: 105.2 | D140: 106.40 | E140: 103.60 | F140: 102.00 | G140: 99.20 | H140: 108.00 | I140: 110.80 | J140: 112.40 | K140: 109.2 | L140: 104.8 | M140: 14.47617
A141: 131 | B141: EQUITAS | C141: 122.75 | D141: 124.68 | E141: 120.37 | F141: 117.98 | G141: 113.67 | H141: 127.07 | I141: 131.38 | J141: 133.77 | K141: 129 | L141: 122.3 | M141: 56.94035
A142: 132 | B142: ERIS | C142: 441.8 | D142: 443.25 | E142: 435.55 | F142: 429.30 | G142: 421.60 | H142: 449.50 | I142: 457.20 | J142: 463.45 | K142: 450.95 | L142: 437 | M142: 0.31663
A143: 133 | B143: ESCORTS | C143: 529.15 | D143: 533.30 | E143: 522.85 | F143: 516.55 | G143: 506.10 | H143: 539.60 | I143: 550.05 | J143: 556.35 | K143: 543.75 | L143: 527 | M143: 15.44366
A144: 134 | B144: ESSELPACK | C144: 129.95 | D144: 129.83 | E144: 129.32 | F144: 128.68 | G144: 128.17 | H144: 130.47 | I144: 130.98 | J144: 131.62 | K144: 130.35 | L144: 129.2 | M144: 1.49043
A145: 135 | B145: EXIDEIND | C145: 201.45 | D145: 202.22 | E145: 198.28 | F145: 195.12 | G145: 191.18 | H145: 205.38 | I145: 209.32 | J145: 212.48 | K145: 206.15 | L145: 199.05 | M145: 13.5867
A146: 136 | B146: FDC | C146: 163.4 | D146: 164.83 | E146: 160.37 | F146: 157.33 | G146: 152.87 | H146: 167.87 | I146: 172.33 | J146: 175.37 | K146: 169.3 | L146: 161.8 | M146: 0.40658
A147: 137 | B147: FEDERALBNK | C147: 99.15 | D147: 100.43 | E147: 97.52 | F147: 95.88 | G147: 92.97 | H147: 102.07 | I147: 104.98 | J147: 106.62 | K147: 103.35 | L147: 98.8 | M147: 158.69467
A148: 138 | B148: FINEORG | C148: 1462.95 | D148: 1470.98 | E148: 1441.97 | F148: 1420.98 | G148: 1391.97 | H148: 1491.97 | I148: 1520.98 | J148: 1541.97 | K148: 1500 | L148: 1450 | M148: 0.22451
A149: 139 | B149: FINCABLES | C149: 384.65 | D149: 389.28 | E149: 377.62 | F149: 370.58 | G149: 358.92 | H149: 396.32 | I149: 407.98 | J149: 415.02 | K149: 400.95 | L149: 382.25 | M149: 0.69238
A150: 140 | B150: FINPIPE | C150: 516.1 | D150: 515.87 | E150: 511.68 | F150: 507.27 | G150: 503.08 | H150: 520.28 | I150: 524.47 | J150: 528.88 | K150: 520.05 | L150: 511.45 | M150: 0.14839
A151: 141 | B151: FSL | C151: 53.2 | D151: 53.27 | E151: 52.63 | F151: 52.07 | G151: 51.43 | H151: 53.83 | I151: 54.47 | J151: 55.03 | K151: 53.9 | L151: 52.7 | M151: 12.49745
A152: 142 | B152: FORTIS | C152: 129.4 | D152: 130.08 | E152: 127.92 | F152: 126.43 | G152: 124.27 | H152: 131.57 | I152: 133.73 | J152: 135.22 | K152: 132.25 | L152: 128.6 | M152: 5.5552
A153: 143 | B153: FCONSUMER | C153: 36.1 | D153: 36.43 | E153: 35.67 | F153: 35.23 | G153: 34.47 | H153: 36.87 | I153: 37.63 | J153: 38.07 | K153: 37.2 | L153: 36 | M153: 6.44941
A154: 144 | B154: FLFL | C154: 457.85 | D154: 459.90 | E154: 451.85 | F154: 445.85 | G154: 437.80 | H154: 465.90 | I154: 473.95 | J154: 479.95 | K154: 467.95 | L154: 453.9 | M154: 0.61151
A155: 145 | B155: FRETAIL | C155: 424.05 | D155: 426.00 | E155: 418.55 | F155: 413.05 | G155: 405.60 | H155: 431.50 | I155: 438.95 | J155: 444.45 | K155: 433.45 | L155: 420.5 | M155: 0.69675
A156: 146 | B156: GAIL | C156: 141.95 | D156: 142.38 | E156: 140.57 | F156: 139.18 | G156: 137.37 | H156: 143.77 | I156: 145.58 | J156: 146.97 | K156: 144.2 | L156: 141 | M156: 63.15213
A157: 147 | B157: GEPIL | C157: 844.2 | D157: 844.27 | E157: 836.63 | F157: 829.07 | G157: 821.43 | H157: 851.83 | I157: 859.47 | J157: 867.03 | K157: 851.9 | L157: 836.7 | M157: 0.06619
A158: 148 | B158: GET&D | C158: 216 | D158: 218.23 | E158: 212.77 | F158: 209.53 | G158: 204.07 | H158: 221.47 | I158: 226.93 | J158: 230.17 | K158: 223.7 | L158: 215 | M158: 0.17502
A159: 149 | B159: GHCL | C159: 213.25 | D159: 216.02 | E159: 209.33 | F159: 205.42 | G159: 198.73 | H159: 219.93 | I159: 226.62 | J159: 230.53 | K159: 222.7 | L159: 212.1 | M159: 0.93282
A160: 150 | B160: GMRINFRA | C160: 14.85 | D160: 14.90 | E160: 14.65 | F160: 14.45 | G160: 14.20 | H160: 15.10 | I160: 15.35 | J160: 15.55 | K160: 15.15 | L160: 14.7 | M160: 92.67276
A161: 151 | B161: GALAXYSURF | C161: 1238.15 | D161: 1234.15 | E161: 1223.35 | F161: 1208.55 | G161: 1197.75 | H161: 1248.95 | I161: 1259.75 | J161: 1274.55 | K161: 1244.95 | L161: 1219.35 | M161: 0.06355
A162: 152 | B162: GDL | C162: 118.3 | D162: 117.55 | E162: 115.75 | F162: 113.20 | G162: 111.40 | H162: 120.10 | I162: 121.90 | J162: 124.45 | K162: 119.35 | L162: 115 | M162: 0.82823
A163: 153 | B163: GAYAPROJ | C163: 142.35 | D163: 142.10 | E163: 139.90 | F163: 137.45 | G163: 135.25 | H163: 144.55 | I163: 146.75 | J163: 149.20 | K163: 144.3 | L163: 139.65 | M163: 0.29282
A164: 154 | B164: GICRE | C164: 225.5 | D164: 226.17 | E164: 223.83 | F164: 222.17 | G164: 219.83 | H164: 227.83 | I164: 230.17 | J164: 231.83 | K164: 228.5 | L164: 224.5 | M164: 0.79953
A165: 155 | B165: GILLETTE | C165: 7064.75 | D165: 7043.22 | E165: 6986.43 | F165: 6908.12 | G165: 6851.33 | H165: 7121.53 | I165: 7178.32 | J165: 7256.63 | K165: 7100 | L165: 6964.9 | M165: 0.03025
A166: 156 | B166: GSKCONS | C166: 7474.05 | D166: 7474.10 | E166: 7408.20 | F166: 7342.35 | G166: 7276.45 | H166: 7539.95 | I166: 7605.85 | J166: 7671.70 | K166: 7540 | L166: 7408.25 | M166: 0.13274
A167: 157 | B167: GLAXO | C167: 1170.5 | D167: 1176.50 | E167: 1160.00 | F167: 1149.50 | G167: 1133.00 | H167: 1187.00 | I167: 1203.50 | J167: 1214.00 | K167: 1193 | L167: 1166 | M167: 0.11559
A168: 158 | B168: GLENMARK | C168: 440.85 | D168: 442.53 | E168: 436.57 | F168: 432.28 | G168: 426.32 | H168: 446.82 | I168: 452.78 | J168: 457.07 | K168: 448.5 | L168: 438.25 | M168: 7.83574
A169: 159 | B169: GODFRYPHLP | C169: 782.35 | D169: 780.45 | E169: 770.90 | F169: 759.45 | G169: 749.90 | H169: 791.90 | I169: 801.45 | J169: 812.90 | K169: 790 | L169: 769 | M169: 0.34705
A170: 160 | B170: GODREJAGRO | C170: 487.9 | D170: 489.77 | E170: 484.63 | F170: 481.37 | G170: 476.23 | H170: 493.03 | I170: 498.17 | J170: 501.43 | K170: 494.9 | L170: 486.5 | M170: 1.28053
A171: 161 | B171: GODREJCP | C171: 644.1 | D171: 645.00 | E171: 638.10 | F171: 632.10 | G171: 625.20 | H171: 651.00 | I171: 657.90 | J171: 663.90 | K171: 651.9 | L171: 639 | M171: 6.53799
A172: 162 | B172: GODREJIND | C172: 483.7 | D172: 481.20 | E172: 475.50 | F172: 467.30 | G172: 461.60 | H172: 489.40 | I172: 495.10 | J172: 503.30 | K172: 486.9 | L172: 473 | M172: 1.47075
A173: 163 | B173: GODREJPROP | C173: 977.25 | D173: 981.42 | E173: 965.83 | F173: 954.42 | G173: 938.83 | H173: 992.83 | I173: 1008.42 | J173: 1019.83 | K173: 997 | L173: 970 | M173: 1.52367
A174: 164 | B174: GRANULES | C174: 93.55 | D174: 93.88 | E174: 92.77 | F174: 91.98 | G174: 90.87 | H174: 94.67 | I174: 95.78 | J174: 96.57 | K174: 95 | L174: 93.1 | M174: 1.43061
A175: 165 | B175: GRAPHITE | C175: 285.75 | D175: 290.07 | E175: 276.68 | F175: 267.62 | G175: 254.23 | H175: 299.13 | I175: 312.52 | J175: 321.58 | K175: 303.45 | L175: 281 | M175: 11.86003
A176: 166 | B176: GRASIM | C176: 907.7 | D176: 913.20 | E176: 899.95 | F176: 892.20 | G176: 878.95 | H176: 920.95 | I176: 934.20 | J176: 941.95 | K176: 926.45 | L176: 905.45 | M176: 6.92689
A177: 167 | B177: GESHIP | C177: 258.3 | D177: 258.87 | E177: 254.93 | F177: 251.57 | G177: 247.63 | H177: 262.23 | I177: 266.17 | J177: 269.53 | K177: 262.8 | L177: 255.5 | M177: 0.56386
A178: 168 | B178: GREAVESCOT | C178: 136.05 | D178: 135.53 | E178: 134.37 | F178: 132.68 | G178: 131.52 | H178: 137.22 | I178: 138.38 | J178: 140.07 | K178: 136.7 | L178: 133.85 | M178: 1.83036
A179: 169 | B179: GRINDWELL | C179: 580.8 | D179: 579.60 | E179: 574.20 | F179: 567.60 | G179: 562.20 | H179: 586.20 | I179: 591.60 | J179: 598.20 | K179: 585 | L179: 573 | M179: 0.03078
A180: 170 | B180: GRUH | C180: 282.3 | D180: 282.98 | E180: 280.42 | F180: 278.53 | G180: 275.97 | H180: 284.87 | I180: 287.43 | J180: 289.32 | K180: 285.55 | L180: 281.1 | M180: 5.41557
A181: 171 | B181: GUJALKALI | C181: 474.2 | D181: 479.08 | E181: 467.27 | F181: 460.33 | G181: 448.52 | H181: 486.02 | I181: 497.83 | J181: 504.77 | K181: 490.9 | L181: 472.15 | M181: 0.17668
A182: 172 | B182: GUJFLUORO | C182: 941.1 | D182: 937.07 | E182: 920.13 | F182: 899.17 | G182: 882.23 | H182: 958.03 | I182: 974.97 | J182: 995.93 | K182: 954 | L182: 916.1 | M182: 0.63061
A183: 173 | B183: GUJGASLTD | C183: 163.1 | D183: 163.37 | E183: 161.33 | F183: 159.57 | G183: 157.53 | H183: 165.13 | I183: 167.17 | J183: 168.93 | K183: 165.4 | L183: 161.6 | M183: 2.11666
A184: 174 | B184: GMDCLTD | C184: 71.6 | D184: 71.85 | E184: 70.90 | F184: 70.20 | G184: 69.25 | H184: 72.55 | I184: 73.50 | J184: 74.20 | K184: 72.8 | L184: 71.15 | M184: 0.43771
A185: 175 | B185: GNFC | C185: 224.05 | D185: 225.58 | E185: 221.67 | F185: 219.28 | G185: 215.37 | H185: 227.97 | I185: 231.88 | J185: 234.27 | K185: 229.5 | L185: 223.2 | M185: 1.54035
A186: 176 | B186: GPPL | C186: 81.15 | D186: 81.37 | E186: 80.33 | F186: 79.52 | G186: 78.48 | H186: 82.18 | I186: 83.22 | J186: 84.03 | K186: 82.4 | L186: 80.55 | M186: 0.50995
A187: 177 | B187: GSFC | C187: 87 | D187: 87.18 | E187: 86.57 | F187: 86.13 | G187: 85.52 | H187: 87.62 | I187: 88.23 | J187: 88.67 | K187: 87.8 | L187: 86.75 | M187: 4.7912
A188: 178 | B188: GSPL | C188: 208.65 | D188: 209.05 | E188: 203.70 | F188: 198.75 | G188: 193.40 | H188: 214.00 | I188: 219.35 | J188: 224.30 | K188: 214.4 | L188: 204.1 | M188: 2.54078
A189: 179 | B189: GULFOILLUB | C189: 823.05 | D189: 827.82 | E189: 806.73 | F189: 790.42 | G189: 769.33 | H189: 844.13 | I189: 865.22 | J189: 881.53 | K189: 848.9 | L189: 811.5 | M189: 0.06628
A190: 180 | B190: HEG | C190: 1113.75 | D190: 1139.25 | E190: 1084.50 | F190: 1055.25 | G190: 1000.50 | H190: 1168.50 | I190: 1223.25 | J190: 1252.50 | K190: 1194 | L190: 1110 | M190: 4.21309
A191: 181 | B191: HCLTECH | C191: 1018.55 | D191: 1023.85 | E191: 1010.70 | F191: 1002.85 | G191: 989.70 | H191: 1031.70 | I191: 1044.85 | J191: 1052.70 | K191: 1037 | L191: 1016 | M191: 13.0415
A192: 182 | B192: HDFCAMC | C192: 2170 | D192: 2142.43 | E192: 2092.87 | F192: 2015.73 | G192: 1966.17 | H192: 2219.57 | I192: 2269.13 | J192: 2346.27 | K192: 2192 | L192: 2065.3 | M192: 11.32963
A193: 183 | B193: HDFCBANK | C193: 2411.9 | D193: 2414.27 | E193: 2399.53 | F193: 2387.17 | G193: 2372.43 | H193: 2426.63 | I193: 2441.37 | J193: 2453.73 | K193: 2429 | L193: 2401.9 | M193: 27.00646
A194: 184 | B194: HDFCLIFE | C194: 503.55 | D194: 503.85 | E194: 497.20 | F194: 490.85 | G194: 484.20 | H194: 510.20 | I194: 516.85 | J194: 523.20 | K194: 510.5 | L194: 497.5 | M194: 31.15748
A195: 185 | B195: HATHWAY | C195: 21.3 | D195: 21.62 | E195: 20.83 | F195: 20.37 | G195: 19.58 | H195: 22.08 | I195: 22.87 | J195: 23.33 | K195: 22.4 | L195: 21.15 | M195: 1.16628
A196: 186 | B196: HATSUN | C196: 704.3 | D196: 706.57 | E196: 698.73 | F196: 693.17 | G196: 685.33 | H196: 712.13 | I196: 719.97 | J196: 725.53 | K196: 714.4 | L196: 701 | M196: 0.04915
A197: 187 | B197: HAVELLS | C197: 717.55 | D197: 721.60 | E197: 708.90 | F197: 700.25 | G197: 687.55 | H197: 730.25 | I197: 742.95 | J197: 751.60 | K197: 734.3 | L197: 712.95 | M197: 11.2003
A198: 188 | B198: HEIDELBERG | C198: 199 | D198: 199.97 | E198: 195.13 | F198: 191.27 | G198: 186.43 | H198: 203.83 | I198: 208.67 | J198: 212.53 | K198: 204.8 | L198: 196.1 | M198: 2.3618
A199: 189 | B199: HERITGFOOD | C199: 359.75 | D199: 363.50 | E199: 353.45 | F199: 347.15 | G199: 337.10 | H199: 369.80 | I199: 379.85 | J199: 386.15 | K199: 373.55 | L199: 357.2 | M199: 0.80916
A200: 190 | B200: HEROMOTOCO | C200: 2479.45 | D200: 2500.37 | E200: 2445.73 | F200: 2412.02 | G200: 2357.38 | H200: 2534.08 | I200: 2588.72 | J200: 2622.43 | K200: 2555 | L200: 2466.65 | M200: 9.77841
A201: 191 | B201: HEXAWARE | C201: 360.9 | D201: 359.27 | E201: 352.13 | F201: 343.37 | G201: 336.23 | H201: 368.03 | I201: 375.17 | J201: 383.93 | K201: 366.4 | L201: 350.5 | M201: 9.94239
A202: 192 | B202: HFCL | C202: 20.05 | D202: 20.23 | E202: 19.82 | F202: 19.58 | G202: 19.17 | H202: 20.47 | I202: 20.88 | J202: 21.12 | K202: 20.65 | L202: 20 | M202: 13.5758
A203: 193 | B203: HSCL | C203: 91.2 | D203: 92.03 | E203: 90.17 | F203: 89.13 | G203: 87.27 | H203: 93.07 | I203: 94.93 | J203: 95.97 | K203: 93.9 | L203: 91 | M203: 3.16521
A204: 194 | B204: HIMATSEIDE | C204: 154.1 | D204: 155.72 | E204: 151.43 | F204: 148.77 | G204: 144.48 | H204: 158.38 | I204: 162.67 | J204: 165.33 | K204: 160 | L204: 153.05 | M204: 0.51592
A205: 195 | B205: HINDALCO | C205: 200.55 | D205: 200.93 | E205: 198.97 | F205: 197.38 | G205: 195.42 | H205: 202.52 | I205: 204.48 | J205: 206.07 | K205: 202.9 | L205: 199.35 | M205: 51.74253
A206: 196 | B206: HAL | C206: 675.25 | D206: 675.92 | E206: 670.33 | F206: 665.42 | G206: 659.83 | H206: 680.83 | I206: 686.42 | J206: 691.33 | K206: 681.5 | L206: 671 | M206: 0.07995
... 320 more rows

Sheet Bulk Deals
E6: Back To Main Page
A7: Subject : | B7: BULK DEAL | D7: =Main!B10 -> 2019-07-19
A9: Date | B9: Scrip code | C9: Scrip Name | D9: Client Name | E9: Buy / Sell | F9: Quantity Traded | G9: Trade Price / Wt.Avg.trade price | H9: Exchange
A10: 2019-07-18 | B10: 537766 | C10: BCP | D10: ACHINTYA SECURITIES PVT. LTD. | E10: BUY | F10: 450,764 | G10: 45.05 | H10: BSE
A11: 2019-07-18 | B11: 537766 | C11: BCP | D11: ACHINTYA SECURITIES PVT. LTD. | E11: SELL | F11: 450,764 | G11: 44.65 | H11: BSE
A12: 2019-07-18 | B12: 539399 | C12: BELLACASA | D12: HEM CHAND JAIN | E12: BUY | F12: 80,000 | G12: 149.63 | H12: BSE
A13: 2019-07-18 | B13: 504340 | C13: CONFINT | D13: HEMANGINI VINITKUMAR PARIKH | E13: SELL | F13: 448,759 | G13: 0.76 | H13: BSE
A14: 2019-07-18 | B14: 504340 | C14: CONFINT | D14: PINKY SURANA | E14: BUY | F14: 448,764 | G14: 0.76 | H14: BSE
A15: 2019-07-18 | B15: 542724 | C15: EARUM | D15: MOHIT PRAKASH JALAN | E15: SELL | F15: 36,000 | G15: 39.99 | H15: BSE
A16: 2019-07-18 | B16: 538835 | C16: INTELLECT | D16: AMANSA HOLDINGS PRIVATE LIMITED | E16: BUY | F16: 960,400 | G16: 267 | H16: BSE
A17: 2019-07-18 | B17: 540937 | C17: MEDICO | D17: EMRALD COMMERCIAL LIMITED | E17: BUY | F17: 37,200 | G17: 87.15 | H17: BSE
A18: 2019-07-18 | B18: 540937 | C18: MEDICO | D18: SAJANKUMAR RAMESHWARLAL BAJAJ | E18: SELL | F18: 54,000 | G18: 87.15 | H18: BSE
A19: 2019-07-18 | B19: 542628 | C19: NSL | D19: AMIT JAYANTILAL PATEL . | E19: SELL | F19: 87,000 | G19: 32.00 | H19: BSE
A20: 2019-07-18 | B20: 500337 | C20: PRIMESECU | D20: YAMINI ANANT GAWANDE | E20: SELL | F20: 141,050 | G20: 40 | H20: BSE
A21: 2019-07-18 | B21: 500337 | C21: PRIMESECU | D21: MANISH JAIN | E21: BUY | F21: 210,000 | G21: 40.00 | H21: BSE
A22: 2019-07-18 | B22: 500337 | C22: PRIMESECU | D22: MANISH JAIN | E22: SELL | F22: 5,090 | G22: 41.00 | H22: BSE
A23: 2019-07-18 | B23: 541634 | C23: RAWEDGE | D23: SUNCARE TRADERS LIMITED | E23: BUY | F23: 54,400 | G23: 71.1 | H23: BSE
A24: 2019-07-18 | B24: 541634 | C24: RAWEDGE | D24: BIMALKUMAR RAJKUMAR BANSAL | E24: SELL | F24: 54,400 | G24: 70.84 | H24: BSE
A25: 2019-07-18 | B25: 539760 | C25: RELICAB | D25: SAJANKUMAR RAMESHWARLAL BAJAJ | E25: SELL | F25: 51,000 | G25: 48.85 | H25: BSE
A26: 2019-07-18 | B26: 539760 | C26: RELICAB | D26: GOODPOINT COMMODEAL PRIVATE LIMITED | E26: BUY | F26: 51,000 | G26: 48.85 | H26: BSE
A27: 2019-07-18 | B27: 540736 | C27: SIDDH | D27: NIRANJAN PRAFULLA JOSHI | E27: BUY | F27: 68,000 | G27: 24.6 | H27: BSE
A28: 2019-07-18 | B28: 540736 | C28: SIDDH | D28: KAPIL RAHUL KASBE | E28: SELL | F28: 68,000 | G28: 24.84 | H28: BSE
A29: 2019-07-18 | B29: 540736 | C29: SIDDH | D29: B RATISH AGARWAL GOEL | E29: BUY | F29: 60,000 | G29: 24.85 | H29: BSE
A30: 2019-07-18 | B30: 540736 | C30: SIDDH | D30: REENA VINAY BHAGWAT | E30: SELL | F30: 68,000 | G30: 24.6 | H30: BSE
A31: 2019-07-18 | B31: 539026 | C31: SSPNFIN | D31: RUSHIL SHAILESH PANDYA | E31: BUY | F31: 18,000 | G31: 44 | H31: BSE
A32: 2019-07-18 | B32: 539026 | C32: SSPNFIN | D32: SANDESH ASHOK NANDODE | E32: BUY | F32: 12,000 | G32: 44 | H32: BSE
A33: 2019-07-18 | B33: 539026 | C33: SSPNFIN | D33: SANTOSH DOULAT PASTE HUF | E33: SELL | F33: 30,000 | G33: 44 | H33: BSE
A34: 2019-07-18 | B34: ABINFRA | C34: A B Infrabuild Limited | D34: AMIT RAJENDRA PRASAD AGARWAL | E34: BUY | F34: 80,000 | G34: 24.85 | H34: NSE
A35: 2019-07-18 | B35: DHFL | C35: Dewan Housing Fin Corp | D35: ALPHAGREP SECURITIES PRIVATE LIMITED | E35: BUY | F35: 2,366,710 | G35: 56.83 | H35: NSE
A36: 2019-07-18 | B36: DHFL | C36: Dewan Housing Fin Corp | D36: TOWER RESEARCH CAPITAL MARKETS INDIA PRIVATE LIMITED | E36: BUY | F36: 2,761,417 | G36: 56.46 | H36: NSE
A37: 2019-07-18 | B37: INTELLECT | C37: Intellect Design Arena | D37: AMANSA HOLDINGS PRIVATE LIMITED | E37: BUY | F37: 953,000 | G37: 267 | H37: NSE
A38: 2019-07-18 | B38: RELCAPITAL | C38: Reliance Capital Limited | D38: TOWER RESEARCH CAPITAL MARKETS INDIA PRIVATE LIMITED | E38: BUY | F38: 1,793,892 | G38: 53.43 | H38: NSE
A39: 2019-07-18 | B39: RELINFRA | C39: Reliance Infrastructu Ltd | D39: TOWER RESEARCH CAPITAL MARKETS INDIA PRIVATE LIMITED | E39: BUY | F39: 1,681,978 | G39: 49.24 | H39: NSE
A40: 2019-07-18 | B40: SANCO | C40: Sanco Industries Ltd. | D40: RESOURCE OPZIONE CONSULTANCY PRIVATE LIMITED | E40: BUY | F40: 51,653 | G40: 17.31 | H40: NSE
A41: 2019-07-18 | B41: SOLEX | C41: Solex Energy Limited | D41: PRANAV KRISHNACHANDRA JHAVERI | E41: BUY | F41: 30,000 | G41: 23.1 | H41: NSE
A42: 2019-07-18 | B42: URAVI | C42: Uravi T And Wedg Lamp Ltd | D42: S K GROWTH FUND PVT LTD | E42: BUY | F42: 27,600 | G42: 110.09 | H42: NSE
A43: 2019-07-18 | B43: YESBANK | C43: Yes Bank Limited | D43: TOWER RESEARCH CAPITAL MARKETS INDIA PRIVATE LIMITED | E43: BUY | F43: 16,307,499 | G43: 87.23 | H43: NSE
A44: 2019-07-18 | B44: DHFL | C44: Dewan Housing Fin Corp | D44: TOWER RESEARCH CAPITAL MARKETS INDIA PRIVATE LIMITED | E44: SELL | F44: 2,761,417 | G44: 56.54 | H44: NSE
A45: 2019-07-18 | B45: DHFL | C45: Dewan Housing Fin Corp | D45: ALPHAGREP SECURITIES PRIVATE LIMITED | E45: SELL | F45: 2,364,771 | G45: 56.85 | H45: NSE
A46: 2019-07-18 | B46: RELCAPITAL | C46: Reliance Capital Limited | D46: TOWER RESEARCH CAPITAL MARKETS INDIA PRIVATE LIMITED | E46: SELL | F46: 1793892 | G46: 53.47 | H46: NSE
A47: 2019-07-18 | B47: RELINFRA | C47: Reliance Infrastructu Ltd | D47: TOWER RESEARCH CAPITAL MARKETS INDIA PRIVATE LIMITED | E47: SELL | F47: 1681978 | G47: 49.22 | H47: NSE
A48: 2019-07-18 | B48: URAVI | C48: Uravi T And Wedg Lamp Ltd | D48: ARYAMAN CAPITAL MARKETS LIMITED | E48: SELL | F48: 27600 | G48: 110.09 | H48: NSE
A49: 2019-07-18 | B49: YESBANK | C49: Yes Bank Limited | D49: TOWER RESEARCH CAPITAL MARKETS INDIA PRIVATE LIMITED | E49: SELL | F49: 16307499 | G49: 87.24 | H49: NSE

Sheet Call Tracker (Equity & F&O)
M5: Back To Main Page
A6: Retail Research Technical Calls & Fundamental Performance Report for the month of July-2019
M7: =Main!B10 -> 2019-07-19
B8: Positional Call
A9: Sr.no | B9: Date | D9: Company | E9: Rec | F9: Rec Price | G9: Stop Loss*** | H9: Call Closed At | I9: Target | J9: Remark | K9: Profit / Loss per Share | L9: Gain / Loss % | M9: Status | N9: Closed Date | O9: NSE Closed Price
A10: 1 | B10: 2019-05-27 | D10: TATAELXSI | E10: Buy | F10: 874 | G10: 818.7 | H10: 863 | I10: 970-990 | J10: Loss of Rs.11/- | K10: =H10-F10 -> -11 | L10: =K10/F10 -> -1.26% | M10: Unsuccessful | N10: 2019-07-16 | R10: R
A11: 2 | B11: 2019-05-28 | D11: BAJAJFINSV | E11: Sell | F11: 8175 | G11: 8625 | H11: 7925 | I11: 7300 | J11: Profit of Rs.250/- | K11: =F11-H11 -> 250 | L11: 3.06% | M11: Successful | N11: 2019-07-08 | R11: H
A12: 3 | B12: 2019-05-31 | D12: ITC | E12: Buy | F12: 285-287 | G12: 268.3 | I12: 315-325 | J12: Open | O12: =VLOOKUP(D12,Sheet2!A61:M1856,6,0) -> 273 | R12: R
A13: 4 | B13: 2019-06-13 | D13: GODREJCP | E13: Buy | F13: 677.5 | G13: 644 | H13: 639.5 | I13: 740-750 | J13: Loss of Rs.38/- | K13: =H13-F13 -> -38 | L13: =K13/F13 -> -5.61% | M13: Unsuccessful | N13: 2019-07-10 | R13: H
A14: 5 | B14: 2019-06-17 | D14: SUNTV | E14: Buy | F14: 517 | G14: 476 | H14: 507 | I14: 575-585 | J14: Loss of Rs.10/- | K14: =H14-F14 -> -10 | L14: =K14/F14 -> -1.93% | M14: Unsuccessful | N14: 2019-07-08 | R14: R
A15: 6 | B15: 2019-06-21 | D15: AJANTPHARM | E15: Buy | F15: 955 | G15: 897.7 | H15: 894 | I15: 1060-1080 | J15: Loss of Rs.61/- | K15: =H15-F15 -> -61 | L15: =K15/F15 -> -6.39% | M15: Unsuccessful | N15: 2019-07-11 | R15: R
A16: 7 | B16: 2019-06-24 | D16: ESCORTS | E16: Buy | F16: 549.5 | G16: 518 | H16: 545.25 | I16: 600 | J16: Loss of Rs.4.25/- | K16: -4.25 | L16: -0.77% | M16: Neutral | N16: 2019-07-08 | R16: H
A17: 8 | B17: 2019-06-25 | D17: JUBLFOOD | E17: Buy | F17: 1260-1265 | G17: 1158.3 | I17: 1450 -1470 | J17: Open | O17: =VLOOKUP(D17,Sheet2!A4:M1643,6,0) -> 1245.85 | R17: R
A18: 9 | B18: 2019-07-04 | D18: TORNTPHARM | E18: Buy | F18: 1545 | G18: 1454 | H18: 1610 | I18: 1730-1750 | J18: Part Profit of Rs.65/- | K18: =H18-F18 -> 65 | L18: =K18/F18 -> 4.21% | M18: Successful | N18: 2019-07-16 | R18: R
A19: 10 | B19: 2019-07-10 | D19: TCS | E19: Buy | F19: 2105-2115 | G19: 1973 | I19: 2295-2345 | J19: Open | O19: =VLOOKUP(D19,Sheet2!A6:M1645,6,0) -> 2065.95 | R19: H
A20: 11 | B20: 2019-07-11 | D20: BAJAJ-AUTO | E20: Buy | F20: 2665-2675 | G20: 2527 | I20: 1920-1950 | J20: Open | O20: =VLOOKUP(D20,Sheet2!A7:M1646,6,0) -> 2630.8 | R20: R
A21: 12 | B21: 2019-07-11 | D21: BERGEPAINT | E21: Buy | F21: 304 | G21: 288 | H21: 316.5 | I21: 330-340 | J21: Part Profit of Rs.12.5/- | K21: =H21-F21 -> 12.5 | L21: =K21/F21 -> 4.11% | M21: Successful | N21: 2019-07-17 | R21: H
A22: 13 | B22: 2019-07-12 | D22: ABFRL | E22: Buy | F22: 201 | G22: 189.3 | H22: 208.75 | I22: 222-226 | J22: Profit of Rs.7.75/- | K22: =H22-F22 -> 7.75 | L22: =K22/F22 -> 3.86% | M22: Successful | N22: 2019-07-12 | R22: R
A23: 14 | B23: 2019-07-12 | D23: LT | E23: Buy | F23: 1470-1480 | G23: 1370 | I23: 1650-1700 | J23: Open | O23: =VLOOKUP(D23,Sheet2!A10:M1649,6,0) -> 1435.2 | R23: H
A24: 15 | B24: 2019-07-15 | D24: BIOCON | E24: Buy | F24: 251.5 | G24: 237 | H24: 262.25 | I24: 270 -280 | J24: Part Profit of Rs.10.75/- | K24: =H24-F24 -> 10.75 | L24: =K24/F24 -> 4.27% | M24: Successful | N24: 2019-07-17 | R24: H
A25: 16 | B25: 2019-07-16 | D25: ABFRL | E25: Buy | F25: 201-203 | G25: 189.3 | I25: 222-226 | J25: Open | O25: =VLOOKUP(D25,Sheet2!A12:M1651,6,0) -> 203.05 | R25: R
A26: 17 | B26: 2019-07-17 | D26: BANKINDIA | E26: Buy | F26: 84-85 | G26: 82 | I26: 90 | J26: Open | O26: =VLOOKUP(D26,Sheet2!A13:M1652,6,0) -> 82.15 | R26: H
A27: 18 | B27: 2019-07-17 | D27: BHARTIARTL | E27: Buy | F27: 347-349 | G27: 322 | I27: 392 -396 | J27: Open | O27: =VLOOKUP(D27,Sheet2!A14:M1653,6,0) -> 342.5 | R27: R
A28: 19 | B28: 2019-07-18 | D28: NAVINFLUOR | E28: Buy | F28: 608-616 | G28: 570 | I28: 680 -700 | J28: Open | O28: =VLOOKUP(D28,Sheet2!A15:M1654,6,0) -> 606.6 | R28: H
A32: CLBS = Closing Basis *** | F32: Reinitiated $
A33: Dividend adjusted <> | F33: Revised stoploss #
A34: Part book {}
B36: Momentum Call
A37: Sr.no | B37: Date | D37: Company | E37: Rec | F37: Rec Price | G37: Stop Loss | H37: Call Closed At | I37: Target | J37: Remark | K37: Profit / Loss per Share/Lot | L37: Gain / Loss % | M37: Gain / Loss per Lot | N37: Lot | O37: Status | P37: Closed Date
A38: 1 | B38: 2019-06-26 | D38: INDUSINDBK | E38: Buy | F38: 1437.5 | G38: 1395 | H38: 1475.5 | I38: 1480-1500 | J38: Profit of Rs.38 /- | K38: =H38-F38 -> 38 | L38: =K38/F38 -> 2.64% | O38: Successful | P38: 2019-07-03 | R38: H
A39: 2 | B39: 2019-06-26 | D39: HEROMOTOCO | E39: Buy | F39: 2590 | G39: 2490 | H39: 2530 | I39: 2750-2800 | J39: Loss of Rs.9.5 /- | K39: =H39-F39 -> -60 | L39: -2.32% | O39: Unsuccessful | P39: 2019-07-05 | R39: H
A40: 3 | B40: 2019-06-27 | D40: ASIANPAINT JUL FUT | E40: Buy | F40: 1372 | G40: 1352 | H40: 1352 | I40: 1400 -1410 | J40: Loss of Rs.20 /- | K40: =H40-F40 -> -20 | M40: =K40*N40 -> -12000 | N40: 600 | O40: Unsuccessful | P40: 2019-07-02 | R40: N
A41: 4 | B41: 2019-06-27 | D41: TITAN JULY FUT | E41: Sell | F41: 1331 | G41: 1350 | H41: 1322 | I41: 1290 | J41: Profit of Rs.9 /- | K41: =F41-H41 -> 9 | M41: 6750 | N41: 750 | O41: Successful | P41: 2019-07-02 | R41: H
A42: 5 | B42: 2019-06-27 | D42: COLPAL JUL FUT | E42: Buy | F42: 1137 | G42: 1120 | H42: 1149 | I42: 1170 | J42: Profit of Rs.12 /- | K42: =H42-F42 -> 12 | M42: 8400 | N42: 700 | O42: Successful | P42: 2019-07-02 | R42: N
A43: 6 | B43: 2019-06-28 | D43: CIPLA JULY FUT | E43: Buy | F43: 556 | G43: 545 | H43: 545 | I43: 575-580 | J43: Loss of Rs.11 /- | K43: =H43-F43 -> -11 | M43: -11000 | N43: 1000 | O43: Unsuccessful | P43: 2019-07-08 | R43: H
A44: 7 | B44: 2019-06-28 | D44: NIITTECH JUL FUT | E44: Sell | F44: 1326.5 | G44: 1345 | H44: 1318 | I44: 1290 | J44: Profit of Rs.8.5 /- | K44: =F44-H44 -> 8.5 | M44: 6375 | N44: 750 | O44: Successful | P44: 2019-07-05 | R44: R
A45: 8 | B45: 2019-06-28 | D45: POWERGRID JUL FUT | E45: Buy | F45: 206.25 | G45: 203 | H45: 208.5 | I45: 213 | J45: Profit of Rs.2.25 /- | K45: =H45-F45 -> 2.25 | M45: 9000 | N45: 4000 | O45: Successful | P45: 2019-07-01 | R45: N
A46: 9 | B46: 2019-06-28 | D46: LT JUL FUT | E46: Buy | F46: 1549 | G46: 1519 | H46: 1568 | I46: 1600 | J46: Profit of Rs.19 /- | K46: =H46-F46 -> 19 | M46: 7125 | N46: 375 | O46: Successful | P46: 2019-07-03 | R46: N
A47: 10 | B47: 2019-07-01 | D47: BATAINDIA JUL FUT | E47: Sell | F47: 1435 | G47: 1458.7 | H47: 1458.7 | I47: 1400 | J47: Loss of Rs.23.7 /- | K47: =F47-H47 -> -23.7 | M47: -13035 | N47: 550 | O47: Unsuccessful | P47: 2019-07-03 | R47: R
A48: 11 | B48: 2019-07-01 | D48: CADILAHC JUL FUT | E48: Buy | F48: 242.5 | G48: 235 | H48: 235 | I48: 260 | J48: Loss of Rs.7.5 /- | K48: =H48-F48 -> -7.5 | M48: -12000 | N48: 1600 | O48: Unsuccessful | P48: 2019-07-02 | R48: H
A49: 12 | B49: 2019-07-01 | D49: MCDOWELL-N | E49: Sell | F49: 592.5 | G49: 610 | H49: 580 | I49: 565-560 | J49: Profit of Rs.12.5 /- | K49: =F49-H49 -> 12.5 | L49: =K49/F49 -> 2.11% | O49: Successful | P49: 2019-07-03 | R49: H
A50: 13 | B50: 2019-07-02 | D50: HDFC JULY FUT | E50: Sell | F50: 2239 | G50: 2262 | H50: 2259 | I50: 2200 | J50: Loss of Rs.20/- | K50: =F50-H50 -> -20 | M50: =K50*N50 -> -10000 | N50: 500 | O50: Unsuccessful | P50: 2019-07-02 | R50: H
A51: 14 | B51: 2019-07-02 | D51: BHARTIARTL JUL FUT | E51: Buy | F51: 351 | G51: 344.3 | H51: 355.5 | I51: 362-365 | J51: Profit of Rs.4.5 /- | K51: =H51-F51 -> 4.5 | M51: =K51*N51 -> 8329.5 | N51: 1851 | O51: Successful | P51: 2019-07-02 | R51: R
A52: 15 | B52: 2019-07-02 | D52: TVSMOTOR JUL FUT | E52: Sell | F52: 429 | G52: 441 | H52: 429 | I52: 410 | J52: Neutral | K52: =H52-F52 -> 0 | M52: =K52*N52 -> 0 | N52: 1100 | O52: Neutral | P52: 2019-07-05 | R52: N
A53: 16 | B53: 2019-07-02 | D53: RECLTD | E53: Sell | F53: 163.5 | G53: 168.2 | H53: 166.5 | I53: 156-154 | J53: Loss of Rs.3/- | K53: =F53-H53 -> -3 | L53: =K53/F53 -> -1.83% | O53: Unsuccessful | P53: 2019-07-03 | R53: R
A54: 17 | B54: 2019-07-02 | D54: TITAN JUL FUT | E54: Sell | F54: 1333.5 | G54: 1353 | H54: 1324.5 | I54: 1300-1290 | J54: Profit of Rs.9 /- | K54: =F54-H54 -> 9 | M54: =K54*N54 -> 6750 | N54: 750 | O54: Successful | P54: 2019-07-03 | R54: H
A55: 18 | B55: 2019-07-02 | D55: RAYMOND JUL FUT | E55: Buy | F55: 745 | G55: 730 | H55: 754.5 | I55: 765-770 | J55: Profit of Rs.9.5 /- | K55: =H55-F55 -> 9.5 | M55: =K55*N55 -> 7600 | N55: 800 | O55: Successful | P55: 2019-07-03 | R55: N
A56: 19 | B56: 2019-07-03 | D56: IGL | E56: Buy | F56: 307.5 | G56: 298 | H56: 298 | I56: 325-339 | J56: Loss of Rs.9.5 /- | K56: =H56-F56 -> -9.5 | L56: =K56/F56 -> -3.09% | O56: Unsuccessful | P56: 2019-07-05 | R56: H
A57: 20 | B57: 2019-07-03 | D57: SUNPHARMA | E57: Buy | F57: 395.5 | G57: 379 | H57: 385.5 | I57: 420-425 | J57: Loss of Rs.10 /- | K57: =H57-F57 -> -10 | L57: =K57/F57 -> -2.53% | O57: Unsuccessful | P57: 2019-07-05 | R57: H
A58: 21 | B58: 2019-07-03 | D58: BANKBARODA | E58: Buy | F58: 121.5 | G58: 118 | H58: 124.1 | I58: 128 | J58: Profit of Rs.2.6 /- | K58: =H58-F58 -> 2.6 | L58: =K58/F58 -> 2.14% | O58: Successful | P58: 2019-07-03 | R58: H
A59: 22 | B59: 2019-07-03 | D59: M&MFIN JUL FUT | E59: Buy | F59: 387.5 | G59: 379 | H59: 394 | I59: 408 | J59: Profit of Rs.6.5 /- | K59: =H59-F59 -> 6.5 | M59: =K59*N59 -> 8125 | N59: 1250 | O59: Successful | P59: 2019-07-04 | R59: H
A60: 23 | B60: 2019-07-04 | D60: UPL JUL FUT | E60: Sell | F60: 667 | G60: 681 | H60: 681 | I60: 645 | J60: Loss of Rs.14/- | K60: =F60-H60 -> -14 | M60: =K60*N60 -> -12600 | N60: 900 | O60: Unsuccessful | P60: 2019-07-04 | R60: R
A61: 24 | B61: 2019-07-04 | D61: INDUSINDBK JUL FUT | E61: Buy | F61: 1497.5 | G61: 1467 | H61: 1517.5 | I61: 1550-1560 | J61: Profit of Rs.20 /- | K61: =H61-F61 -> 20 | M61: =K61*N61 -> 8000 | N61: 400 | O61: Successful | P61: 2019-07-05 | R61: N
A62: 25 | B62: 2019-07-05 | D62: BERGEPAINT | E62: Buy | F62: 314 | G62: 304 | H62: 304 | I62: 330-333 | J62: Loss of Rs.10/- | K62: =H62-F62 -> -10 | L62: =K62/F62 -> -3.18% | O62: Unsuccessful | P62: 2019-07-08 | R62: H
A63: 26 | B63: 2019-07-05 | D63: WIPRO JULY FUT | E63: Sell | F63: 278 | G63: 282 | H63: 274.75 | I63: 270 | J63: Profit of Rs.3.25/- | K63: =F63-H63 -> 3.25 | M63: =K63*N63 -> 10400 | N63: 3200 | O63: Successful | P63: 2019-07-05 | R63: H
A64: 27 | B64: 2019-07-05 | D64: MUTHOOTFIN JUL FUT | E64: Buy | F64: 635 | G64: 625 | H64: 629 | I64: 655 | J64: Loss of Rs.6 /- | K64: =H64-F64 -> -6 | M64: -9000 | N64: 1500 | O64: Unsuccessful | P64: 2019-07-05 | R64: N
A65: 28 | B65: 2019-07-05 | D65: EXIDEIND JUL FUT | E65: Buy | F65: 204 | G65: 199.5 | H65: 199.5 | I65: 215 | J65: Loss of Rs.4.5 /- | K65: -4.5 | M65: -10800 | N65: 2400 | O65: Unsuccessful | P65: 2019-07-08 | R65: N
A66: 29 | B66: 2019-07-05 | D66: TVSMOTOR JUL FUT | E66: Buy | F66: 429 | G66: 417.3 | H66: 417.3 | I66: 450 | J66: Loss of Rs.11.7/- | K66: -11.7 | M66: -12870 | N66: 1100 | O66: Unsuccessful | P66: 2019-07-08 | R66: R
A67: 30 | B67: 2019-07-08 | D67: CANBK JUL FUT | E67: Buy | F67: 289 | G67: 284 | H67: 284 | I67: 300 | J67: Loss of Rs.5 /- | K67: -5 | M67: -10000 | N67: 2000 | O67: Unsuccessful | P67: 2019-07-08 | R67: H
A68: 31 | B68: 2019-07-08 | D68: KOTAKBANK JUL FUT | E68: Buy | F68: 1500 | G68: 1470 | H68: 1470 | I68: 1550-1560 | J68: Loss of Rs.30 /- | K68: -30 | M68: -12000 | N68: 400 | O68: Unsuccessful | P68: 2019-07-09 | R68: H
A69: 32 | B69: 2019-07-09 | D69: RELIANCE | E69: Buy | F69: 1255 | G69: 1218 | H69: 1276 | I69: 1320-1330 | J69: Profit of Rs.21/- | K69: 21 | L69: =K69/F69 -> 1.67% | O69: Successful | P69: 2019-07-09 | R69: H
A70: 33 | B70: 2019-07-09 | D70: NIFTY JUL FUT | E70: Buy | F70: 11525 | G70: 11470 | H70: 11575 | I70: 11600 | J70: Profit of Rs.50/- | K70: 50 | M70: =K70*N70 -> 3750 | N70: 75 | O70: Successful | P70: 2019-07-09 | R70: R
A71: 34 | B71: 2019-07-09 | D71: M&MFIN | E71: Buy | F71: 390.5 | G71: 378 | H71: 379 | I71: 410-415 | J71: Loss of Rs.11.50/- | K71: =H71-F71 -> -11.5 | L71: =K71/F71 -> -2.94% | O71: Unsuccessful | P71: 2019-07-11 | R71: H
A72: 35 | B72: 2019-07-09 | D72: RBLBANK JUL FUT | E72: Buy | F72: 628 | G72: 618 | H72: 635 | I72: 645-650 | J72: Profit of Rs.7/- | K72: =H72-F72 -> 7 | M72: =K72*N72 -> 8400 | N72: 1200 | O72: Successful | P72: 2019-07-10 | R72: N
A73: 36 | B73: 2019-07-09 | D73: BANKNIFTY JUL FUT | E73: Buy | F73: 30560 | G73: 30440 | H73: 30670 | I73: 30750-30800 | J73: Profit of Rs.110/- | K73: =H73-F73 -> 110 | M73: =K73*N73 -> 2200 | N73: 20 | O73: Successful | P73: 2019-07-09 | R73: R
A74: 37 | B74: 2019-07-10 | D74: AMARAJABAT JUL FUT | E74: Buy | F74: 637 | G74: 620 | H74: 646.5 | I74: 670 | J74: Profit of Rs.9.50/- | K74: =H74-F74 -> 9.5 | M74: =K74*N74 -> 6650 | N74: 700 | O74: Successful | P74: 2019-07-11 | R74: N
A75: 38 | B75: 2019-07-10 | D75: CIPLA | E75: Buy | F75: 550 | G75: 535 | H75: 562 | I75: 575-580 | J75: Profit of Rs.12/- | K75: =H75-F75 -> 12 | L75: =K75/F75 -> 2.18% | O75: Successful | P75: 2019-07-12 | R75: H
A76: 39 | B76: 2019-07-10 | D76: BANKINDIA | E76: Buy | F76: 85.4 | G76: 83.5 | H76: 87.1 | I76: 90-92 | J76: Profit of Rs.1.70/- | K76: =H76-F76 -> 1.7 | L76: 1.99% | O76: Successful | P76: 2019-07-11 | R76: H
A77: 40 | B77: 2019-07-10 | D77: COLPAL JUL FUT | E77: Buy | F77: 1156.5 | G77: 1139 | H77: 1140 | I77: 1180-1190 | J77: Loss of Rs.16.50 /- | K77: =H77-F77 -> -16.5 | M77: =K77*N77 -> -11550 | N77: 700 | O77: Unsuccessful | P77: 2019-07-11 | R77: N
A78: 41 | B78: 2019-07-10 | D78: APOLLOHOSP | E78: Buy | F78: 1312.5 | G78: 1277 | H78: 1348.5 | I78: 1370-1380 | J78: Profit of Rs.36- | K78: 36 | L78: 2.74% | O78: Successful | P78: 2019-07-12 | R78: R
A79: 42 | B79: 2019-07-10 | D79: NIFTY JUL FUT | E79: Buy | F79: 11492.5 | G79: 11445 | H79: 11555 | I79: 11570-11590 | J79: Profit of Rs.62.50/- | K79: =H79-F79 -> 62.5 | M79: =K79*N79 -> 4687.5 | N79: 75 | O79: Successful | P79: 2019-07-11 | R79: R
A80: 43 | B80: 2019-07-11 | D80: HINDUNILVR | E80: Buy | F80: 1710 | G80: 1645 | H80: 1736 | I80: 1800 | J80: Profit of Rs.26/- | K80: =H80-F80 -> 26 | L80: =K80/F80 -> 1.52% | O80: Successful | P80: 2019-07-11 | R80: H
A81: 44 | B81: 2019-07-11 | D81: EXIDEIND | E81: Buy | F81: 201.5 | G81: 195 | H81: 204.75 | I81: 210-212 | J81: Profit of Rs.3.25/- | K81: 3.25 | L81: 1.61% | O81: Successful | P81: 2019-07-11 | R81: H
A82: 45 | B82: 2019-07-12 | D82: BATAINDIA JUL FUT | E82: Buy | F82: 1337.5 | G82: 1315 | H82: 1353 | I82: 1375 | J82: Profit of Rs.15.5/- | K82: 15.5 | M82: =K82*N82 -> 8525 | N82: 550 | O82: Successful | P82: 2019-07-12 | R82: N
A83: 46 | B83: 2019-07-12 | D83: POWERGRID JUL FUT | E83: Buy | F83: 206.75 | G83: 203.75 | H83: 208.75 | I83: 212 -213 | J83: Profit of Rs.2/- | K83: 2 | M83: =K83*N83 -> 8000 | N83: 4000 | O83: Successful | P83: 2019-07-16 | R83: N
A84: 47 | B84: 2019-07-12 | D84: RBLBANK JUL FUT | E84: Buy | F84: 637 | G84: 627 | H84: 627 | I84: 660 | J84: Loss of Rs.10 /- | K84: -10 | M84: =K84*N84 -> -12000 | N84: 1200 | O84: Unsuccessful | P84: 2019-07-15 | R84: N
A85: 48 | B85: 2019-07-15 | D85: TVSMOTORS | E85: Buy | F85: 430.5 | G85: 417 | H85: 417 | I85: 450 | J85: Loss of Rs.13.5 /- | K85: =H85-F85 -> -13.5 | L85: =K85/F85 -> -3.14% | O85: Unsuccessful | P85: 2019-07-18 | R85: H
A86: 49 | B86: 2019-07-15 | D86: NIFTY JUL FUT | E86: Buy | F86: 11525 | G86: 11470 | H86: 11565 | I86: 11600 | J86: Profit of Rs.40/- | K86: =H86-F86 -> 40 | M86: =K86*N86 -> 3000 | N86: 75 | O86: Successful | P86: 2019-07-15 | R86: R
A87: 50 | B87: 2019-07-15 | D87: APOLLOHOSP | E87: Sell | F87: 1399 | G87: 1430 | H87: 1382 | I87: 1360-1350 | J87: Profit of Rs.17/- | K87: =F87-H87 -> 17 | L87: =K87/F87 -> 1.22% | O87: Successful | P87: 2019-07-15 | R87: H
A88: 51 | B88: 2019-07-15 | D88: AMBUJACEM JUL FUT | E88: Sell | F88: 219.5 | G88: 225.3 | H88: 216.25 | I88: 212-210 | J88: Profit of Rs.3.25/- | K88: =F88-H88 -> 3.25 | M88: =K88*N88 -> 8125 | N88: 2500 | O88: Successful | P88: 2019-07-18 | R88: R
A89: 52 | B89: 2019-07-16 | D89: NTPC JUL FUT | E89: Sell | F89: 128.5 | G89: 131.5 | H89: 131 | I89: 123-122 | J89: Loss of Rs.2.5 /- | K89: =F89-H89 -> -2.5 | M89: -12000 | N89: 4800 | O89: Unsuccessful | P89: 2019-07-17 | R89: N
A90: 53 | B90: 2019-07-16 | D90: M&M JUL FUT | E90: Buy | F90: 616 | G90: 605 | H90: 605 | I90: 640 | J90: Loss of Rs.11 /- | K90: =H90-F90 -> -11 | M90: -11000 | N90: 1000 | O90: Unsuccessful | P90: 2019-07-18 | R90: H
A91: 54 | B91: 2019-07-16 | D91: ACC JUL FUT | E91: Sell | F91: 1597 | G91: 1625 | H91: 1580.5 | I91: 1550 | J91: Profit of Rs.16.5/- | K91: =F91-H91 -> 16.5 | M91: 6600 | N91: 400 | O91: Successful | P91: 2019-07-18 | R91: H
A92: 55 | B92: 2019-07-16 | D92: INDUSINDBK JUL FUT | E92: Buy | F92: 1485.5 | G92: 1457 | H92: 1505.5 | I92: 1540 -1550 | J92: Profit of Rs.20/- | K92: =H92-F92 -> 20 | M92: 8000 | N92: 400 | O92: Successful | P92: 2019-07-17 | R92: N
A93: 56 | B93: 2019-07-16 | D93: NIFTY JUL FUT | E93: Sell | F93: 11655 | G93: 11740 | H93: 11635 | I93: 11500 | J93: Profit of Rs.20/- | K93: =F93-H93 -> 20 | M93: 1500 | N93: 75 | O93: Successful | P93: 2019-07-18 | R93: R
A94: 57 | B94: 2019-07-17 | D94: CIPLA | E94: Buy | F94: 549 | G94: 535 | H94: 557.5 | I94: 575-580 | J94: Profit of Rs.8.5/- | K94: =H94-F94 -> 8.5 | L94: =K94/F94 -> 1.55% | O94: Successful | P94: 2019-07-17 | R94: H
A95: 58 | B95: 2019-07-17 | D95: AXISBANK | E95: Buy | F95: 756-761 | G95: 738 | I95: 790-800 | J95: Open | R95: H
A96: 59 | B96: 2019-07-17 | D96: IGL | E96: Sell | F96: 319-320 | G96: 328 | I96: 310 -305 | J96: Open | R96: H
A97: 60 | B97: 2019-07-17 | D97: RAYMOND JUL FUT | E97: Buy | F97: 700-702 | G97: 686 | I97: 730 | J97: Open | R97: N
A98: 61 | B98: 2019-07-18 | D98: LICHSGFIN | E98: Buy | F98: 540-543 | G98: 524.3 | I98: 570-575 | J98: Open | R98: R
A99: 62 | B99: 2019-07-18 | D99: APOLLOHOSP JUL FUT | E99: Buy | F99: 1392-1394 | G99: 1367 | I99: 1430-1440 | J99: Open | R99: N
A100: 63 | B100: 2019-07-18 | D100: POWERGRID JUL FUT | E100: Buy | F100: 206-206.50 | G100: 203.25 | I100: 212-213 | J100: Open | R100: N
A105: CLBS = Closing Basis ***
A106: Dividend adjusted <> | F106: Reinitiated $
F107: Revised stoploss #
A109: Master Trade High Risk
A110: Sr.no | B110: Date | D110: Company | E110: Rec | F110: Rec Price | G110: Stop Loss | H110: Call Closed At | I110: Target | J110: Remark | K110: Profit / Loss per share | L110: Gain / Loss per Lot | M110: Lot | N110: Status | O110: Closed Date
A111: 1 | B111: 2019-07-01 | D111: GAIL JUL FUT | E111: Buy | F111: 310.5 | G111: 298 | H111: 314.25 | I111: 325 | J111: Profit of Rs.3 /- | K111: =H111-F111 -> 3.75 | L111: =3*M111 -> 8001 | M111: 2667 | N111: Successful | O111: 2019-07-01 | R111: H
D112: GAIL 320 CE | E112: Sell | F112: 6 | H112: 6.75 | K112: =F112-H112 -> -0.75
A113: 2 | B113: 2019-07-03 | D113: BIOCON JUL FUT | E113: Buy | F113: 252 | G113: 243 | H113: 244 | I113: 265-268 | J113: Loss of Rs.8 /- | K113: =H113-F113 -> -8 | L113: =K113*M113 -> -14400 | M113: 1800 | N113: Unsuccessful | O113: 2019-07-05 | R113: R
A114: 3 | B114: 2019-07-03 | D114: GAIL JUL FUT | E114: Buy | F114: 153.25 | G114: 148.5 | H114: 148.5 | I114: 162.5 | J114: Loss of Rs.2.75 /- | K114: =H114-F114 -> -4.75 | L114: =-2.75*M114 -> -14668.5 | M114: 5334 | N114: Unsuccessful | O114: 2019-07-09 | R114: H
D115: GAIL 315 CE | E115: Sell | F115: 3 | H115: 1 | K115: =F115-H115 -> 2
A116: 4 | B116: 2019-07-12 | D116: HINDUNILVR JUL FUT | E116: Buy | F116: 1727.5 | G116: 1680 | H116: 1758 | I116: 1800 | J116: Profit of Rs.26.5 /- | K116: =H116-F116 -> 30.5 | L116: =26.5*M116 -> 7950 | M116: 300 | N116: Successful | O116: 2019-07-17 | R116: H
D117: HINDUNILVR 1760 CE | E117: Sell | F117: 21 | H117: 25 | K117: =F117-H117 -> -4
A118: 5 | B118: 2019-07-12 | D118: BRITANNIA JUL FUT | E118: Buy | F118: 2755 | G118: 2685 | H118: 2797.5 | I118: 2900 | J118: Profit of Rs.42.5/- | K118: =H118-F118 -> 42.5 | L118: =K118*M118 -> 8500 | M118: 200 | N118: Successful | O118: 2019-07-12 | R118: R
A119: 6 | B119: 2019-07-16 | D119: BRITANNIA JUL FUT | E119: Buy | F119: 2750 | G119: 2675 | H119: 2797.5 | I119: 2900 | J119: Profit of Rs.47.5/- | K119: =H119-F119 -> 47.5 | L119: =K119*M119 -> 9500 | M119: 200 | N119: Successful | O119: 2019-07-17 | R119: R
A125: Master Trade Medium Risk
A126: Sr.no | B126: Date | D126: Company | E126: Rec | F126: Rec Price | G126: Stop Loss | H126: Call Closed At | I126: Target | J126: Remark | K126: Profit/ Loss per lot | L126: Gain / Loss per Lot | M126: Lot | N126: Status | O126: Closed Date
A127: 1 | B127: 2019-06-28 | D127: NIFTY 11950 CE 4-JULY | E127: Buy | F127: 39.5 | G127: 18 | H127: 18 | I127: 70-80 | J127: Loss of Rs.21.5 /- | K127: =H127-F127 -> -21.5 | L127: =K127*M127 -> -1612.5 | M127: 75 | N127: Unsuccessful | O127: 2019-07-02 | R127: H
A128: 2 | B128: 2019-07-04 | D128: NIFTY 4-Jul 11950 PE | E128: Buy | F128: 16 | H128: 27 | I128: 45 | J128: Profit of Rs.11 /- | K128: 11 | L128: 825 | M128: 75 | N128: Successful | O128: 2019-07-04 | R128: R
A129: 3 | B129: 2019-07-05 | D129: NIFTY 11-Jul 11850 PE | E129: Buy | F129: 45 | H129: 60 | I129: 100 | J129: Profit of Rs.15 /- | K129: 15 | L129: 1125 | M129: 75 | N129: Successful | O129: 2019-07-05 | R129: H
A130: 4 | B130: 2019-07-05 | D130: NIFTY 11-Jul 11850 PE | E130: Buy | F130: 49 | H130: 64.5 | I130: 100 | J130: Profit of Rs.15.5 /- | K130: 15.5 | L130: 1162.5 | M130: 75 | N130: Successful | O130: 2019-07-05 | R130: H
A131: 5 | B131: 2019-07-05 | D131: NIFTY 11-Jul 11850 PE | E131: Buy | F131: 45 | H131: 59 | I131: 100 | J131: Profit of Rs.14 /- | K131: 14 | L131: 1050 | M131: 75 | N131: Successful | O131: 2019-07-05 | R131: H
A132: 6 | B132: 2019-07-08 | D132: NIFTY 11-Jul 11750 CE | E132: Buy | F132: 29.31 | H132: 12 | I132: 60-80 | J132: Loss of Rs.17.31/- | K132: -17.31 | L132: -1298.25 | M132: 75 | N132: Unsuccessful | O132: 2019-07-08 | R132: H
A133: 7 | B133: 2019-07-09 | D133: NIFTY 11550 CE 11-JULY | E133: Buy | F133: 42.5 | G133: 18 | H133: 55.5 | I133: 80-90 | J133: Profit of Rs.13 /- | K133: 13 | L133: 975 | M133: 75 | N133: Successful | O133: 2019-07-09 | R133: H
A134: 8 | B134: 2019-07-09 | D134: COALINDIA 240 CE JULY | E134: Buy | F134: 3.25 | G134: 1.8 | H134: 1.9 | I134: 6-6.5 | J134: Loss of Rs.1.35/- | K134: -1.35 | L134: -2970 | M134: 2200 | N134: Unsuccessful | O134: 2019-07-09 | R134: H
A135: 9 | B135: 2019-07-09 | D135: NIFTY 11550 CE 11-JULY | E135: Buy | F135: 38.5 | G135: 13 | H135: 49 | I135: 80-90 | J135: Profit of Rs.10.5 /- | K135: =H135-F135 -> 10.5 | L135: =K135*M135 -> 787.5 | M135: 75 | N135: Successful | O135: 2019-07-09 | R135: H
A136: 10 | B136: 2019-07-09 | D136: NIFTY 11550 CE 11-JULY | E136: Buy | F136: 31.5 | G136: 10 | H136: 48 | I136: 70 | J136: Profit of Rs.16.5/- | K136: =H136-F136 -> 16.5 | L136: =K136*M136 -> 1237.5 | M136: 75 | N136: Successful | O136: 2019-07-09 | R136: H
A137: 11 | B137: 2019-07-10 | D137: NIFTY 11600 CE 18-JULY | E137: Buy | F137: 61 | G137: 37 | H137: 37 | I137: 100 | J137: Loss of Rs.24/- | K137: =H137-F137 -> -24 | L137: =K137*M137 -> -1800 | M137: 75 | N137: Unsuccessful | O137: 2019-07-10 | R137: H
A138: 12 | B138: 2019-07-12 | D138: NIFTY 11550 PE 18-JULY | E138: Buy | F138: 31.5 | G138: 15 | H138: 41 | I138: 55 -60 | J138: Profit of Rs.9.5/- | K138: =H138-F138 -> 9.5 | L138: =K138*M138 -> 712.5 | M138: 75 | N138: Successful | O138: 2019-07-12 | R138: H
A139: 13 | B139: 2019-07-16 | D139: NIFTY 11600 PE 18-JULY | E139: Buy | F139: 30.5 | G139: 17 | H139: 20 | I139: 55 -60 | J139: Loss of Rs.10.5/- | K139: =H139-F139 -> -10.5 | L139: =K139*M139 -> -787.5 | M139: 75 | N139: Unsuccessful | O139: 2019-07-16 | R139: N
A140: 14 | B140: 2019-07-17 | D140: BANKNIFTY 30700 PE 18 JUL | E140: Buy | F140: 82.5 | H140: 122.5 | I140: 200 | J140: Profit of Rs.40/- | K140: =H140-F140 -> 40 | L140: =K140*M140 -> 800 | M140: 20 | N140: Successful | O140: 2019-07-17 | R140: R
A141: 15 | B141: 2019-07-18 | D141: HDFCBANK 2420 CE JULY | E141: Buy | F141: 28 -30 | G141: 10 | I141: 60 | J141: Open | R141: H
A142: 16 | B142: 2019-07-18 | D142: NIFTY 11700 PE 18 JUL | E142: Buy | F142: 37.5 | G142: 80 | H142: 55 | J142: Profit of Rs.17.5/- | K142: =H142-F142 -> 17.5 | L142: =K142*M142 -> 1312.5 | M142: 75 | N142: Successful | O142: 2019-07-18 | R142: R
A143: 17 | B143: 2019-07-18 | D143: DABUR 420 PE JUL | E143: Buy | F143: 3.55 | H143: 5.05 | I143: 6.-8 | J143: Profit of Rs.1.5/- | K143: =H143-F143 -> 1.5 | L143: =K143*M143 -> 1875 | M143: 1250 | N143: Successful | O143: 2019-07-18 | R143: H
A148: Techno -Funda (positional)
A149: Sr.no | B149: Date | D149: Company | E149: Rec | F149: Rec Price | G149: Stop Loss*** | H149: Call Closed At | I149: Target | J149: Remark | K149: Profit / Loss per Share | L149: Gain / Loss % | M149: Status | N149: Closed Date | O149: NSE Closed Price
A150: 1 | B150: 2019-04-04 | D150: FINPIPE | E150: Buy | F150: 474.5 | G150: 435 | H150: 524 | I150: 560 | J150: Profit of Rs.49.5 /- | K150: =H150-F150 -> 49.5 | L150: =K150/F150 -> 10.43% | M150: Successful | N150: 2019-07-01 | R150: H
A151: 2 | B151: 2019-05-24 | D151: APOLLOTYRE | E151: Buy | F151: 187.5 | G151: 178.7 | H151: 201.5 | I151: 220-230 | J151: Part Profit of Rs.14/- | K151: =H151-F151 -> 14 | L151: 7.47% | M151: Successful | N151: 2019-06-04 | R151: R
A154: CLBS = Closing Basis *** | F154: Reinitiated $
A155: Dividend adjusted <> | F155: Revised stoploss #
B160: Investment Idea
A161: Sr.no | B161: Date | D161: Company | E161: Rec | F161: Rec Price | G161: Point of Review | H161: Close Rate | I161: Target | J161: Remark | K161: Profit / Loss per Share | L161: Gain / Loss % | M161: Status | N161: Closed Date
A162: 1 | B162: 2013-11-01 | D162: L&T Finance Holding | E162: Accu | F162: 82.00 | G162: - | H162: 100 | I162: 100.00 | J162: Target Achieved | K162: =H162-F162 -> 18.00 | L162: =K162/F162 -> 21.95% | M162: Successful | N162: 2016-10-14
A163: 2 | B163: 2014-06-04 | D163: Finolex Inds | E163: Buy | F163: 257.00 | G163: - | H163: 300 | I163: 300.00 | J163: Target Achieved | K163: =H163-F163 -> 43.00 | L163: 16.73% | M163: Successful | N163: 2014-07-02
A164: =1+A163 -> 3 | B164: 2014-07-08 | D164: JK Cement | E164: Buy | F164: 393.00 | G164: - | H164: 468 | I164: 468.00 | J164: Target Achieved | K164: =H164-F164 -> 75.00 | L164: 19.08% | M164: Successful | N164: 2014-08-12
A165: 4 | B165: 2014-08-06 | D165: Finolex Cables | E165: Buy | F165: 205.00 | G165: - | H165: 275 | I165: 250.00 | J165: Target Achieved | K165: 70.00 | L165: 34.15% | M165: Successful | N165: 2014-11-19
A166: 5 | B166: 2014-09-04 | D166: Exide Inds | E166: Buy | F166: 162.00 | G166: - | H166: 190 | I166: 190.00 | J166: Target Achieved | K166: 28.00 | L166: 17.28% | M166: Successful | N166: 2015-01-02
A167: 6 | B167: 2014-09-04 | D167: Deepak Nitrite | E167: Buy | F167: 75.00 | G167: - | H167: 91.5 | I167: 95-100 | J167: Profit of Rs.16.50/- | K167: 16.50 | L167: 22.00% | M167: Successful | N167: 2014-11-11
A168: 7 | B168: 2014-10-01 | D168: Mercks | E168: Buy | F168: 850.00 | G168: - | H168: 982.5 | I168: 1050.00 | J168: Profit of Rs.132.50/- | K168: 132.50 | L168: 15.59% | M168: Successful | N168: 2015-02-04
A169: 8 | B169: 2014-10-01 | D169: Grindwell Norton | E169: Buy | F169: 475.00 | G169: - | H169: 515 | I169: 600.00 | J169: Profit of Rs.40/- | K169: 40.00 | L169: 8.42% | M169: Successful | N169: 2014-10-27
A170: 9 | B170: 2014-10-01 | D170: Snowman Logistics | E170: Buy | F170: 86.00 | G170: - | H170: 99 | I170: 140.00 | J170: Profit of Rs.13.00/- | K170: 13.00 | L170: 15.12% | M170: Successful | N170: 2014-10-27
A171: 10 | B171: 2014-10-14 | D171: Birla Corp | E171: Buy | F171: 496.60 | G171: - | H171: 621 | I171: 580.00 | J171: Target Achieved | K171: 124.40 | L171: 25.05% | M171: Successful | N171: 2016-08-23
A172: 11 | B172: 2014-10-14 | D172: Ultratech Cem | E172: Buy | F172: 2481.90 | G172: - | H172: 2840 | I172: 2870.00 | J172: Profit of Rs.358.10/- | K172: 358.10 | L172: 14.43% | M172: Successful | N172: 2015-01-13
A173: =1+A170 -> 10 | B173: 2014-10-16 | D173: Sintex Inds | E173: Buy | F173: 84.50 | G173: - | H173: 93 | I173: 110.00 | J173: Profit of Rs.8.50/- | K173: 8.50 | L173: 10.06% | M173: Successful | N173: 2014-10-27
A174: =1+A173 -> 11 | B174: 2014-10-16 | D174: HSIL | E174: Buy | F174: 401.00 | G174: - | H174: 428 | I174: 450.00 | J174: Profit of Rs.27.00/- | K174: 27.00 | L174: 6.73% | M174: Successful | N174: 2015-01-16
A175: 12 | B175: 2014-10-16 | D175: Eveready Inds | E175: Buy | F175: 101.00 | G175: - | H175: 112 | I175: 120.00 | J175: Profit of Rs.11.00/- | K175: 11.00 | L175: 10.89% | M175: Successful | N175: 2014-10-27
A176: 13 | B176: 2014-11-11 | D176: Pennar Inds | E176: Buy | F176: 59.00 | G176: - | H176: 76 | I176: 76.00 | J176: Target Achieved | K176: 17.00 | L176: 28.81% | M176: Successful | N176: 2017-10-24
A177: 14 | B177: 2014-11-11 | D177: Snowman Logistics | E177: Buy | F177: 99.00 | G177: - | H177: 120 | I177: 120.00 | J177: Profit of Rs.21/- | K177: 21.00 | L177: 21.21% | M177: Successful | N177: 2014-11-17
A178: 15 | B178: 2014-11-13 | D178: Dharamsi Morarji Chem | E178: Buy | F178: 22.00 | G178: - | H178: 33.55 | I178: 32.00 | J178: Profit of Rs 11.55/- | K178: 11.55 | L178: 52.50% | M178: Successful | N178: 2015-07-03
A179: 16 | B179: 2014-12-03 | D179: Tatachem | E179: Buy | F179: 440.00 | G179: - | H179: 520 | I179: 520.00 | J179: Profit of Rs 80.00/- | K179: 80.00 | L179: 18.18% | M179: Successful | N179: 2015-07-23
A180: 17 | B180: 2014-12-03 | D180: Advanta | E180: Buy | F180: 360.00 | G180: - | H180: 427 | I180: 425.00 | J180: Profit of Rs.67.00/- | K180: 67.00 | L180: 18.61% | M180: Successful | N180: 2015-02-23
A181: 18 | B181: 2015-01-08 | D181: GDL | E181: Buy | F181: 360.00 | G181: - | H181: 455 | I181: 420.00 | J181: Profit of Rs.95.00/- | K181: 95.00 | L181: 26.39% | M181: Successful | N181: 2015-01-20
A182: 19 | B182: 2015-01-08 | D182: NRB Bearing | E182: Buy | F182: 130.00 | H182: 175.5 | I182: 165.00 | J182: Profit of Rs 45.50/- | K182: 45.50 | L182: 35.00% | M182: Successful | N182: 2017-12-19
A183: 20 | B183: 2015-02-05 | D183: GSFC | E183: Accu | F183: 98.00 | H183: 120 | I183: 120.00 | J183: Target Achieved | K183: 22.00 | L183: 22.45% | M183: Successful | N183: 2017-01-18
A184: 21 | B184: 2015-02-05 | D184: Sundrmfast | E184: Accu | F184: 196.00 | H184: 262 | I184: 255.00 | J184: Target Achieved | K184: 66.00 | L184: 33.67% | M184: Successful | N184: 2016-08-17
A185: 22 | B185: 2015-03-04 | D185: GPPL | E185: Accu | F185: 235 | H185: 77.00 | I185: 280-285 | J185: Loss of Rs.158/- | K185: =H185-F185 -> -158.00 | L185: -67.23% | M185: Unsuccessful | N185: 2019-02-26
A186: 23 | B186: 2015-03-04 | D186: ORIENTCEM | E186: Accu | F186: 185.00 | H186: 224 | I186: 220-225 | J186: Target Achieved | K186: 39.00 | L186: =K186/F186 -> 21.08% | M186: Successful | N186: 2016-10-04
A187: 24 | B187: 2015-03-27 | D187: PFS | E187: Accu | F187: 49.5 | H187: 15.85 | I187: 67.00 | J187: Loss of Rs.33.65/- | K187: =H187-F187 -> -33.65 | L187: =K187/F187 -> -68% | M187: Unsuccessful | N187: 2019-06-11
A188: 25 | B188: 2015-03-30 | D188: Walchandnagar Ind Ltd | E188: Accu | F188: 183.50 | H188: 219 | I188: 218.00 | J188: Profit of Rs.35.50/- | K188: 35.50 | L188: =K188/F188 -> 19.35% | M188: Successful | N188: 2015-04-09
A189: 26 | B189: 2015-04-20 | D189: Kalpataru Power Transmission Ltd | E189: Accu | F189: =(227+237)/2 -> 232.00 | H189: 298 | I189: 298.00 | J189: Target Achieved | K189: 66.00 | L189: 28.45% | M189: Successful | N189: 2017-03-29
A190: 27 | B190: 2015-05-04 | D190: Mastek Ltd | E190: Buy | F190: 385.00 | H190: =212.5+331 -> 543.5 | I190: 510.00 | J190: Profit of Rs 158.50/- | K190: 158.50 | L190: 41.17% | M190: Successful | N190: 2015-08-19
A191: 28 | B191: 2015-05-04 | D191: Suprajit Eng | E191: Buy | F191: 115.50 | H191: 146 | I191: 142.00 | J191: Profit of Rs 30.50/- | K191: 30.50 | L191: 26.41% | M191: Successful | N191: 2015-07-17
A192: 29 | B192: 2015-05-27 | D192: TCI | E192: Buy | F192: 237.50 | H192: 279.5 | I192: 278.00 | J192: Target Achieved | K192: 42.00 | L192: 17.68% | M192: Successful | N192: 2015-08-06
A193: 30 | B193: 2015-06-19 | D193: HSIL | E193: Accu | F193: 340.00 | H193: 448 | I193: 448.00 | J193: Target Achieved | K193: 108.00 | L193: 31.76% | M193: Successful | N193: 2017-10-10
A194: 31 | B194: 2015-07-06 | D194: Capital First | E194: Accu | F194: 390.00 | H194: 460 | I194: 460.00 | J194: Target Achieved | K194: 70.00 | L194: 17.95% | M194: Successful | N194: 2016-04-18
A195: 32 | B195: 2015-07-10 | D195: Dolphin OffShore | E195: Accu | F195: 122.5 | H195: 61.00 | I195: 172.00 | J195: Loss of Rs.61.50/- | K195: -61.50 | L195: -50.20% | M195: Unsuccessful | N195: 2018-08-21
A196: 33 | B196: 2015-08-03 | D196: Allcargo logistics | E196: Accu | F196: 297.50 | H196: 350 | I196: 360.00 | J196: Profit of Rs 52.50/- | K196: 52.50 | L196: 17.65% | M196: Successful | N196: 2015-08-16
A197: 34 | B197: 2015-08-03 | D197: Camline Fine | E197: Accu | F197: 115.50 | H197: 149 | I197: 140.00 | J197: Profit of Rs 33.50/- | K197: 33.50 | L197: 29.00% | M197: Successful | N197: 2017-01-05
A198: 35 | B198: 2015-09-04 | D198: TCI | E198: Accu | F198: 226.00 | H198: 292 | I198: 292.00 | J198: Target Achieved | K198: 66.00 | L198: 29.20% | M198: Successful | N198: 2015-10-09
A199: 36 | B199: 2015-09-07 | D199: Kalpataru Power Transmission Ltd | E199: Accu | F199: 232.50 | H199: 312.5 | I199: 310.00 | J199: Target Achieved | K199: 80.00 | L199: 34.41% | M199: Successful | N199: 2017-03-29
A200: 37 | B200: 2015-09-21 | D200: LLOYD ELECTRIC & ENG LTD | E200: Accu | F200: 196.50 | H200: 238 | I200: 238.00 | J200: Target Achieved | K200: 41.50 | L200: 21.12% | M200: Successful | N200: 2015-10-14
A201: 38 | B201: 2015-09-24 | D201: L&T Finance Holding | E201: Accu | F201: 65.00 | H201: 82 | I201: 82.00 | J201: Target Achieved | K201: 17.00 | L201: 26.15% | M201: Successful | N201: 2016-07-27
A202: 39 | B202: 2015-10-14 | D202: KEC International ltd | E202: Accu | F202: 144.00 | H202: 182.5 | I202: 181.00 | J202: Target Achieved | K202: 38.50 | L202: 26.74% | M202: Successful | N202: 2017-03-23
A203: 40 | B203: 2015-10-14 | D203: Gruh Finance | E203: Accu | F203: 264.00 | H203: 311 | I203: 311.00 | J203: Target Achieved | K203: 47.00 | L203: 17.80% | M203: Successful | N203: 2016-08-22
A204: 41 | B204: 2015-11-10 | D204: Pidilitind | E204: Buy | F204: 549.50 | H204: 630 | I204: 630.00 | J204: Target Achieved | K204: 80.50 | L204: 14.65% | M204: Successful | N204: 2016-02-19
A205: 42 | B205: 2015-12-04 | D205: Zensar Technology | E205: Accu | F205: 1027.50 | H205: 1315 | I205: 1250.00 | J205: Target Achieved | K205: =H205-F205 -> 287.50 | L205: 27.98% | M205: Successful | N205: 2018-05-24
A206: 43 | B206: 2015-12-29 | D206: Vinati Organics Ltd | E206: Accu | F206: 465.00 | H206: 540 | I206: 540.00 | J206: Target Achieved | K206: 75.00 | L206: 16.13% | M206: Successful | N206: 2016-06-09
A207: 44 | B207: 2016-01-11 | D207: GSFC | E207: Buy | F207: 81.00 | H207: 110 | I207: 110.00 | J207: Target Achieved | K207: 29.00 | L207: 35.80% | M207: Successful | N207: 2017-01-10
A208: 45 | B208: 2016-01-13 | D208: SSWL | E208: Buy | F208: 417.50 | H208: 547 | I208: 535.00 | J208: Target Achieved | K208: 129.50 | L208: 31.02% | M208: Successful | N208: 2016-07-27
A209: 46 | B209: 2016-02-08 | D209: Persistent System Ltd | E209: Accu | F209: 650.00 | H209: 800 | I209: 800.00 | J209: Target Achieved | K209: 150.00 | L209: 23.08% | M209: Successful | N209: 2018-02-23
A210: 47 | B210: 2016-03-04 | D210: UPL | E210: Accu | F210: 437.50 | H210: 504.5 | I210: 522.00 | J210: Profit of Rs.67/- | K210: 67.00 | L210: 15.31% | M210: Successful | N210: 2016-04-20
A211: 48 | B211: 2016-03-09 | D211: Ashoka Buildcon Ltd | E211: Accu | F211: 189.50 | H211: 218 | I211: 218.00 | J211: Target Achieved | K211: 28.50 | L211: 15.04% | M211: Successful | N211: 2017-10-26
A212: 49 | B212: 2016-04-11 | D212: PTC INDIA FIN SERV LTD | E212: Accu | F212: 36.5 | H212: 15.85 | I212: 60.00 | J212: Loss of Rs.20.65/- | K212: -20.65 | L212: -56.58% | M212: Unsuccessful | N212: 2019-06-11
A213: 50 | B213: 2016-04-12 | D213: CAMLINFINE $ | E213: Accu | F213: 93.00 | H213: 149 | I213: 140.00 | J213: Profit of Rs 56/- | K213: 56.00 | L213: 60.22% | M213: Successful | N213: 2017-01-05
A214: 51 | B214: 2016-04-12 | D214: Greaves Cotton Ltd. | E214: Accu | F214: 130.00 | H214: 150 | I214: 150-155 | J214: Target Achieved | K214: 20.00 | L214: 15.38% | M214: Successful | N214: 2016-07-13
A215: 52 | B215: 2016-04-13 | D215: DHFL | E215: Accu | F215: 196.00 | H215: 299 | I215: 299.00 | J215: Target Achieved | K215: 103.00 | L215: 52.55% | M215: Successful | N215: 2016-09-07
A216: 53 | B216: 2016-04-13 | D216: Magma | E216: Accu | F216: 88.00 | H216: 103 | I216: 103.00 | J216: Target Achieved | K216: 15.00 | L216: 17.05% | M216: Successful | N216: 2016-06-09
A217: 54 | B217: 2016-05-02 | D217: KEC International ltd $ | E217: Accu | F217: 127.50 | H217: 148 | I217: 148-150 | J217: Target Achieved | K217: 20.50 | L217: 16.08% | M217: Successful | N217: 2016-07-13
A218: 55 | B218: 2016-05-03 | D218: Mindtree | E218: Accu | F218: 675.00 | H218: 815 | I218: 790-800 | J218: Target Achieved | K218: 140.00 | L218: 20.74% | M218: Successful | N218: 2018-02-23
A219: 56 | B219: 2016-06-06 | D219: TRITURBINE | E219: Accu | F219: 110.00 | H219: 126.5 | I219: 125.00 | J219: Profit of Rs.16.50/- | K219: 16.50 | L219: 15.00% | M219: Successful | N219: 2016-07-01
A220: 57 | B220: 2016-06-17 | D220: Pennar Industries Ltd | E220: Accu | F220: 44.00 | H220: 69.5 | I220: 69.50 | J220: Profit of Rs.25.50/- | K220: 25.50 | L220: 57.95% | M220: Successful | N220: 2017-08-30
A221: 58 | B221: 2016-06-28 | D221: EVEREADY INDS. IND. LTD. | E221: Accu | F221: 262.50 | H221: 340 | I221: 333.00 | J221: Profit of Rs.77.50/- | K221: 77.50 | L221: 29.52% | M221: Successful | N221: 2017-10-09
A222: 59 | B222: 2016-06-28 | D222: FIEM INDUSTRIES LIMITED | E222: Accu | F222: 840.00 | H222: 1230 | I222: 1230.00 | J222: Target Achieved | K222: 390.00 | L222: 46.43% | M222: Successful | N222: 2016-10-06
A223: 60 | B223: 2016-07-05 | D223: Bajaj Corp Ltd | E223: Accu | F223: 395 | H223: =(468.5+342.5)/2 -> 405.50 | I223: 510.00 | J223: Profit of Rs.10.50/- | K223: 10.50 | L223: 3% | M223: Neutral | N223: 2019-05-21
A224: 61 | B224: 2016-08-02 | D224: GPPL $ | E224: Buy | F224: 169.5 | H224: 77.00 | I224: 198-200 | J224: Loss of Rs.92.5/- | K224: -92.50 | L224: -54.57% | M224: Unsuccessful | N224: 2019-02-26
A225: 62 | B225: 2016-08-04 | D225: WONDERLA HOLIDAYS LTD | E225: Accu | F225: 400 | H225: 305.00 | I225: 475.00 | J225: Loss of Rs.95/- | K225: -95.00 | L225: -23.75% | M225: Unsuccessful | N225: 2019-05-21
A226: 63 | B226: 2016-08-11 | D226: CAMLINFINE | E226: Accu | F226: 86.50 | H226: 130 | I226: 130.00 | J226: Profit of Rs.43.50/- | K226: 43.50 | L226: 50.29% | M226: Successful | N226: 2017-12-22
A227: 64 | B227: 2016-08-18 | D227: GRANULES | E227: Accu | F227: 133.5 | H227: 126.50 | I227: 178.00 | J227: Exit | K227: -7.00 | L227: -5.24% | M227: Unsuccessful | N227: 2016-09-02
A228: 65 | B228: 2016-08-31 | D228: VA TECH WABAG | E228: Accu | F228: 560.00 | H228: 725 | I228: 725.00 | J228: Target Achieved | K228: =H228-F228 -> 165.00 | L228: 29.46% | M228: Successful | N228: 2016-03-27
... 89 more rows

Sheet Sheet2 (hidden)
A1: SYMBOL | B1: SERIES | C1: OPEN | D1: HIGH | E1: LOW | F1: CLOSE | G1: LAST | H1: PREVCLOSE | I1: TOTTRDQTY | J1: TOTTRDVAL | K1: TIMESTAMP | L1: TOTALTRADES | M1: ISIN | N1: ISIN
A2: 20MICRONS | B2: EQ | C2: 35.4 | D2: 36.3 | E2: 35.4 | F2: 36 | G2: 36.3 | H2: 35.95 | I2: 4979 | J2: 178546.65 | K2: 2019-07-18 | L2: 87 | M2: INE144J01027
A3: 21STCENMGM | B3: EQ | C3: 17.15 | D3: 17.15 | E3: 16.55 | F3: 16.55 | G3: 16.55 | H3: 16.85 | I3: 615 | J3: 10347.75 | K3: 2019-07-18 | L3: 24 | M3: INE253B01015
A4: 3IINFOTECH | B4: EQ | C4: 2.75 | D4: 2.75 | E4: 2.55 | F4: 2.6 | G4: 2.6 | H4: 2.7 | I4: 2823745 | J4: 7432996 | K4: 2019-07-18 | L4: 1050 | M4: INE748C01020
A5: 3MINDIA | B5: EQ | C5: 22258 | D5: 22336.2 | E5: 21905.55 | F5: 21915.85 | G5: 21910 | H5: 22258.7 | I5: 651 | J5: 14342624.75 | K5: 2019-07-18 | L5: 271 | M5: INE470A01017
A6: 3PLAND | B6: EQ | C6: 7.9 | D6: 8.15 | E6: 7.55 | F6: 7.95 | G6: 7.55 | H6: 7.9 | I6: 75 | J6: 606.5 | K6: 2019-07-18 | L6: 9 | M6: INE105C01023
A7: 5PAISA | B7: EQ | C7: 218.15 | D7: 218.15 | E7: 218.15 | F7: 218.15 | G7: 218.15 | H7: 229.6 | I7: 1286 | J7: 280540.9 | K7: 2019-07-18 | L7: 65 | M7: INE618L01018
A8: 63MOONS | B8: EQ | C8: 102.95 | D8: 105.05 | E8: 99.25 | F8: 100 | G8: 99.25 | H8: 103.25 | I8: 69480 | J8: 7042289.4 | K8: 2019-07-18 | L8: 1290 | M8: INE111B01023
A9: 8KMILES | B9: EQ | C9: 81.55 | D9: 81.55 | E9: 81.55 | F9: 81.55 | G9: 81.55 | H9: 85.8 | I9: 16757 | J9: 1366533.35 | K9: 2019-07-18 | L9: 287 | M9: INE650K01021
A10: A2ZINFRA | B10: EQ | C10: 10.35 | D10: 10.6 | E10: 9.9 | F10: 10 | G10: 10.2 | H10: 10.1 | I10: 682570 | J10: 6909731.15 | K10: 2019-07-18 | L10: 921 | M10: INE619I01012
A11: AARTIDRUGS | B11: EQ | C11: 503 | D11: 505 | E11: 495 | F11: 496.2 | G11: 495.5 | H11: 502.05 | I11: 4464 | J11: 2221134.2 | K11: 2019-07-18 | L11: 438 | M11: INE767A01016
A12: AARTIIND | B12: EQ | C12: 1682.6 | D12: 1696.5 | E12: 1663.25 | F12: 1679.2 | G12: 1680 | H12: 1682.6 | I12: 13480 | J12: 22677119.7 | K12: 2019-07-18 | L12: 1681 | M12: INE769A01020
A13: AARVEEDEN | B13: EQ | C13: 18.05 | D13: 18.8 | E13: 16.5 | F13: 17.35 | G13: 17.45 | H13: 18.1 | I13: 7144 | J13: 124378.15 | K13: 2019-07-18 | L13: 150 | M13: INE273D01019
A14: AAVAS | B14: EQ | C14: 1523 | D14: 1523 | E14: 1485 | F14: 1491.6 | G14: 1490 | H14: 1511 | I14: 20866 | J14: 31520030.9 | K14: 2019-07-18 | L14: 1345 | M14: INE216P01012
A15: ABAN | B15: EQ | C15: 35.15 | D15: 36.05 | E15: 34.95 | F15: 35.25 | G15: 35.9 | H15: 35.85 | I15: 43506 | J15: 1530233.4 | K15: 2019-07-18 | L15: 530 | M15: INE421A01028
A16: ABB | B16: EQ | C16: 1493 | D16: 1500 | E16: 1445 | F16: 1454.1 | G16: 1448.5 | H16: 1489.1 | I16: 63333 | J16: 93036355.15 | K16: 2019-07-18 | L16: 5754 | M16: INE117A01022
A17: ABBOTINDIA | B17: EQ | C17: 8670.1 | D17: 8798 | E17: 8522.75 | F17: 8552.2 | G17: 8550 | H17: 8696.15 | I17: 3954 | J17: 34031456.1 | K17: 2019-07-18 | L17: 712 | M17: INE358A01014
A18: ABCAPITAL | B18: EQ | C18: 90.25 | D18: 90.3 | E18: 89 | F18: 89.05 | G18: 89.1 | H18: 90.4 | I18: 870912 | J18: 77949134.4 | K18: 2019-07-18 | L18: 8949 | M18: INE674K01013
A19: ABFRL | B19: EQ | C19: 203.9 | D19: 204.6 | E19: 202.8 | F19: 203.05 | G19: 203.25 | H19: 203.2 | I19: 288176 | J19: 58575668.65 | K19: 2019-07-18 | L19: 2522 | M19: INE647O01011
A20: ABMINTLTD | B20: BE | C20: 14 | D20: 14 | E20: 14 | F20: 14 | G20: 14 | H20: 14 | I20: 58 | J20: 812 | K20: 2019-07-18 | L20: 3 | M20: INE251C01017
A21: ACC | B21: EQ | C21: 1604 | D21: 1609.2 | E21: 1560.15 | F21: 1567.1 | G21: 1571.95 | H21: 1594.35 | I21: 1475891 | J21: 2337979206 | K21: 2019-07-18 | L21: 69566 | M21: INE012A01025
A22: ACCELYA | B22: EQ | C22: 825 | D22: 835 | E22: 820 | F22: 820.65 | G22: 820.5 | H22: 826.75 | I22: 2025 | J22: 1672071.5 | K22: 2019-07-18 | L22: 198 | M22: INE793A01012
A23: ACE | B23: EQ | C23: 83.5 | D23: 83.8 | E23: 82.25 | F23: 82.8 | G23: 82.25 | H23: 82.85 | I23: 29906 | J23: 2476654.25 | K23: 2019-07-18 | L23: 734 | M23: INE731H01025
A24: ADANIENT | B24: EQ | C24: 137.7 | D24: 137.95 | E24: 133.35 | F24: 134.2 | G24: 134.15 | H24: 138.05 | I24: 4247055 | J24: 575152398.8 | K24: 2019-07-18 | L24: 23921 | M24: INE423A01024
A25: ADANIGAS | B25: EQ | C25: 174.85 | D25: 174.85 | E25: 169 | F25: 169.95 | G25: 169.95 | H25: 175.5 | I25: 499924 | J25: 85492188.2 | K25: 2019-07-18 | L25: 6852 | M25: INE399L01023
A26: ADANIGREEN | B26: EQ | C26: 48.3 | D26: 49.75 | E26: 46.95 | F26: 47.5 | G26: 47.7 | H26: 48.45 | I26: 938262 | J26: 45368506.3 | K26: 2019-07-18 | L26: 3973 | M26: INE364U01010
A27: ADANIPORTS | B27: EQ | C27: 416.7 | D27: 419.3 | E27: 410.75 | F27: 412.4 | G27: 413.6 | H27: 417.05 | I27: 1300071 | J27: 539586049 | K27: 2019-07-18 | L27: 33677 | M27: INE742F01042
A28: ADANIPOWER | B28: EQ | C28: 63.95 | D28: 65.9 | E28: 61.45 | F28: 62.7 | G28: 62.55 | H28: 63.4 | I28: 27403170 | J28: 1746996403 | K28: 2019-07-18 | L28: 60106 | M28: INE814H01011
A29: ADANITRANS | B29: EQ | C29: 222.8 | D29: 223.3 | E29: 211 | F29: 214 | G29: 216.75 | H29: 221.8 | I29: 98049 | J29: 21360927.1 | K29: 2019-07-18 | L29: 4712 | M29: INE931S01010
A30: ADFFOODS | B30: EQ | C30: 273.05 | D30: 275.85 | E30: 271 | F30: 273.6 | G30: 274.5 | H30: 275.2 | I30: 15944 | J30: 4355434.85 | K30: 2019-07-18 | L30: 608 | M30: INE982B01019
A31: ADHUNIK | B31: EQ | C31: 1.15 | D31: 1.25 | E31: 1.15 | F31: 1.15 | G31: 1.15 | H31: 1.2 | I31: 104767 | J31: 120862.7 | K31: 2019-07-18 | L31: 38 | M31: INE400H01019
A32: ADHUNIKIND | B32: EQ | C32: 85 | D32: 86.95 | E32: 84.65 | F32: 86.05 | G32: 86.95 | H32: 85.05 | I32: 7768 | J32: 668251.65 | K32: 2019-07-18 | L32: 49 | M32: INE452L01012
A33: ADLABS | B33: EQ | C33: 4.7 | D33: 4.7 | E33: 4.5 | F33: 4.55 | G33: 4.5 | H33: 4.65 | I33: 38730 | J33: 177214.7 | K33: 2019-07-18 | L33: 86 | M33: INE172N01012
A34: ADORWELD | B34: EQ | C34: 326.05 | D34: 326.95 | E34: 315.6 | F34: 320.25 | G34: 320 | H34: 329.2 | I34: 1914 | J34: 616328.1 | K34: 2019-07-18 | L34: 234 | M34: INE045A01017
A35: ADROITINFO | B35: EQ | C35: 8.7 | D35: 9.4 | E35: 8.7 | F35: 9 | G35: 8.75 | H35: 9.15 | I35: 6345 | J35: 56450.6 | K35: 2019-07-18 | L35: 32 | M35: INE737B01033
A36: ADSL | B36: EQ | C36: 13.5 | D36: 13.6 | E36: 13.2 | F36: 13.3 | G36: 13.25 | H36: 13.6 | I36: 6379 | J36: 84993.1 | K36: 2019-07-18 | L36: 36 | M36: INE102I01027
A37: ADVANIHOTR | B37: EQ | C37: 57.7 | D37: 57.75 | E37: 56.05 | F37: 56.15 | G37: 56.05 | H37: 57.1 | I37: 983 | J37: 55481.1 | K37: 2019-07-18 | L37: 36 | M37: INE199C01026
A38: ADVENZYMES | B38: EQ | C38: 159.1 | D38: 162.95 | E38: 159.1 | F38: 160.95 | G38: 161 | H38: 161.4 | I38: 44485 | J38: 7156447.35 | K38: 2019-07-18 | L38: 1265 | M38: INE837H01020
A39: AEGISCHEM | B39: EQ | C39: 206.2 | D39: 210.95 | E39: 204 | F39: 205 | G39: 204.3 | H39: 206.2 | I39: 72338 | J39: 14969713.75 | K39: 2019-07-18 | L39: 4236 | M39: INE208C01025
A40: AGARIND | B40: EQ | C40: 118.95 | D40: 123 | E40: 117.55 | F40: 118.15 | G40: 118 | H40: 121.9 | I40: 15405 | J40: 1855450.75 | K40: 2019-07-18 | L40: 116 | M40: INE204E01012
A41: AGCNET | B41: EQ | C41: 109.8 | D41: 109.85 | E41: 104.1 | F41: 105 | G41: 105 | H41: 108.9 | I41: 2926 | J41: 309849.3 | K41: 2019-07-18 | L41: 23 | M41: INE676A01019
A42: AGLSL | B42: EQ | C42: 49.1 | D42: 53 | E42: 49.1 | F42: 51.2 | G42: 51 | H42: 51.4 | I42: 848 | J42: 43333.5 | K42: 2019-07-18 | L42: 36 | M42: INE517U01013
A43: AGRITECH | B43: EQ | C43: 53.1 | D43: 53.7 | E43: 51.2 | F43: 51.75 | G43: 51.25 | H43: 53.75 | I43: 7942 | J43: 416332.6 | K43: 2019-07-18 | L43: 244 | M43: INE449G01018
A44: AGROPHOS | B44: BE | C44: 90.1 | D44: 94.25 | E44: 90.1 | F44: 93.7 | G44: 93.75 | H44: 93.9 | I44: 15565 | J44: 1458289.4 | K44: 2019-07-18 | L44: 29 | M44: INE740V01019
A45: AHLEAST | B45: EQ | C45: 180.25 | D45: 185.95 | E45: 180.1 | F45: 183.5 | G45: 180.4 | H45: 184.65 | I45: 169 | J45: 31234.2 | K45: 2019-07-18 | L45: 32 | M45: INE926K01017
A46: AHLUCONT | B46: EQ | C46: 318.25 | D46: 324.7 | E46: 318.25 | F46: 323 | G46: 324.7 | H46: 320.85 | I46: 3182 | J46: 1026757.75 | K46: 2019-07-18 | L46: 165 | M46: INE758C01029
A47: AHLWEST | B47: EQ | C47: 315 | D47: 326.7 | E47: 310 | F47: 326.7 | G47: 326.7 | H47: 312.25 | I47: 11 | J47: 3476.4 | K47: 2019-07-18 | L47: 11 | M47: INE915K01010
A48: AIAENG | B48: EQ | C48: 1761 | D48: 1771.8 | E48: 1750.05 | F48: 1758.2 | G48: 1760 | H48: 1766.85 | I48: 61724 | J48: 108723935.2 | K48: 2019-07-18 | L48: 5462 | M48: INE212H01026
A49: AIONJSW | B49: EQ | C49: 18.35 | D49: 19.5 | E49: 18.15 | F49: 18.95 | G49: 19.2 | H49: 18.5 | I49: 10131 | J49: 189199.8 | K49: 2019-07-18 | L49: 182 | M49: INE743C01021
A50: AIRAN | B50: EQ | C50: 21.05 | D50: 21.75 | E50: 21.05 | F50: 21.5 | G50: 21.25 | H50: 21.5 | I50: 6106 | J50: 131477.9 | K50: 2019-07-18 | L50: 27 | M50: INE645W01026
A51: AJANTPHARM | B51: EQ | C51: 927.7 | D51: 932 | E51: 914.6 | F51: 922.95 | G51: 923.4 | H51: 929.65 | I51: 99602 | J51: 91731354 | K51: 2019-07-18 | L51: 4057 | M51: INE031B01049
A52: AJMERA | B52: EQ | C52: 153.05 | D52: 155 | E52: 147.95 | F52: 148.3 | G52: 147.95 | H52: 153.3 | I52: 41201 | J52: 6196315.1 | K52: 2019-07-18 | L52: 1282 | M52: INE298G01027
A53: AKSHARCHEM | B53: EQ | C53: 260.1 | D53: 260.1 | E53: 250.1 | F53: 251.2 | G53: 250.5 | H53: 262.65 | I53: 1741 | J53: 441414.8 | K53: 2019-07-18 | L53: 184 | M53: INE542B01011
A54: AKSHOPTFBR | B54: EQ | C54: 10.95 | D54: 10.95 | E54: 9.85 | F54: 10.15 | G54: 10.35 | H54: 10.8 | I54: 449582 | J54: 4629281.7 | K54: 2019-07-18 | L54: 1129 | M54: INE523B01011
A55: AKZOINDIA | B55: EQ | C55: 1748 | D55: 1748 | E55: 1721 | F55: 1724.75 | G55: 1721 | H55: 1737.35 | I55: 1587 | J55: 2740806.65 | K55: 2019-07-18 | L55: 208 | M55: INE133A01011
A56: ALANKIT | B56: EQ | C56: 27.6 | D56: 27.85 | E56: 26.4 | F56: 27.4 | G56: 27.7 | H56: 27.2 | I56: 384140 | J56: 10335573.2 | K56: 2019-07-18 | L56: 1959 | M56: INE914E01040
A57: ALBERTDAVD | B57: EQ | C57: 390 | D57: 393.3 | E57: 383 | F57: 386.75 | G57: 385 | H57: 390.15 | I57: 678 | J57: 262329.5 | K57: 2019-07-18 | L57: 78 | M57: INE155C01010
A58: ALBK | B58: EQ | C58: 43.1 | D58: 43.1 | E58: 41.5 | F58: 41.85 | G58: 41.85 | H58: 43.5 | I58: 3095510 | J58: 130642062.7 | K58: 2019-07-18 | L58: 17029 | M58: INE428A01015
A59: ALCHEM | B59: BE | C59: 1.2 | D59: 1.2 | E59: 1.15 | F59: 1.15 | G59: 1.15 | H59: 1.2 | I59: 1125 | J59: 1303.75 | K59: 2019-07-18 | L59: 16 | M59: INE964B01033
A60: ALEMBICLTD | B60: EQ | C60: 42.6 | D60: 43.4 | E60: 42.6 | F60: 43.15 | G60: 43.15 | H60: 42.95 | I60: 93568 | J60: 4042366.95 | K60: 2019-07-18 | L60: 363 | M60: INE426A01027
A61: ALICON | B61: EQ | C61: 506 | D61: 532.5 | E61: 506 | F61: 519.25 | G61: 520 | H61: 521.55 | I61: 642 | J61: 335251.55 | K61: 2019-07-18 | L61: 190 | M61: INE062D01024
A62: ALKALI | B62: EQ | C62: 39.3 | D62: 39.3 | E62: 38 | F62: 38 | G62: 38.1 | H62: 38.9 | I62: 3246 | J62: 124876.9 | K62: 2019-07-18 | L62: 156 | M62: INE773I01017
A63: ALKEM | B63: EQ | C63: 1750.1 | D63: 1774 | E63: 1732.45 | F63: 1758.05 | G63: 1744 | H63: 1749.85 | I63: 14113 | J63: 24843520.65 | K63: 2019-07-18 | L63: 2207 | M63: INE540L01014
A64: ALKYLAMINE | B64: EQ | C64: 807 | D64: 813.05 | E64: 783.3 | F64: 791.2 | G64: 801 | H64: 811.85 | I64: 4038 | J64: 3213169.25 | K64: 2019-07-18 | L64: 331 | M64: INE150B01021
A65: ALLCARGO | B65: EQ | C65: 100.1 | D65: 100.65 | E65: 99 | F65: 100.25 | G65: 99.25 | H65: 100.65 | I65: 113982 | J65: 11416797.85 | K65: 2019-07-18 | L65: 792 | M65: INE418H01029
A66: ALLSEC | B66: EQ | C66: 310 | D66: 310.85 | E66: 309.95 | F66: 310 | G66: 310 | H66: 310 | I66: 4953 | J66: 1535435.1 | K66: 2019-07-18 | L66: 3067 | M66: INE835G01018
A67: ALMONDZ | B67: EQ | C67: 16.05 | D67: 16.2 | E67: 15.05 | F67: 15.45 | G67: 15.3 | H67: 15.45 | I67: 2942 | J67: 47028.1 | K67: 2019-07-18 | L67: 38 | M67: INE326B01027
A68: ALOKTEXT | B68: EQ | C68: 3.05 | D68: 3.05 | E68: 2.95 | F68: 3 | G68: 3 | H68: 3 | I68: 1939453 | J68: 5830811.75 | K68: 2019-07-18 | L68: 772 | M68: INE270A01011
A69: ALPA | B69: EQ | C69: 16.95 | D69: 17 | E69: 16.25 | F69: 16.5 | G69: 16.85 | H69: 16.75 | I69: 8204 | J69: 135678.7 | K69: 2019-07-18 | L69: 81 | M69: INE385I01010
A70: ALPHAGEO | B70: EQ | C70: 362.05 | D70: 366.8 | E70: 355.95 | F70: 358.4 | G70: 357.25 | H70: 362.3 | I70: 4036 | J70: 1456926.1 | K70: 2019-07-18 | L70: 270 | M70: INE137C01018
A71: ALPSINDUS | B71: BE | C71: 0.85 | D71: 0.95 | E71: 0.85 | F71: 0.85 | G71: 0.85 | H71: 0.9 | I71: 2276 | J71: 1984.7 | K71: 2019-07-18 | L71: 10 | M71: INE093B01015
A72: AMARAJABAT | B72: EQ | C72: 653 | D72: 653 | E72: 636.15 | F72: 640.6 | G72: 639.2 | H72: 650.7 | I72: 251173 | J72: 162138509.6 | K72: 2019-07-18 | L72: 6516 | M72: INE885A01032
A73: AMBER | B73: EQ | C73: 820.05 | D73: 833.95 | E73: 820.05 | F73: 827.9 | G73: 832.8 | H73: 826.9 | I73: 5882 | J73: 4865331.15 | K73: 2019-07-18 | L73: 967 | M73: INE371P01015
A74: AMBIKCO | B74: EQ | C74: 1010 | D74: 1010.05 | E74: 979.15 | F74: 987.15 | G74: 988 | H74: 1000.25 | I74: 2810 | J74: 2773820.6 | K74: 2019-07-18 | L74: 405 | M74: INE540G01014
A75: AMBUJACEM | B75: EQ | C75: 219 | D75: 221.2 | E75: 215.1 | F75: 216.95 | G75: 217.3 | H75: 219.25 | I75: 3614814 | J75: 787347956.9 | K75: 2019-07-18 | L75: 30334 | M75: INE079A01024
A76: AMDIND | B76: EQ | C76: 17.95 | D76: 17.95 | E76: 16.3 | F76: 16.75 | G76: 16.3 | H76: 17.75 | I76: 6142 | J76: 103678.15 | K76: 2019-07-18 | L76: 95 | M76: INE005I01014
A77: AMJLAND | B77: EQ | C77: 17.05 | D77: 17.7 | E77: 17.05 | F77: 17.3 | G77: 17.3 | H77: 17.25 | I77: 6371 | J77: 109923.15 | K77: 2019-07-18 | L77: 59 | M77: INE606A01024
A78: AMRUTANJAN | B78: EQ | C78: 304.65 | D78: 305 | E78: 297.25 | F78: 300.2 | G78: 301.9 | H78: 306.05 | I78: 8986 | J78: 2696709.8 | K78: 2019-07-18 | L78: 624 | M78: INE098F01031
A79: ANANTRAJ | B79: EQ | C79: 30.05 | D79: 30.25 | E79: 29.5 | F79: 29.7 | G79: 29.5 | H79: 30.2 | I79: 146208 | J79: 4386304.1 | K79: 2019-07-18 | L79: 777 | M79: INE242C01024
A80: ANDHRABANK | B80: EQ | C80: 22.6 | D80: 22.6 | E80: 22.25 | F80: 22.3 | G80: 22.3 | H80: 22.55 | I80: 491055 | J80: 10972694.1 | K80: 2019-07-18 | L80: 1589 | M80: INE434A01013
A81: ANDHRACEMT | B81: EQ | C81: 3.7 | D81: 3.7 | E81: 3.65 | F81: 3.65 | G81: 3.65 | H81: 3.8 | I81: 82713 | J81: 302427.5 | K81: 2019-07-18 | L81: 58 | M81: INE666E01012
A82: ANDHRSUGAR | B82: EQ | C82: 292.15 | D82: 294.95 | E82: 292 | F82: 293.35 | G82: 293.9 | H82: 292.9 | I82: 9932 | J82: 2911991.05 | K82: 2019-07-18 | L82: 381 | M82: INE715B01013
A83: ANIKINDS | B83: EQ | C83: 9.4 | D83: 10.15 | E83: 9.05 | F83: 9.6 | G83: 9.05 | H83: 9.75 | I83: 5598 | J83: 53519.95 | K83: 2019-07-18 | L83: 54 | M83: INE087B01017
A84: ANKITMETAL | B84: BE | C84: 0.45 | D84: 0.55 | E84: 0.45 | F84: 0.55 | G84: 0.55 | H84: 0.5 | I84: 135655 | J84: 74531.5 | K84: 2019-07-18 | L84: 34 | M84: INE106I01010
A85: ANSALAPI | B85: EQ | C85: 4.95 | D85: 5 | E85: 4.8 | F85: 4.85 | G85: 4.8 | H85: 5 | I85: 50137 | J85: 245932.3 | K85: 2019-07-18 | L85: 84 | M85: INE436A01026
A86: ANSALHSG | B86: EQ | C86: 5.5 | D86: 5.5 | E86: 4.8 | F86: 4.9 | G86: 4.95 | H86: 5.05 | I86: 33136 | J86: 164189.3 | K86: 2019-07-18 | L86: 82 | M86: INE880B01015
A87: ANTGRAPHIC | B87: BE | C87: 0.85 | D87: 0.9 | E87: 0.85 | F87: 0.9 | G87: 0.9 | H87: 0.9 | I87: 78210 | J87: 67034.1 | K87: 2019-07-18 | L87: 40 | M87: INE414B01021
A88: ANUP | B88: EQ | C88: 472.05 | D88: 480.9 | E88: 472.05 | F88: 475.3 | G88: 480 | H88: 477.65 | I88: 6300 | J88: 2999620.85 | K88: 2019-07-18 | L88: 577 | M88: INE294Z01018
A89: APARINDS | B89: EQ | C89: 560 | D89: 561.7 | E89: 537 | F89: 545.15 | G89: 545 | H89: 560.65 | I89: 9114 | J89: 5000197.25 | K89: 2019-07-18 | L89: 1437 | M89: INE372A01015
A90: APCL | B90: EQ | C90: 164 | D90: 164 | E90: 155.3 | F90: 157.9 | G90: 155.3 | H90: 158.3 | I90: 3160 | J90: 499120.45 | K90: 2019-07-18 | L90: 116 | M90: INE071F01012
A91: APCOTEXIND | B91: EQ | C91: 209.95 | D91: 209.95 | E91: 204.3 | F91: 205.55 | G91: 204.3 | H91: 208.25 | I91: 5897 | J91: 1217502.9 | K91: 2019-07-18 | L91: 130 | M91: INE116A01032
A92: APEX | B92: EQ | C92: 245.2 | D92: 247 | E92: 242 | F92: 243.55 | G92: 244.5 | H92: 246.65 | I92: 29031 | J92: 7099344.3 | K92: 2019-07-18 | L92: 1089 | M92: INE346W01013
A93: APLAPOLLO | B93: EQ | C93: 1559 | D93: 1559 | E93: 1512.1 | F93: 1521.95 | G93: 1513 | H93: 1560.85 | I93: 6167 | J93: 9449871.65 | K93: 2019-07-18 | L93: 1055 | M93: INE702C01019
A94: APLLTD | B94: EQ | C94: 527 | D94: 527.95 | E94: 520.05 | F94: 524.4 | G94: 526 | H94: 526.35 | I94: 16047 | J94: 8417867.9 | K94: 2019-07-18 | L94: 2670 | M94: INE901L01018
A95: APOLLO | B95: EQ | C95: 104.95 | D95: 104.95 | E95: 101 | F95: 102.8 | G95: 103.4 | H95: 103.3 | I95: 8377 | J95: 864202.5 | K95: 2019-07-18 | L95: 460 | M95: INE713T01010
A96: APOLLOHOSP | B96: EQ | C96: 1380 | D96: 1400 | E96: 1365.1 | F96: 1388.05 | G96: 1390 | H96: 1383.8 | I96: 464854 | J96: 643859929.9 | K96: 2019-07-18 | L96: 29740 | M96: INE437A01024
A97: APOLLOTYRE | B97: EQ | C97: 184.65 | D97: 186.35 | E97: 178.4 | F97: 179.25 | G97: 179.2 | H97: 184.6 | I97: 2057799 | J97: 374350467.9 | K97: 2019-07-18 | L97: 23348 | M97: INE438A01022
A98: APOLSINHOT | B98: EQ | C98: 870.05 | D98: 924 | E98: 866.5 | F98: 900.7 | G98: 924 | H98: 897.85 | I98: 2416 | J98: 2167538.75 | K98: 2019-07-18 | L98: 87 | M98: INE451F01024
A99: APTECHT | B99: EQ | C99: 133 | D99: 133.05 | E99: 122.1 | F99: 126.9 | G99: 124.5 | H99: 133.85 | I99: 140236 | J99: 18131930.05 | K99: 2019-07-18 | L99: 2521 | M99: INE266F01018
A100: ARCHIDPLY | B100: EQ | C100: 29.45 | D100: 30 | E100: 29.15 | F100: 29.45 | G100: 29.15 | H100: 29.45 | I100: 45322 | J100: 1354666.7 | K100: 2019-07-18 | L100: 84 | M100: INE877I01016
A101: ARCHIES | B101: EQ | C101: 20 | D101: 20.2 | E101: 19.4 | F101: 19.5 | G101: 19.4 | H101: 19.75 | I101: 24844 | J101: 488307.5 | K101: 2019-07-18 | L101: 271 | M101: INE731A01020
A102: ARCOTECH | B102: EQ | C102: 2.75 | D102: 2.75 | E102: 2.55 | F102: 2.65 | G102: 2.65 | H102: 2.65 | I102: 64894 | J102: 172543.05 | K102: 2019-07-18 | L102: 122 | M102: INE574I01035
A103: ARIES | B103: EQ | C103: 57.9 | D103: 58.85 | E103: 55.2 | F103: 55.5 | G103: 55.7 | H103: 57.4 | I103: 12901 | J103: 730145.55 | K103: 2019-07-18 | L103: 338 | M103: INE298I01015
A104: ARIHANT | B104: EQ | C104: 22.15 | D104: 23.35 | E104: 22.1 | F104: 22.1 | G104: 22.1 | H104: 22.95 | I104: 718 | J104: 16305.2 | K104: 2019-07-18 | L104: 6 | M104: INE413D01011
A105: ARIHANTSUP | B105: EQ | C105: 37.4 | D105: 41.2 | E105: 37.4 | F105: 38.9 | G105: 39.35 | H105: 39.3 | I105: 49997 | J105: 1985716.35 | K105: 2019-07-18 | L105: 933 | M105: INE643K01018
A106: ARMANFIN | B106: EQ | C106: 400.25 | D106: 408 | E106: 400 | F106: 406.75 | G106: 400.1 | H106: 400.4 | I106: 3839 | J106: 1545008.1 | K106: 2019-07-18 | L106: 138 | M106: INE109C01017
A107: AROGRANITE | B107: EQ | C107: 41.35 | D107: 42.45 | E107: 40.1 | F107: 40.8 | G107: 41 | H107: 41.7 | I107: 5921 | J107: 242339.95 | K107: 2019-07-18 | L107: 111 | M107: INE210C01013
A108: ARROWGREEN | B108: BE | C108: 60.3 | D108: 62 | E108: 60.25 | F108: 61.95 | G108: 61.95 | H108: 63.4 | I108: 8094 | J108: 490027.1 | K108: 2019-07-18 | L108: 124 | M108: INE570D01018
A109: ARROWTEX | B109: EQ | C109: 11.55 | D109: 12 | E109: 11.5 | F109: 11.5 | G109: 11.5 | H109: 11.85 | I109: 6592 | J109: 76453.25 | K109: 2019-07-18 | L109: 63 | M109: INE933J01015
A110: ARSHIYA | B110: EQ | C110: 19.8 | D110: 20 | E110: 18.8 | F110: 19.25 | G110: 19.45 | H110: 19.05 | I110: 57326 | J110: 1101085.85 | K110: 2019-07-18 | L110: 237 | M110: INE968D01022
A111: ARSSINFRA | B111: EQ | C111: 35.75 | D111: 35.75 | E111: 33.25 | F111: 34.25 | G111: 33.45 | H111: 34.9 | I111: 7116 | J111: 241994.8 | K111: 2019-07-18 | L111: 124 | M111: INE267I01010
A112: ARVIND | B112: EQ | C112: 61 | D112: 61.5 | E112: 59.4 | F112: 59.7 | G112: 59.7 | H112: 60.95 | I112: 1851051 | J112: 111963586.2 | K112: 2019-07-18 | L112: 8031 | M112: INE034A01011
A113: ARVINDFASN | B113: EQ | C113: 651 | D113: 655 | E113: 645 | F113: 651 | G113: 651 | H113: 653.2 | I113: 13681 | J113: 8912334.35 | K113: 2019-07-18 | L113: 1233 | M113: INE955V01021
A114: ARVSMART | B114: EQ | C114: 92.5 | D114: 94.2 | E114: 91.5 | F114: 93.15 | G114: 94.2 | H114: 93.4 | I114: 14432 | J114: 1339668.2 | K114: 2019-07-18 | L114: 245 | M114: INE034S01021
A115: ASAHIINDIA | B115: EQ | C115: 201.55 | D115: 202.25 | E115: 200 | F115: 200.15 | G115: 200 | H115: 202.6 | I115: 33793 | J115: 6768362 | K115: 2019-07-18 | L115: 557 | M115: INE439A01020
A116: ASAHISONG | B116: EQ | C116: 132.7 | D116: 133 | E116: 125.1 | F116: 127.25 | G116: 126 | H116: 133.1 | I116: 2606 | J116: 334855.4 | K116: 2019-07-18 | L116: 245 | M116: INE228I01012
A117: ASAL | B117: EQ | C117: 42.15 | D117: 42.95 | E117: 41.5 | F117: 41.75 | G117: 41.55 | H117: 42.15 | I117: 8303 | J117: 349020.45 | K117: 2019-07-18 | L117: 80 | M117: INE900C01027
A118: ASHAPURMIN | B118: EQ | C118: 17.9 | D118: 18.05 | E118: 17.8 | F118: 18.05 | G118: 18.05 | H118: 17.2 | I118: 201570 | J118: 3636328.05 | K118: 2019-07-18 | L118: 167 | M118: INE348A01023
A119: ASHIANA | B119: EQ | C119: 117.85 | D119: 125.4 | E119: 117.2 | F119: 117.75 | G119: 118 | H119: 115.1 | I119: 112642 | J119: 13437403.45 | K119: 2019-07-18 | L119: 2257 | M119: INE365D01021
A120: ASHIMASYN | B120: EQ | C120: 9.05 | D120: 9.55 | E120: 9 | F120: 9.35 | G120: 9.5 | H120: 9.1 | I120: 13167 | J120: 122410.7 | K120: 2019-07-18 | L120: 61 | M120: INE440A01010
A121: ASHOKA | B121: EQ | C121: 128 | D121: 129 | E121: 123.05 | F121: 126.9 | G121: 126 | H121: 127.05 | I121: 379947 | J121: 48137000.45 | K121: 2019-07-18 | L121: 2868 | M121: INE442H01029
A122: ASHOKLEY | B122: EQ | C122: 85.45 | D122: 85.45 | E122: 81.05 | F122: 81.45 | G122: 81.6 | H122: 85.45 | I122: 24405105 | J122: 2015497145 | K122: 2019-07-18 | L122: 89648 | M122: INE208A01029
A123: ASIANHOTNR | B123: EQ | C123: 121 | D123: 122.8 | E123: 118.15 | F123: 119.15 | G123: 118.5 | H123: 123 | I123: 840 | J123: 101056.05 | K123: 2019-07-18 | L123: 325 | M123: INE363A01022
A124: ASIANPAINT | B124: EQ | C124: 1395 | D124: 1395.35 | E124: 1377.2 | F124: 1384.95 | G124: 1384.5 | H124: 1395.9 | I124: 802222 | J124: 1111664010 | K124: 2019-07-18 | L124: 48621 | M124: INE021A01026
A125: ASIANTILES | B125: EQ | C125: 226.8 | D125: 228.7 | E125: 217.05 | F125: 219.3 | G125: 218 | H125: 226.8 | I125: 182708 | J125: 40246019.7 | K125: 2019-07-18 | L125: 5212 | M125: INE022I01019
A126: ASPINWALL | B126: EQ | C126: 142.5 | D126: 147 | E126: 142.5 | F126: 145.7 | G126: 146 | H126: 147.7 | I126: 1818 | J126: 264122.45 | K126: 2019-07-18 | L126: 25 | M126: INE991I01015
A127: ASSAMCO | B127: BE | C127: 1.35 | D127: 1.35 | E127: 1.25 | F127: 1.25 | G127: 1.25 | H127: 1.3 | I127: 59891 | J127: 75344.75 | K127: 2019-07-18 | L127: 71 | M127: INE442A01024
A128: ASTEC | B128: EQ | C128: 337.85 | D128: 344.8 | E128: 311.65 | F128: 324.4 | G128: 325.25 | H128: 346.3 | I128: 93826 | J128: 30574169.05 | K128: 2019-07-18 | L128: 3285 | M128: INE563J01010
A129: ASTERDM | B129: EQ | C129: 126 | D129: 127.75 | E129: 125.2 | F129: 126.15 | G129: 126.5 | H129: 125.9 | I129: 130330 | J129: 16420067.75 | K129: 2019-07-18 | L129: 1266 | M129: INE914M01019
A130: ASTRAL | B130: EQ | C130: 1287 | D130: 1309 | E130: 1287 | F130: 1298.7 | G130: 1300 | H130: 1293.4 | I130: 19474 | J130: 25312489.2 | K130: 2019-07-18 | L130: 1291 | M130: INE006I01046
A131: ASTRAMICRO | B131: EQ | C131: 79.3 | D131: 80 | E131: 78.5 | F131: 78.9 | G131: 79 | H131: 79.55 | I131: 47672 | J131: 3762499.2 | K131: 2019-07-18 | L131: 414 | M131: INE386C01029
A132: ASTRAZEN | B132: EQ | C132: 2003.55 | D132: 2019.45 | E132: 1940 | F132: 1950.5 | G132: 1948 | H132: 2003.3 | I132: 7017 | J132: 13864692.25 | K132: 2019-07-18 | L132: 811 | M132: INE203A01020
A133: ASTRON | B133: EQ | C133: 104 | D133: 107.1 | E133: 100.1 | F133: 102.05 | G133: 100.25 | H133: 105.9 | I133: 374123 | J133: 39153792.45 | K133: 2019-07-18 | L133: 2847 | M133: INE646X01014
A134: ATFL | B134: EQ | C134: 488 | D134: 495 | E134: 486 | F134: 490.55 | G134: 490 | H134: 492.65 | I134: 3463 | J134: 1696510 | K134: 2019-07-18 | L134: 259 | M134: INE209A01019
A135: ATLANTA | B135: EQ | C135: 9.15 | D135: 9.3 | E135: 8.9 | F135: 8.9 | G135: 8.9 | H135: 9.35 | I135: 19773 | J135: 177092.2 | K135: 2019-07-18 | L135: 126 | M135: INE285H01022
A136: ATLASCYCLE | B136: BE | C136: 39.4 | D136: 42.4 | E136: 39.4 | F136: 41.65 | G136: 42 | H136: 40.4 | I136: 8130 | J136: 341202.5 | K136: 2019-07-18 | L136: 125 | M136: INE446A01025
A137: ATNINTER | B137: BE | C137: 0.2 | D137: 0.25 | E137: 0.2 | F137: 0.25 | G137: 0.25 | H137: 0.2 | I137: 37733 | J137: 9046.85 | K137: 2019-07-18 | L137: 31 | M137: INE803A01027
A138: ATUL | B138: EQ | C138: 3797.25 | D138: 3837.95 | E138: 3788.25 | F138: 3798.15 | G138: 3800.35 | H138: 3797.25 | I138: 20132 | J138: 76918091.2 | K138: 2019-07-18 | L138: 6074 | M138: INE100A01010
A139: ATULAUTO | B139: EQ | C139: 271 | D139: 272.9 | E139: 270 | F139: 270 | G139: 270 | H139: 270.55 | I139: 2697 | J139: 728519.15 | K139: 2019-07-18 | L139: 114 | M139: INE951D01028
A140: AUBANK | B140: EQ | C140: 667.2 | D140: 674.95 | E140: 667.15 | F140: 669.35 | G140: 668.5 | H140: 669.4 | I140: 81812 | J140: 54865030.15 | K140: 2019-07-18 | L140: 7064 | M140: INE949L01017
A141: AURIONPRO | B141: EQ | C141: 105.35 | D141: 110.5 | E141: 104.2 | F141: 107.05 | G141: 106.05 | H141: 107.75 | I141: 13717 | J141: 1486745 | K141: 2019-07-18 | L141: 178 | M141: INE132H01018
A142: AUROPHARMA | B142: EQ | C142: 574.85 | D142: 577.95 | E142: 562.1 | F142: 569.9 | G142: 568.35 | H142: 573.15 | I142: 2424281 | J142: 1382916183 | K142: 2019-07-18 | L142: 57817 | M142: INE406A01037
A143: AUSOMENT | B143: EQ | C143: 35.3 | D143: 35.45 | E143: 34.8 | F143: 35.45 | G143: 35.45 | H143: 33.8 | I143: 1717 | J143: 60434.5 | K143: 2019-07-18 | L143: 32 | M143: INE218C01016
A144: AUTOAXLES | B144: EQ | C144: 957.9 | D144: 968.5 | E144: 921 | F144: 925.95 | G144: 924.5 | H144: 962.65 | I144: 10477 | J144: 9797887.7 | K144: 2019-07-18 | L144: 1184 | M144: INE449A01011
A145: AUTOIND | B145: EQ | C145: 48 | D145: 49.7 | E145: 46.9 | F145: 47.1 | G145: 46.9 | H145: 48.6 | I145: 6756 | J145: 321939.35 | K145: 2019-07-18 | L145: 261 | M145: INE718H01014
A146: AVADHSUGAR | B146: EQ | C146: 286.05 | D146: 290.7 | E146: 274.3 | F146: 277.1 | G146: 279 | H146: 288.6 | I146: 52132 | J146: 14681288.5 | K146: 2019-07-18 | L146: 1711 | M146: INE349W01017
A147: AVANTIFEED | B147: EQ | C147: 337.65 | D147: 338.75 | E147: 329 | F147: 330.2 | G147: 329.8 | H147: 336.3 | I147: 134318 | J147: 44827998.35 | K147: 2019-07-18 | L147: 4683 | M147: INE871C01038
A148: AVTNPL | B148: EQ | C148: 23.2 | D148: 23.85 | E148: 22.65 | F148: 22.75 | G148: 22.9 | H148: 23.55 | I148: 31716 | J148: 725764 | K148: 2019-07-18 | L148: 155 | M148: INE488D01021
A149: AXISBANK | B149: EQ | C149: 754 | D149: 755 | E149: 734.6 | F149: 740.4 | G149: 743 | H149: 752.6 | I149: 11283488 | J149: 8381757151 | K149: 2019-07-18 | L149: 206879 | M149: INE238A01034
A150: AXISCADES | B150: EQ | C150: 63.25 | D150: 68.4 | E150: 63.1 | F150: 66.9 | G150: 66.4 | H150: 63.25 | I150: 580801 | J150: 38521376.25 | K150: 2019-07-18 | L150: 9056 | M150: INE555B01013
A151: AXISGOLD | B151: EQ | C151: 3017.05 | D151: 3060 | E151: 3017.05 | F151: 3050.85 | G151: 3051 | H151: 3012 | I151: 494 | J151: 1505208.85 | K151: 2019-07-18 | L151: 56 | M151: INF846K01347
A152: AXISNIFTY | B152: EQ | C152: 1196 | D152: 1196 | E152: 1196 | F152: 1196 | G152: 1196 | H152: 1196 | I152: 3 | J152: 3588 | K152: 2019-07-18 | L152: 2 | M152: INF846K01ZL0
A153: AYMSYNTEX | B153: EQ | C153: 33.6 | D153: 35.35 | E153: 30.95 | F153: 33.95 | G153: 34.15 | H153: 34 | I153: 50960 | J153: 1710585.55 | K153: 2019-07-18 | L153: 233 | M153: INE193B01039
A154: BAFNAPHARM | B154: BE | C154: 7 | D154: 7 | E154: 6.4 | F154: 6.7 | G154: 6.7 | H154: 6.7 | I154: 2861 | J154: 19096.95 | K154: 2019-07-18 | L154: 40 | M154: INE878I01014
A155: BAGFILMS | B155: EQ | C155: 3.35 | D155: 3.35 | E155: 3.05 | F155: 3.1 | G155: 3.15 | H155: 3.25 | I155: 115357 | J155: 363702.75 | K155: 2019-07-18 | L155: 219 | M155: INE116D01028
A156: BAJAJ-AUTO | B156: EQ | C156: 2700 | D156: 2711.85 | E156: 2621.1 | F156: 2630.8 | G156: 2625.9 | H156: 2696.9 | I156: 365949 | J156: 972023221.5 | K156: 2019-07-18 | L156: 31111 | M156: INE917I01010
A157: BAJAJCON | B157: EQ | C157: 313.85 | D157: 314 | E157: 309 | F157: 309.95 | G157: 310 | H157: 311.85 | I157: 46771 | J157: 14538782.45 | K157: 2019-07-18 | L157: 3478 | M157: INE933K01021
A158: BAJAJELEC | B158: EQ | C158: 463 | D158: 470.45 | E158: 456 | F158: 458.7 | G158: 457.85 | H158: 465.15 | I158: 64750 | J158: 30140327.6 | K158: 2019-07-18 | L158: 2597 | M158: INE193E01025
A159: BAJAJFINSV | B159: EQ | C159: 7858.7 | D159: 7907.9 | E159: 7810 | F159: 7847.65 | G159: 7834.3 | H159: 7854.55 | I159: 134466 | J159: 1057689844 | K159: 2019-07-18 | L159: 21446 | M159: INE918I01018
A160: BAJAJHIND | B160: EQ | C160: 7.15 | D160: 7.25 | E160: 7.1 | F160: 7.15 | G160: 7.1 | H160: 7.2 | I160: 533887 | J160: 3822200.45 | K160: 2019-07-18 | L160: 720 | M160: INE306A01021
A161: BAJAJHLDNG | B161: EQ | C161: 3560.05 | D161: 3564.65 | E161: 3520.1 | F161: 3523.4 | G161: 3525 | H161: 3556.85 | I161: 13972 | J161: 49405504.9 | K161: 2019-07-18 | L161: 4065 | M161: INE118A01012
A162: BAJFINANCE | B162: EQ | C162: 3460 | D162: 3520 | E162: 3444 | F162: 3467.65 | G162: 3460 | H162: 3463.3 | I162: 1320464 | J162: 4604427014 | K162: 2019-07-18 | L162: 75063 | M162: INE296A01024
A163: BALAJITELE | B163: EQ | C163: 52.9 | D163: 53.65 | E163: 52.3 | F163: 52.8 | G163: 53.45 | H163: 53 | I163: 21551 | J163: 1139736.95 | K163: 2019-07-18 | L163: 264 | M163: INE794B01026
A164: BALAMINES | B164: EQ | C164: 321 | D164: 321.05 | E164: 295.35 | F164: 299.6 | G164: 299.7 | H164: 323.9 | I164: 45021 | J164: 13747972.85 | K164: 2019-07-18 | L164: 2410 | M164: INE050E01027
A165: BALAXI | B165: BE | C165: 85.9 | D165: 85.9 | E165: 79.75 | F165: 79.75 | G165: 79.75 | H165: 83.9 | I165: 2414 | J165: 193411.85 | K165: 2019-07-18 | L165: 41 | M165: INE618N01014
A166: BALKRISHNA | B166: EQ | C166: 26.85 | D166: 27.45 | E166: 26 | F166: 26.15 | G166: 26 | H166: 27.1 | I166: 3805 | J166: 100244.95 | K166: 2019-07-18 | L166: 97 | M166: INE875R01011
A167: BALKRISIND | B167: EQ | C167: 750 | D167: 765.95 | E167: 746 | F167: 751 | G167: 752 | H167: 750.15 | I167: 576464 | J167: 436053291.8 | K167: 2019-07-18 | L167: 23962 | M167: INE787D01026
A168: BALLARPUR | B168: EQ | C168: 1.2 | D168: 1.25 | E168: 1.2 | F168: 1.2 | G168: 1.2 | H168: 1.25 | I168: 1147416 | J168: 1391982.25 | K168: 2019-07-18 | L168: 405 | M168: INE294A01037
A169: BALMLAWRIE | B169: EQ | C169: 177.55 | D169: 179.05 | E169: 176.5 | F169: 176.85 | G169: 176.55 | H169: 178 | I169: 33637 | J169: 5978820.65 | K169: 2019-07-18 | L169: 661 | M169: INE164A01016
A170: BALPHARMA | B170: EQ | C170: 50.75 | D170: 52 | E170: 49.7 | F170: 51.05 | G170: 52 | H170: 50.75 | I170: 8288 | J170: 419228.5 | K170: 2019-07-18 | L170: 160 | M170: INE083D01012
A171: BALRAMCHIN | B171: EQ | C171: 155.7 | D171: 157.4 | E171: 147.35 | F171: 149.8 | G171: 150.1 | H171: 155.2 | I171: 1469651 | J171: 222041847.5 | K171: 2019-07-18 | L171: 38491 | M171: INE119A01028
A172: BANARBEADS | B172: EQ | C172: 45.55 | D172: 45.55 | E172: 44 | F172: 44 | G172: 44 | H172: 44 | I172: 648 | J172: 28577.05 | K172: 2019-07-18 | L172: 10 | M172: INE655B01011
A173: BANARISUG | B173: EQ | C173: 1405 | D173: 1406.05 | E173: 1405 | F173: 1405.35 | G173: 1405 | H173: 1406 | I173: 153 | J173: 214969.3 | K173: 2019-07-18 | L173: 10 | M173: INE459A01010
A174: BANCOINDIA | B174: EQ | C174: 110 | D174: 111 | E174: 108.1 | F174: 108.65 | G174: 108.8 | H174: 110.15 | I174: 14990 | J174: 1639013.5 | K174: 2019-07-18 | L174: 346 | M174: INE213C01025
A175: BANDHANBNK | B175: EQ | C175: 540 | D175: 544.1 | E175: 526.55 | F175: 528.8 | G175: 528 | H175: 539.35 | I175: 384789 | J175: 204695826.6 | K175: 2019-07-18 | L175: 25648 | M175: INE545U01014
A176: BANG | B176: EQ | C176: 40.9 | D176: 40.9 | E176: 37.8 | F176: 38.45 | G176: 38 | H176: 39.05 | I176: 3344 | J176: 129966.95 | K176: 2019-07-18 | L176: 88 | M176: INE863I01016
A177: BANKBARODA | B177: EQ | C177: 127.35 | D177: 127.35 | E177: 121.05 | F177: 121.35 | G177: 121.4 | H177: 127.3 | I177: 21215697 | J177: 2614453249 | K177: 2019-07-18 | L177: 66205 | M177: INE028A01039
A178: BANKBEES | B178: EQ | C178: 3125.45 | D178: 3133.34 | E178: 3099 | F178: 3100.1 | G178: 3103 | H178: 3130.79 | I178: 4039 | J178: 12573045.38 | K178: 2019-07-18 | L178: 394 | M178: INF732E01078
A179: BANKINDIA | B179: EQ | C179: 84.95 | D179: 85.5 | E179: 81.6 | F179: 82.15 | G179: 82.3 | H179: 84.9 | I179: 9321591 | J179: 771773772.2 | K179: 2019-07-18 | L179: 26801 | M179: INE084A01016
A180: BANSWRAS | B180: EQ | C180: 65 | D180: 67 | E180: 65 | F180: 66.7 | G180: 66.3 | H180: 66.1 | I180: 2760 | J180: 182847.75 | K180: 2019-07-18 | L180: 34 | M180: INE629D01012
A181: BARTRONICS | B181: EQ | C181: 3.4 | D181: 3.45 | E181: 3.25 | F181: 3.3 | G181: 3.35 | H181: 3.4 | I181: 10670 | J181: 35181.55 | K181: 2019-07-18 | L181: 38 | M181: INE855F01034
A182: BASF | B182: EQ | C182: 1167.9 | D182: 1168.75 | E182: 1125 | F182: 1127.4 | G182: 1131.9 | H182: 1154.9 | I182: 4100 | J182: 4678981 | K182: 2019-07-18 | L182: 716 | M182: INE373A01013
A183: BASML | B183: EQ | C183: 150.05 | D183: 154.75 | E183: 150.05 | F183: 150.2 | G183: 154.75 | H183: 151.75 | I183: 571 | J183: 85784.65 | K183: 2019-07-18 | L183: 28 | M183: INE186H01014
A184: BATAINDIA | B184: EQ | C184: 1359 | D184: 1359 | E184: 1332.05 | F184: 1341.65 | G184: 1343.9 | H184: 1360.95 | I184: 664401 | J184: 891995825.4 | K184: 2019-07-18 | L184: 22575 | M184: INE176A01028
A185: BAYERCROP | B185: EQ | C185: 3350 | D185: 3380 | E185: 3306.25 | F185: 3345.65 | G185: 3326 | H185: 3349.45 | I185: 2575 | J185: 8605066.65 | K185: 2019-07-18 | L185: 681 | M185: INE462A01022
A186: BBL | B186: EQ | C186: 992.05 | D186: 999 | E186: 981.55 | F186: 991.95 | G186: 984.35 | H186: 997.9 | I186: 1119 | J186: 1107343.2 | K186: 2019-07-18 | L186: 208 | M186: INE464A01028
A187: BBTC | B187: EQ | C187: 916 | D187: 934 | E187: 910 | F187: 912.75 | G187: 911.5 | H187: 912.35 | I187: 104680 | J187: 96707010.6 | K187: 2019-07-18 | L187: 5054 | M187: INE050A01025
A188: BCG | B188: EQ | C188: 3.55 | D188: 3.55 | E188: 3.3 | F188: 3.35 | G188: 3.3 | H188: 3.45 | I188: 453010 | J188: 1518943.85 | K188: 2019-07-18 | L188: 260 | M188: INE425B01027
A189: BDL | B189: EQ | C189: 303.45 | D189: 308 | E189: 300 | F189: 301.55 | G189: 300 | H189: 303.45 | I189: 21652 | J189: 6571215.75 | K189: 2019-07-18 | L189: 1299 | M189: INE171Z01018
A190: BEARDSELL | B190: EQ | C190: 14.6 | D190: 17.4 | E190: 13.9 | F190: 15.3 | G190: 15.55 | H190: 14.95 | I190: 1607 | J190: 24889.6 | K190: 2019-07-18 | L190: 47 | M190: INE520H01022
A191: BEDMUTHA | B191: EQ | C191: 17.85 | D191: 17.85 | E191: 16.65 | F191: 16.85 | G191: 16.85 | H191: 16.95 | I191: 2122 | J191: 36012.85 | K191: 2019-07-18 | L191: 18 | M191: INE844K01012
A192: BEL | B192: EQ | C192: 103.8 | D192: 103.9 | E192: 95.9 | F192: 96.55 | G192: 96.7 | H192: 103.3 | I192: 14419051 | J192: 1425108997 | K192: 2019-07-18 | L192: 68373 | M192: INE263A01024
A193: BEML | B193: EQ | C193: 913.8 | D193: 927.9 | E193: 907.3 | F193: 913.9 | G193: 913 | H193: 914.15 | I193: 963713 | J193: 884860846 | K193: 2019-07-18 | L193: 26082 | M193: INE258A01016
A194: BEPL | B194: EQ | C194: 66.2 | D194: 71.15 | E194: 66.2 | F194: 67.7 | G194: 68.4 | H194: 67.15 | I194: 671594 | J194: 46029960 | K194: 2019-07-18 | L194: 4588 | M194: INE922A01025
A195: BERGEPAINT | B195: EQ | C195: 316.5 | D195: 316.7 | E195: 312 | F195: 313.3 | G195: 314.5 | H195: 316.2 | I195: 383233 | J195: 120469399.5 | K195: 2019-07-18 | L195: 5142 | M195: INE463A01038
A196: BFINVEST | B196: EQ | C196: 275 | D196: 281.8 | E196: 268 | F196: 270.6 | G196: 270.1 | H196: 275.35 | I196: 279826 | J196: 77125889.15 | K196: 2019-07-18 | L196: 7393 | M196: INE878K01010
A197: BFUTILITIE | B197: EQ | C197: 217.95 | D197: 230 | E197: 217 | F197: 221.1 | G197: 220 | H197: 215.25 | I197: 2104259 | J197: 470044699.1 | K197: 2019-07-18 | L197: 36374 | M197: INE243D01012
A198: BGLOBAL | B198: BE | C198: 1.5 | D198: 1.55 | E198: 1.45 | F198: 1.45 | G198: 1.45 | H198: 1.5 | I198: 3696 | J198: 5414.15 | K198: 2019-07-18 | L198: 12 | M198: INE224M01013
A199: BGRENERGY | B199: EQ | C199: 47.55 | D199: 49 | E199: 47.5 | F199: 47.95 | G199: 47.5 | H199: 48.3 | I199: 30027 | J199: 1445244.75 | K199: 2019-07-18 | L199: 489 | M199: INE661I01014
A200: BHAGERIA | B200: EQ | C200: 128 | D200: 131.9 | E200: 125.1 | F200: 126.85 | G200: 127.9 | H200: 129.55 | I200: 14064 | J200: 1790565.4 | K200: 2019-07-18 | L200: 422 | M200: INE354C01027
... 1465 more rows

Sheet Sheet1 (hidden)

Sheet Sheet3 (hidden)

Sheet Sheet4 (hidden)
